Workbook

Sheet Acadia
C1: A C A D I A
G2: MIX AND MATCH THE GMC ACCESSORIES THAT WORK BEST FOR YOU.
E8: =Worksheet!$D$15 -> INTEGRATED CARGO LINER | J8: =Worksheet!$D$16 -> REAR SEAT ENTERTAIMENT SYSTEM | P8: =Worksheet!$D$17 -> WIRELESS CHARGING STATION
F9: =IF(Worksheet!$C$5="Y",Worksheet!$O$15,Worksheet!$L$15) -> 135 | K9: =IF(Worksheet!$C$5="Y",Worksheet!$O$16,Worksheet!$L$16) -> 2145 | Q9: =IF(Worksheet!$C$5="Y",Worksheet!$O$17,Worksheet!$L$17) -> 375
E10: The Integrated Cargo Liner covers your Acadia's cargo area floor as well as the back of the third-row seats, providing enhanced protection. | J10: Make time fly for your rear-seat passengers with the Rear-Seat Entertainment (RSE) Head Restraint DVD System. | P10: Stay connected with this Wireless Charging System featuring a mat that perfectly fits in the bottom of the open storage area in front of your shifter.
E15: =Worksheet!$D$18 -> REMOTE START | J15: =Worksheet!$D$19 -> ASSIST STEPS | P15: =Worksheet!$D$20 -> GRILLE INSERT
F16: =IF(Worksheet!$C$5="Y",Worksheet!$O$18,Worksheet!$L$18) -> 325 | K16: =IF(Worksheet!$C$5="Y",Worksheet!$O$19,Worksheet!$L$19) -> 695 | Q16: =IF(Worksheet!$C$5="Y",Worksheet!$O$20,Worksheet!$L$20) -> 415
E17: Perfect for pre-heating or cooling your vehicle, this handy Remote Start Kit allows you to start your Acadia with the simple push of a button on a key fob. | J17: The perfect blend of style and function, this set of attractive molded Assist Steps makes it easier to enter and exit your Acadia and to load/unload items. | P17: Modify the exterior appearance of your Acadia with this stylish Grille Insert.
E22: =Worksheet!$D$21 -> CHROME MIRROR COVERS | J22: =Worksheet!$D$22 -> CARGO SECURITY SHADE | P22: =Worksheet!$D$23 -> UNIVERSAL TABLET HOLDER
F23: =IF(Worksheet!$C$5="Y",Worksheet!$O$21,Worksheet!$L$21) -> 210 | K23: =IF(Worksheet!$C$5="Y",Worksheet!$O$22,Worksheet!$L$22) -> 160 | Q23: =IF(Worksheet!$C$5="Y",Worksheet!$O$23,Worksheet!$L$23) -> 115
E24: Enhance the appearance of your Acadia with these attractive Outside Rearview Mirror Covers in Chrome. | J24: This removable, retractable Cargo Security Shade will conceal items stored in your Acadia's cargo area when fully extended. | P24: Second-row passengers can easily use their tablets on the road with this Universal Tablet Holder.
E29: =Worksheet!$D$24 -> ALL WEATHER FLOOR LINER | J29: =Worksheet!$D$25 -> SPORT PEDAL COVER | P29: =Worksheet!$D$26 -> HITCH TRAILERING PACKAGE
F30: =IF(Worksheet!$C$5="Y",Worksheet!$O$24,Worksheet!$L$24) -> 110 | K30: =IF(Worksheet!$C$5="Y",Worksheet!$O$25,Worksheet!$L$25) -> 225 | Q30: =IF(Worksheet!$C$5="Y",Worksheet!$O$26,Worksheet!$L$26) -> 450
E31: This set of Contoured All-Weather Floor Liners helps protect your Acadia's first and second row carpet from dirt, water and snow. | J31: Add a striking and individual look to the interior of your Acadia with this Sport Pedal Cover Kit. Features a metallic finish with an anti-slip surface. | P31: Featuring a 2” square receiver, this Hitch Trailering Package can accept a variety of ball mounts, adapters and carriers.
C36: Price includes installation where applicable. Tax is additional. Pricing is subject to change and final pricing based on VIN. Not all accessories are available for all models/trims. Images are representations of product and actual product could vary.
C38: =VLOOKUP(Worksheet!F1,CustRecs!E:F,2,FALSE) -> NYLE MAXWELL GMC | L38: Customer Name:
C39: =VLOOKUP(Worksheet!F1,CustRecs!E:J,3,FALSE) -> 3000 NORTH I-35
C40: =CONCATENATE((VLOOKUP(Worksheet!F1,CustRecs!E:H,4,FALSE)),", ",(VLOOKUP(Worksheet!F1,CustRecs!E:I,5,FALSE))," ",(VLOOKUP(Worksheet!F1,CustRecs!E:J,6,FALSE))) -> ROUND ROCK, TX 78681 | L40: VIN/Stock #:
K42: Customer Signature:
D43: I am excited and agree to purchase the above indicated GMC Accessories. | Q43: Date
K44: Salesperson Signature:
D45: I have been offered GMC Accessories, but at this time I decline to purchase any for my vehicle. I understand that any non-GMC Accessories installed on my vehicle may affect my warranty. | Q45: Date
K46: Manager Signature:
Q47: Date

Sheet Canyon
C1: C A N Y O N
G2: MIX AND MATCH THE GMC ACCESSORIES THAT WORK BEST FOR YOU.
E8: =Worksheet!$D$30 -> GRILLE | J8: =Worksheet!$D$31 -> REMOTE START | P8: =Worksheet!$D$32 -> 5-INCH CHROME ASSIST STEPS
F9: =IF(Worksheet!$C$5="Y",Worksheet!$O$30,Worksheet!$L$30) -> 645 | K9: =IF(Worksheet!$C$5="Y",Worksheet!$O$31,Worksheet!$L$31) -> 325 | Q9: =IF(Worksheet!$C$5="Y",Worksheet!$O$32,Worksheet!$L$32) -> 725
E10: Go for the ultimate in customization with this sporty Grille Assembly in Black. It's designed for perfect fit and easily replaces the existing grille. | J10: By pressing a button on the key fob, the Remote Start system starts your parked Canyon. It pre-warms or pre-cools your truck. | P10: 5-Inch Rectangular Chrome Assist Steps look terrific while offering a secure step up into the cab. Features a textured anti-slip step surface.
E15: =Worksheet!$D$33 -> CHROME DOOR HANDLES | J15: =Worksheet!$D$34 -> SIDE WINDOW DEFLECTORS | P15: =Worksheet!$D$35 -> FLOOR LINERS
F16: =IF(Worksheet!$C$5="Y",Worksheet!$O$33,Worksheet!$L$33) -> 185 | K16: =IF(Worksheet!$C$5="Y",Worksheet!$O$34,Worksheet!$L$34) -> 180 | Q16: =IF(Worksheet!$C$5="Y",Worksheet!$O$35,Worksheet!$L$35) -> 100
E17: Add a stylish, refined and personalized look to your Canyon with these Chrome Front and Rear Door Handles that replace the factory handles. | J17: Let fresh air in and help keep rain, sleet and snow out with these dual function vent-and-visor Side Window Weather Deflectors in Smoke finish. | P17: Help ensure the front floor stays clean with these all-new Front Floor Liners in Jet Black. Precision designed for maximum carpet coverage.
E22: =Worksheet!$D$36 -> BEDLINER | J22: =Worksheet!$D$37 -> SPORT BAR PACKAGE | P22: =Worksheet!$D$38 -> HARD FOLDING TONNEAU COVER
F23: =IF(Worksheet!$C$5="Y",Worksheet!$O$36,Worksheet!$L$36) -> 355 | K23: =IF(Worksheet!$C$5="Y",Worksheet!$O$37,Worksheet!$L$37) -> 1145 | Q23: =IF(Worksheet!$C$5="Y",Worksheet!$O$38,Worksheet!$L$38) -> 1060
E24: Help protect the bed of your Canyon with a durable Bedliner. Constructed of co-polymer skid-resistant material with a ribbed surface to help reduce load shifting. | J24: Create a rugged, off-road appearance for your Canyon with this bed-mounted GMC Sport Bar Package. | P24: This tough, folding Hard Tonneau Cover is designed to stand up to rugged use while sheltering the load in your cargo bed
E29: =Worksheet!$D$39 -> LOW PROFILE TOOL BOX | J29: =Worksheet!$D$40 -> TRAILERING PACKAGE | P29: =Worksheet!$D$41 -> SPLASH GUARDS
F30: =IF(Worksheet!$C$5="Y",Worksheet!$O$39,Worksheet!$L$39) -> 449 | K30: =IF(Worksheet!$C$5="Y",Worksheet!$O$40,Worksheet!$L$40) -> 345 | Q30: =IF(Worksheet!$C$5="Y",Worksheet!$O$41,Worksheet!$L$41) -> 100
E31: his Low Profile Tool Box by UWS® comes in Bright Finish and offers a sleeker, more integrated look and better rearward view. | J31: To meet your towing needs, the welded structural steel Hitch Trailering Package features a standard receiver to fit most ball mounts. | P31: Designed to accent the exterior, these Rear Molded Splash Guards in Black feature an embossed GMC logo and fit directly behind the rear wheels.
C36: Price includes installation where applicable. Tax is additional. Pricing is subject to change and final pricing based on VIN. Not all accessories are available for all models/trims. Images are representations of product and actual product could vary.
C38: =VLOOKUP(Worksheet!F1,CustRecs!E:F,2,FALSE) -> NYLE MAXWELL GMC | L38: Customer Name:
C39: =VLOOKUP(Worksheet!F1,CustRecs!E:J,3,FALSE) -> 3000 NORTH I-35
C40: =CONCATENATE((VLOOKUP(Worksheet!F1,CustRecs!E:H,4,FALSE)),", ",(VLOOKUP(Worksheet!F1,CustRecs!E:I,5,FALSE))," ",(VLOOKUP(Worksheet!F1,CustRecs!E:J,6,FALSE))) -> ROUND ROCK, TX 78681 | L40: VIN/Stock #:
K42: Customer Signature:
D43: I am excited and agree to purchase the above indicated GMC Accessories. | Q43: Date
K44: Salesperson Signature:
D45: I have been offered GMC Accessories, but at this time I decline to purchase any for my vehicle. I understand that any non-GMC Accessories installed on my vehicle may affect my warranty. | Q45: Date
K46: Manager Signature:
Q47: Date

Sheet Sierra Bed-Steps
C1: S I E R R A
G2: MIX AND MATCH THE GMC ACCESSORIES THAT WORK BEST FOR YOU.
E8: =Worksheet!$D$45 -> BEDLINER | J8: =Worksheet!$D$46 -> BED MAT BY BedRug™ | P8: =Worksheet!$D$47 -> BedRug™
F9: =IF(Worksheet!$C$5="Y",Worksheet!$O$45,Worksheet!$L$45) -> 355 | K9: =IF(Worksheet!$C$5="Y",Worksheet!$O$46,Worksheet!$L$46) -> 189 | Q9: =IF(Worksheet!$C$5="Y",Worksheet!$O$47,Worksheet!$L$47) -> 540
E10: Help protect the bed of your truck with this durable Bedliner Package. It's fully ribbed with a skid-resistant floor to help minimize load shifting. | J10: Help reduce cargo shifting in the bed of your New Sierra with this easy-to-install, non-skid, Bed Mat by BedRug™. | P10: Designed to fit the contours of your truck and features a durable carpet-like surface that resists water, stains, solvents and chemicals. Molded foam backing helps protect the bed.
E15: =Worksheet!$D$48 -> HARD FOLDING TONNEAU - QUAD-FOLD | J15: =Worksheet!$D$49 -> HARD ROLLING TONNEAU | P15: =Worksheet!$D$50 -> SOFT ROLL-UP TONNEAU
F16: =IF(Worksheet!$C$5="Y",Worksheet!$O$48,Worksheet!$L$48) -> 1154 | K16: =IF(Worksheet!$C$5="Y",Worksheet!$O$49,Worksheet!$L$49) -> 1049 | Q16: =IF(Worksheet!$C$5="Y",Worksheet!$O$50,Worksheet!$L$50) -> 535
E17: Lightweight rustproof non-corrosive and lockable it provides easy access to the truck bed by letting you flip the cover open from the front or back. | J17: Get the cargo protection you need and still maintain full access to the bed of you Sierra with this Hard Rolling Tonneau Cover by REV®. | P17: Shield the cargo and help protect the bed itself from harsh weather. Constructed with integrated crossbows, it easily rolls up to allow full access to the bed. Bowtie logo.
E22: =Worksheet!$D$51 -> TRI-FOLD TONNEAU COVER | J22: =Worksheet!$D$52 -> 6" CHROME ASSIST STEPS | P22: =Worksheet!$D$53 -> 6" BLACK ASSIST STEPS
F23: =IF(Worksheet!$C$5="Y",Worksheet!$O$51,Worksheet!$L$51) -> 950 | K23: =IF(Worksheet!$C$5="Y",Worksheet!$O$52,Worksheet!$L$52) -> 750 | Q23: =IF(Worksheet!$C$5="Y",Worksheet!$O$53,Worksheet!$L$53) -> 700
E24: Provide quick and easy access to the cargo in your Sierra with this Tri-Fold, Hard Folding Tonneau Cover that also helps protect the bed itself from harsh weather. | J24: Get in and out of your Sierra with ease with these stylish 6-inch Rectangular Assist Steps. | P24: Get in and out of your Sierra with ease with these stylish 6-inch Rectangular Assist Steps.
E29: =Worksheet!$D$54 -> 4" ROUND CHROME ASSIST STEPS | J29: =Worksheet!$D$55 -> 4" ROUND BLACK ASSIST STEPS | P29: =Worksheet!$D$56 -> 3" OFF-ROAD STEP BARS
F30: =IF(Worksheet!$C$5="Y",Worksheet!$O$54,Worksheet!$L$54) -> 700 | K30: =IF(Worksheet!$C$5="Y",Worksheet!$O$55,Worksheet!$L$55) -> 650 | Q30: =IF(Worksheet!$C$5="Y",Worksheet!$O$56,Worksheet!$L$56) -> 845
E31: Get in and out of your Sierra with ease with these stylish 4-inch Round Assist Steps. | J31: Get in and out of your Sierra with ease with these stylish 4-inch Round Assist Steps. | P31: Get in and out of your Sierra with ease with these stylish Off-Road Step Bars.
C36: Price includes installation where applicable. Tax is additional. Pricing is subject to change and final pricing based on VIN. Not all accessories are available for all models/trims. Images are representations of product and actual product could vary.
C38: =VLOOKUP(Worksheet!F1,CustRecs!E:F,2,FALSE) -> NYLE MAXWELL GMC | L38: Customer Name:
C39: =VLOOKUP(Worksheet!F1,CustRecs!E:J,3,FALSE) -> 3000 NORTH I-35
C40: =CONCATENATE((VLOOKUP(Worksheet!F1,CustRecs!E:H,4,FALSE)),", ",(VLOOKUP(Worksheet!F1,CustRecs!E:I,5,FALSE))," ",(VLOOKUP(Worksheet!F1,CustRecs!E:J,6,FALSE))) -> ROUND ROCK, TX 78681 | L40: VIN/Stock #:
K42: Customer Signature:
D43: I am excited and agree to purchase the above indicated GMC Accessories. | Q43: Date
K44: Salesperson Signature:
D45: I have been offered GMC Accessories, but at this time I decline to purchase any for my vehicle. I understand that any non-GMC Accessories installed on my vehicle may affect my warranty. | Q45: Date
K46: Manager Signature:
Q47: Date

Sheet Sierra Ext-Int
C1: S I E R R A
G2: MIX AND MATCH THE GMC ACCESSORIES THAT WORK BEST FOR YOU.
E8: =Worksheet!$D$60 -> PREM. FRONT FLOOR LINERS | J8: =Worksheet!$D$61 -> UNDERSEAT STORAGE | P8: =Worksheet!$D$62 -> FRONT CONSOLE ORGANIZER
F9: =IF(Worksheet!$C$5="Y",Worksheet!$O$60,Worksheet!$L$60) -> 110 | K9: =IF(Worksheet!$C$5="Y",Worksheet!$O$61,Worksheet!$L$61) -> 230 | Q9: =IF(Worksheet!$C$5="Y",Worksheet!$O$62,Worksheet!$L$62) -> 60
E10: Precision designed for maximum carpet coverage. They feature textures and patterns to enhance foot traction to provide exceptional channeling for dirt, water, snow or mud. | J10: Contain, organize and conceal items under the rear seat of your Sierra Double Cab or Crew Cab with this durable molded plastic Rear Underseat Storage Organizer. | P10: Make better use of the front center console storage bin in your Sierra with this removable Front Floor Console Organizer.
E15: =Worksheet!$D$63 -> CHROME DOOR HANDLES | J15: =Worksheet!$D$64 -> CHROME MIRROR COVERS | P15: =Worksheet!$D$65 -> CHROME EXHAUST TIP
F16: =IF(Worksheet!$C$5="Y",Worksheet!$O$63,Worksheet!$L$63) -> 185 | G16: FRONT/REAR | K16: =IF(Worksheet!$C$5="Y",Worksheet!$O$64,Worksheet!$L$64) -> 150 | Q16: =IF(Worksheet!$C$5="Y",Worksheet!$O$65,Worksheet!$L$65) -> 135
E17: Give your Sierra a stylish and personalized look with these attractive Chrome Door Handles. | J17: Give your Sierra a stylish and personalized look with these Outside Rear View Mirror Covers in Chrome. | P17: Add a sporty appearance to your Sierra with these dual-walled, angle cut exhaust tips.
E22: =Worksheet!$D$66 -> WHEEL HOUSE LINER | J22: =Worksheet!$D$67 -> MOLDED SPLASH GUARDS - FRONT | P22: =Worksheet!$D$68 -> MOLDED SPLASH GUARDS - REAR
F23: =IF(Worksheet!$C$5="Y",Worksheet!$O$66,Worksheet!$L$66) -> 170 | K23: =IF(Worksheet!$C$5="Y",Worksheet!$O$67,Worksheet!$L$67) -> 140 | Q23: =IF(Worksheet!$C$5="Y",Worksheet!$O$68,Worksheet!$L$68) -> 90
E24: Help protect the rear wheel house of your Sierra from damage caused by rocks, dirt, salt and road debris with this set of Rear Wheel House Liners. | J24: Help protect your Sierra from tire splash and mud with these Molded Front Splash Guards that fit directly behind your front wheels. | P24: Help protect your Sierra from tire splash and mud with these Molded Rear Splash Guards that fit directly behind your rear wheels.
E29: =Worksheet!$D$69 -> SIDE WINDOW WEATHER DEFLECTORS | J29: =Worksheet!$D$70 -> CHROME TOW HOOKS - LD ONLY | P29: =Worksheet!$D$71 -> CHROME BODYSIDE MOLDING
F30: =IF(Worksheet!$C$5="Y",Worksheet!$O$69,Worksheet!$L$69) -> 145 | K30: =IF(Worksheet!$C$5="Y",Worksheet!$O$70,Worksheet!$L$70) -> 290 | Q30: =IF(Worksheet!$C$5="Y",Worksheet!$O$71,Worksheet!$L$71) -> 280
E31: These custom-molded deflectors let fresh air in while helping to keep rain sleet and snow out. Plus they help reduce wind noise and sunlight glare. | J31: Add functionality and enhance the appearance with Recovery Hooks. These front hooks are for vehicle recovery only. | P31: Add accent styling and protection to your Sierra with this Bodyside Molding Package.
C36: Price includes installation where applicable. Tax is additional. Pricing is subject to change and final pricing based on VIN. Not all accessories are available for all models/trims. Images are representations of product and actual product could vary.
C38: =VLOOKUP(Worksheet!F1,CustRecs!E:F,2,FALSE) -> NYLE MAXWELL GMC | L38: Customer Name:
C39: =VLOOKUP(Worksheet!F1,CustRecs!E:J,3,FALSE) -> 3000 NORTH I-35
C40: =CONCATENATE((VLOOKUP(Worksheet!F1,CustRecs!E:H,4,FALSE)),", ",(VLOOKUP(Worksheet!F1,CustRecs!E:I,5,FALSE))," ",(VLOOKUP(Worksheet!F1,CustRecs!E:J,6,FALSE))) -> ROUND ROCK, TX 78681 | L40: VIN/Stock #:
K42: Customer Signature:
D43: I am excited and agree to purchase the above indicated GMC Accessories. | Q43: Date
K44: Salesperson Signature:
D45: I have been offered GMC Accessories, but at this time I decline to purchase any for my vehicle. I understand that any non-GMC Accessories installed on my vehicle may affect my warranty. | Q45: Date
K46: Manager Signature:
Q47: Date

Sheet Sierra Elec-Trailering-HD
C1: S I E R R A
G2: MIX AND MATCH THE GMC ACCESSORIES THAT WORK BEST FOR YOU.
E8: =Worksheet!$D$75 -> KICKER 200/400 WATT SUB & AMP | J8: =Worksheet!$D$76 -> REMOTE START | P8: =Worksheet!$D$77 -> CAMERA SYSTEM
F9: =IF(Worksheet!$C$5="Y",Worksheet!$O$75,Worksheet!$L$75) -> 1209 | K9: =IF(Worksheet!$C$5="Y",Worksheet!$O$76,Worksheet!$L$76) -> 425 | Q9: =IF(Worksheet!$C$5="Y",Worksheet!$O$77,Worksheet!$L$77) -> 1249
E10: This audio system duplicates the musical accuracy of a live concert experiences minus the crowds. It adds big-bass subwoofer punch in a small space. | J10: Great for starting, pre-warming or pre-cooling your vehicle. Seamlessly integrated with your vehicle's anti-theft and remote keyless entry systems. | P10: Make trailering easier on your truck with this Trailering Camera System by EchoMaster®. For the Sierra MYLINK 4" and 8" Screens.
E15: =Worksheet!$D$78 -> TRAILERING MIRRORS - BLACK | J15: =Worksheet!$D$79 -> TRAILERING MIRRORS - CHROME | P15: =Worksheet!$D$80 -> BRAKE CONTROLLER PACKAGE
F16: =IF(Worksheet!$C$5="Y",Worksheet!$O$78,Worksheet!$L$78) -> 1095 | K16: =IF(Worksheet!$C$5="Y",Worksheet!$O$79,Worksheet!$L$79) -> 1195 | Q16: =IF(Worksheet!$C$5="Y",Worksheet!$O$80,Worksheet!$L$80) -> 145
E17: Improve the rearward field of vision with mirrors that manually extend outward to create a wider field of vision. Perfect for maneuvering a trailer or camper.* | J17: Improve the rearward field of vision with mirrors that manually extend outward to create a wider field of vision. Perfect for maneuvering a trailer or camper.* | P17: Stop when you need to with CURT® brake controllers that are designed to help bring your vehicle and attached trailer to a highly responsive smooth stop.
E22: =Worksheet!$D$81 -> DOUBLE LOCK EZr GOOSENECK HITCH PKG | J22: =Worksheet!$D$82 -> FIFTH WHEEL HITCH PKG (STANDARD LEGS) | P22: =Worksheet!$D$83 -> FIFTH WHEEL HITCH PKG (ROLLER LEGS)
F23: =IF(Worksheet!$C$5="Y",Worksheet!$O$81,Worksheet!$L$81) -> 749 | K23: =IF(Worksheet!$C$5="Y",Worksheet!$O$82,Worksheet!$L$82) -> 1279 | Q23: =IF(Worksheet!$C$5="Y",Worksheet!$O$83,Worksheet!$L$83) -> 1739
E24: Tow heavy loads confidently with your Sierra HD using a Chevrolet Gooseneck Hitch Pkg. Carefully review the trailering section of the Owner’s Manual. | J24: 7-Way Electrical Extension by CURT® Manufacturing, 20,000 lb. Capacity. Required and optional equipment may vary depending on your vehicle. | P24: 7-Way Electrical Extension by CURT® Manufacturing, 20,000 lb. Capacity. Required and optional equipment may vary depending on your vehicle.
E29: =Worksheet!$D$84 -> UNDERBODY SHIELD | J29: =Worksheet!$D$85 -> FOG LAMPS | P29: =Worksheet!$D$86 -> CAT-BACK EXHAUST SYSTEM
F30: =IF(Worksheet!$C$5="Y",Worksheet!$O$84,Worksheet!$L$84) -> 300 | K30: =IF(Worksheet!$C$5="Y",Worksheet!$O$85,Worksheet!$L$85) -> 1195 | Q30: =IF(Worksheet!$C$5="Y",Worksheet!$O$86,Worksheet!$L$86) -> 1299
E31: Help protect the underside of your vehicle from road debris that can harm key mechanical components. It’s an important feature to have especially for driving off-road. | J31: Enhance off-road driving and illuminate the area in front of your Sierra 1500 with this Off-Road, Front Roof Mounted Lamp. For use with or without T3U Fog Lamps. | P31: This system by Borla® provides maximum performance and the right sound enhancements at all RPMs for your Sierra 1500. Must add Associated Accessories exhaust tips by Borla® purchased separately.
C36: Price includes installation where applicable. Tax is additional. Pricing is subject to change and final pricing based on VIN. Not all accessories are available for all models/trims. Images are representations of product and actual product could vary.
C38: =VLOOKUP(Worksheet!F1,CustRecs!E:F,2,FALSE) -> NYLE MAXWELL GMC | L38: Customer Name:
C39: =VLOOKUP(Worksheet!F1,CustRecs!E:J,3,FALSE) -> 3000 NORTH I-35
C40: =CONCATENATE((VLOOKUP(Worksheet!F1,CustRecs!E:H,4,FALSE)),", ",(VLOOKUP(Worksheet!F1,CustRecs!E:I,5,FALSE))," ",(VLOOKUP(Worksheet!F1,CustRecs!E:J,6,FALSE))) -> ROUND ROCK, TX 78681 | L40: VIN/Stock #:
K42: Customer Signature:
D43: I am excited and agree to purchase the above indicated GMC Accessories. | Q43: Date
K44: Salesperson Signature:
D45: I have been offered GMC Accessories, but at this time I decline to purchase any for my vehicle. I understand that any non-GMC Accessories installed on my vehicle may affect my warranty. | Q45: Date
K46: Manager Signature:
Q47: Date

Sheet Yukon
C1: Y U K O N
G2: MIX AND MATCH THE GMC ACCESSORIES THAT WORK BEST FOR YOU.
E8: =Worksheet!$D$90 -> 6 INCH CHROME STEPS | J8: =Worksheet!$D$91 -> MOLDED HOOD PROTECTOR | P8: =Worksheet!$D$92 -> CHROME DOOR HANDLES
F9: =IF(Worksheet!$C$5="Y",Worksheet!$O$90,Worksheet!$L$90) -> 750 | K9: =IF(Worksheet!$C$5="Y",Worksheet!$O$91,Worksheet!$L$91) -> 119 | Q9: =IF(Worksheet!$C$5="Y",Worksheet!$O$92,Worksheet!$L$92) -> 185
E10: 6-inch Assist Steps with black textured step pads make it easier to get in and out. Chrome finish adds great style and excellent corrosion protection. | J10: Deflect road debris and insects while helping to shield the hood from stone damage with this custom-designed Molded Hood Protector. | P10: These Chrome Door Handles replace the production door handles to give your Yukon a stylish and personalized look
E15: =Worksheet!$D$93 -> ROOF RACK CROSS RAILS | J15: =Worksheet!$D$94 -> BODYSIDE MOLDING | P15: =Worksheet!$D$95 -> GRILLE
F16: =IF(Worksheet!$C$5="Y",Worksheet!$O$93,Worksheet!$L$93) -> 250 | K16: =IF(Worksheet!$C$5="Y",Worksheet!$O$94,Worksheet!$L$94) -> 280 | Q16: =IF(Worksheet!$C$5="Y",Worksheet!$O$95,Worksheet!$L$95) -> 645
E17: These stylish cross rails attach to the factory Roof Rack Side Rails. They utilize the industry-standard T-slot attachments. | J17: Add a finished look to the exterior of your Yukon with this Front and Rear Side Door Bodyside Molding Package. | P17: Add a distinctive appearance to your vehicle with a Grille specially designed for Yukon
E22: =Worksheet!$D$96 -> CHROME MIRROR COVERS | J22: =Worksheet!$D$97 -> CARGO NET | P22: =Worksheet!$D$98 -> ALL WEATHER FLOOR MATS
F23: =IF(Worksheet!$C$5="Y",Worksheet!$O$96,Worksheet!$L$96) -> 150 | K23: =IF(Worksheet!$C$5="Y",Worksheet!$O$97,Worksheet!$L$97) -> 60 | Q23: =IF(Worksheet!$C$5="Y",Worksheet!$O$98,Worksheet!$L$98) -> 90
E24: Make a statement with chrome Outside Rearview Mirror Covers | J24: Secure items in your vehicle with these utility restraint nettings. This black envelope style cargo net attaches to the sides of the cargo area. | P24: These Premium All-Weather Floor Mats conform to the vehicle's contours, while nibs on the back help hold them in place.
E29: =Worksheet!$D$99 -> CENTER CONSOLE ORGANIZER | J29: =Worksheet!$D$100 -> CENTER CONSOLE TOTE | P29: =Worksheet!$D$101 -> CARGO SECURITY SHADE
F30: =IF(Worksheet!$C$5="Y",Worksheet!$O$99,Worksheet!$L$99) -> 60 | K30: =IF(Worksheet!$C$5="Y",Worksheet!$O$100,Worksheet!$L$100) -> 45 | Q30: =IF(Worksheet!$C$5="Y",Worksheet!$O$101,Worksheet!$L$101) -> 205
E31: Make better use of the front center console storage bin with this removable Front Floor Console Organizer. Designed for an exact fit. | J31: This Front Center Console Expandable Tote hangs in the front console like a file folder. | P31: Conceal your possessions using this retractable Cargo Shade. Tension rod extensions allow for easy installation and removal.
C36: Price includes installation where applicable. Tax is additional. Pricing is subject to change and final pricing based on VIN. Not all accessories are available for all models/trims. Images are representations of product and actual product could vary.
C38: =VLOOKUP(Worksheet!F1,CustRecs!E:F,2,FALSE) -> NYLE MAXWELL GMC | L38: Customer Name:
C39: =VLOOKUP(Worksheet!F1,CustRecs!E:J,3,FALSE) -> 3000 NORTH I-35
C40: =CONCATENATE((VLOOKUP(Worksheet!F1,CustRecs!E:H,4,FALSE)),", ",(VLOOKUP(Worksheet!F1,CustRecs!E:I,5,FALSE))," ",(VLOOKUP(Worksheet!F1,CustRecs!E:J,6,FALSE))) -> ROUND ROCK, TX 78681 | L40: VIN/Stock #:
K42: Customer Signature:
D43: I am excited and agree to purchase the above indicated GMC Accessories. | Q43: Date
K44: Salesperson Signature:
D45: I have been offered GMC Accessories, but at this time I decline to purchase any for my vehicle. I understand that any non-GMC Accessories installed on my vehicle may affect my warranty. | Q45: Date
K46: Manager Signature:
Q47: Date

Sheet Terrain
C1: T E R R A I N
G2: MIX AND MATCH THE GMC ACCESSORIES THAT WORK BEST FOR YOU.
E8: =Worksheet!$D$105 -> ALL WEATHER FLOOR MATS | J8: =Worksheet!$D$106 -> UNIVERSAL TABLET HOLDER | P8: =Worksheet!$D$107 -> MOLDED SPLASH GUARDS
F9: =IF(Worksheet!$C$5="Y",Worksheet!$O$105,Worksheet!$L$105) -> 70 | K9: =IF(Worksheet!$C$5="Y",Worksheet!$O$106,Worksheet!$L$106) -> 115 | Q9: =IF(Worksheet!$C$5="Y",Worksheet!$O$107,Worksheet!$L$107) -> 100
E10: These Premium All-Weather Front Floor Mats in Black with the GMC logo feature a custom deep-ribbed pattern to collect rain, mud, snow and debris. | J10: Second-row passengers can add another dimension of convenience to using personal computer tablets on the road with a Universal Tablet Holder. | P10: Custom-designed Molded Rear Splash Guards in Charcoal fit directly behind the wheels to help protect against tire splash and mud.
E15: =Worksheet!$D$108 -> GRILLE | J15: =Worksheet!$D$109 -> ILLUMINATED DOOR SILL PLATES | P15: =Worksheet!$D$110 -> CARGO SECURITY SHADE
F16: =IF(Worksheet!$C$5="Y",Worksheet!$O$108,Worksheet!$L$108) -> 450 | K16: =IF(Worksheet!$C$5="Y",Worksheet!$O$109,Worksheet!$L$109) -> 395 | Q16: =IF(Worksheet!$C$5="Y",Worksheet!$O$110,Worksheet!$L$110) -> 145
E17: Add a dramatic sense of style and refinement to your Terrain with this bright, bold Chrome Grille. | J17: Add a stylish accent to the entry area of your vehicle with Illuminated Door Sill Plates. Not available on Denali. | P17: Conceal your possessions in the cargo area of your Terrain with this retractable Cargo Security Shade in Black.
E22: =Worksheet!$D$111 -> HITCH TRAILERING PACKAGE | J22: =Worksheet!$D$112 -> CARGO ALL WEATHER MAT | P22: =Worksheet!$D$113 -> CARGO NET
F23: =IF(Worksheet!$C$5="Y",Worksheet!$O$111,Worksheet!$L$111) -> 375 | K23: =IF(Worksheet!$C$5="Y",Worksheet!$O$112,Worksheet!$L$112) -> 70 | Q23: =IF(Worksheet!$C$5="Y",Worksheet!$O$113,Worksheet!$L$113) -> 65
E24: This Hitch Trailering Package features a hitch with a standard 1.25’’receiver. A harness with 4-pin connector is also included. | J24: Help protect the carpet in the cargo area of your Terrain from rain, snow, mud and other debris. | P24: Keep items secure in the rear of Terrain with this Cargo Net in Black. It attaches easily to the sides of the vehicle cargo area.
E29: =Worksheet!$D$114 -> ROOF RACK CROSS RAILS | J29: =Worksheet!$D$115 -> CARGO AREA CLOSE OUT PANEL | P29: =Worksheet!$D$116 -> CHROME DOOR HANDLES
F30: =IF(Worksheet!$C$5="Y",Worksheet!$O$114,Worksheet!$L$114) -> 195 | K30: =IF(Worksheet!$C$5="Y",Worksheet!$O$115,Worksheet!$L$115) -> 135 | Q30: =IF(Worksheet!$C$5="Y",Worksheet!$O$116,Worksheet!$L$116) -> 185
E31: Add function and style to the factory luggage rails of your Terrain with this Roof Rack Cross Rail Package in Black. | J31: Eliminate any open space between the seats and the cargo area of your Terrain with this Cargo Area Close Out in Black. | P31: Add a luxurious touch to your Terrain with these stylish Front and Rear Door Handles in Chrome.
C36: Price includes installation where applicable. Tax is additional. Pricing is subject to change and final pricing based on VIN. Not all accessories are available for all models/trims. Images are representations of product and actual product could vary.
C38: =VLOOKUP(Worksheet!F1,CustRecs!E:F,2,FALSE) -> NYLE MAXWELL GMC | L38: Customer Name:
C39: =VLOOKUP(Worksheet!F1,CustRecs!E:J,3,FALSE) -> 3000 NORTH I-35
C40: =CONCATENATE((VLOOKUP(Worksheet!F1,CustRecs!E:H,4,FALSE)),", ",(VLOOKUP(Worksheet!F1,CustRecs!E:I,5,FALSE))," ",(VLOOKUP(Worksheet!F1,CustRecs!E:J,6,FALSE))) -> ROUND ROCK, TX 78681 | L40: VIN/Stock #:
K42: Customer Signature:
D43: I am excited and agree to purchase the above indicated GMC Accessories. | Q43: Date
K44: Salesperson Signature:
D45: I have been offered GMC Accessories, but at this time I decline to purchase any for my vehicle. I understand that any non-GMC Accessories installed on my vehicle may affect my warranty. | Q45: Date
K46: Manager Signature:
Q47: Date

Sheet Veh8 (hidden)
C1: ACADIA
G2: MIX AND MATCH THE GMC ACCESSORIES THAT WORK BEST FOR YOU.
E8: =Worksheet!$D$120 -> 0 | J8: =Worksheet!$D$121 -> 0 | P8: =Worksheet!$D$122 -> 0
F9: =IF(Worksheet!$C$5="Y",Worksheet!$O$120,Worksheet!$L$120) ->  | K9: =IF(Worksheet!$C$5="Y",Worksheet!$O$121,Worksheet!$L$121) ->  | Q9: =IF(Worksheet!$C$5="Y",Worksheet!$O$122,Worksheet!$L$122) -> 
E10: Start | J10: Start | P10: Start
E15: =Worksheet!$D$123 -> 0 | J15: =Worksheet!$D$124 -> 0 | P15: =Worksheet!$D$125 -> 0
F16: =IF(Worksheet!$C$5="Y",Worksheet!$O$123,Worksheet!$L$123) ->  | K16: =IF(Worksheet!$C$5="Y",Worksheet!$O$124,Worksheet!$L$124) ->  | Q16: =IF(Worksheet!$C$5="Y",Worksheet!$O$125,Worksheet!$L$125) -> 
E17: Start | J17: Start | P17: Start
E22: =Worksheet!$D$126 -> 0 | J22: =Worksheet!$D$127 -> 0 | P22: =Worksheet!$D$128 -> 0
F23: =IF(Worksheet!$C$5="Y",Worksheet!$O$126,Worksheet!$L$126) ->  | K23: =IF(Worksheet!$C$5="Y",Worksheet!$O$127,Worksheet!$L$127) ->  | Q23: =IF(Worksheet!$C$5="Y",Worksheet!$O$128,Worksheet!$L$128) -> 
E24: Start | J24: Start | P24: Start
E29: =Worksheet!$D$129 -> 0 | J29: =Worksheet!$D$130 -> 0 | P29: =Worksheet!$D$131 -> 0
F30: =IF(Worksheet!$C$5="Y",Worksheet!$O$129,Worksheet!$L$129) ->  | K30: =IF(Worksheet!$C$5="Y",Worksheet!$O$130,Worksheet!$L$130) ->  | Q30: =IF(Worksheet!$C$5="Y",Worksheet!$O$131,Worksheet!$L$131) -> 
E31: Start | J31: Start | P31: Start
C36: Price includes installation where applicable. Tax is additional. Pricing is subject to change and final pricing based on VIN. Not all accessories are available for all models/trims. Images are representations of product and actual product could vary.
C38: =VLOOKUP(Worksheet!F1,CustRecs!E:F,2,FALSE) -> NYLE MAXWELL GMC | L38: Customer Name:
C39: =VLOOKUP(Worksheet!F1,CustRecs!E:J,3,FALSE) -> 3000 NORTH I-35
C40: =CONCATENATE((VLOOKUP(Worksheet!F1,CustRecs!E:H,4,FALSE)),", ",(VLOOKUP(Worksheet!F1,CustRecs!E:I,5,FALSE))," ",(VLOOKUP(Worksheet!F1,CustRecs!E:J,6,FALSE))) -> ROUND ROCK, TX 78681 | L40: VIN/Stock #:
K42: Customer Signature:
D43: I am excited and agree to purchase the above indicated GMC Accessories. | Q43: Date
K44: Salesperson Signature:
D45: I have been offered GMC Accessories, but at this time I decline to purchase any for my vehicle. I understand that any non-GMC Accessories installed on my vehicle may affect my warranty. | Q45: Date
K46: Manager Signature:
Q47: Date

Sheet Veh9 (hidden)
C1: ACADIA
G2: MIX AND MATCH THE GMC ACCESSORIES THAT WORK BEST FOR YOU.
E8: =Worksheet!$D$135 -> 0 | J8: =Worksheet!$D$136 -> 0 | P8: =Worksheet!$D$137 -> 0
F9: =IF(Worksheet!$C$5="Y",Worksheet!$O$135,Worksheet!$L$135) ->  | K9: =IF(Worksheet!$C$5="Y",Worksheet!$O$136,Worksheet!$L$136) ->  | Q9: =IF(Worksheet!$C$5="Y",Worksheet!$O$137,Worksheet!$L$137) -> 
E10: Start | J10: Start | P10: Start
E15: =Worksheet!$D$138 -> 0 | J15: =Worksheet!$D$139 -> 0 | P15: =Worksheet!$D$140 -> 0
F16: =IF(Worksheet!$C$5="Y",Worksheet!$O$138,Worksheet!$L$138) ->  | K16: =IF(Worksheet!$C$5="Y",Worksheet!$O$139,Worksheet!$L$139) ->  | Q16: =IF(Worksheet!$C$5="Y",Worksheet!$O$140,Worksheet!$L$140) -> 
E17: Start | J17: Start | P17: Start
E22: =Worksheet!$D$141 -> 0 | J22: =Worksheet!$D$142 -> 0 | P22: =Worksheet!$D$143 -> 0
F23: =IF(Worksheet!$C$5="Y",Worksheet!$O$141,Worksheet!$L$141) ->  | K23: =IF(Worksheet!$C$5="Y",Worksheet!$O$142,Worksheet!$L$142) ->  | Q23: =IF(Worksheet!$C$5="Y",Worksheet!$O$143,Worksheet!$L$143) -> 
E24: Start | J24: Start | P24: Start
E29: =Worksheet!$D$144 -> 0 | J29: =Worksheet!$D$145 -> 0 | P29: =Worksheet!$D$146 -> 0
F30: =IF(Worksheet!$C$5="Y",Worksheet!$O$144,Worksheet!$L$144) ->  | K30: =IF(Worksheet!$C$5="Y",Worksheet!$O$145,Worksheet!$L$145) ->  | Q30: =IF(Worksheet!$C$5="Y",Worksheet!$O$146,Worksheet!$L$146) -> 
E31: Start | J31: Start | P31: Start
C36: Price includes installation where applicable. Tax is additional. Pricing is subject to change and final pricing based on VIN. Not all accessories are available for all models/trims. Images are representations of product and actual product could vary.
C38: =VLOOKUP(Worksheet!F1,CustRecs!E:F,2,FALSE) -> NYLE MAXWELL GMC | L38: Customer Name:
C39: =VLOOKUP(Worksheet!F1,CustRecs!E:J,3,FALSE) -> 3000 NORTH I-35
C40: =CONCATENATE((VLOOKUP(Worksheet!F1,CustRecs!E:H,4,FALSE)),", ",(VLOOKUP(Worksheet!F1,CustRecs!E:I,5,FALSE))," ",(VLOOKUP(Worksheet!F1,CustRecs!E:J,6,FALSE))) -> ROUND ROCK, TX 78681 | L40: VIN/Stock #:
K42: Customer Signature:
D43: I am excited and agree to purchase the above indicated GMC Accessories. | Q43: Date
K44: Salesperson Signature:
D45: I have been offered GMC Accessories, but at this time I decline to purchase any for my vehicle. I understand that any non-GMC Accessories installed on my vehicle may affect my warranty. | Q45: Date
K46: Manager Signature:
Q47: Date

Sheet Worksheet
F1: 223149 | H1: =VLOOKUP(F1,CustRecs!E:F,2,FALSE) -> NYLE MAXWELL GMC | Y1: Y
Y2: N
M4: RVD's
C5: Y | D5: MSRP (Y/N) | L5: =Sheet6!A2 -> Acadia | M5: =VLOOKUP(L5,Sheet6!A2:B8,2,FALSE) -> 83 | T5: PROFIT CENTER
C6: 0.1 | D6: Parts Mark-Up | L6: =Sheet6!A3 -> Canyon | M6: =VLOOKUP(L6,Sheet6!A3:B9,2,FALSE) -> 81
C7: 0.23 | D7: Sales Mark-Up | L7: =Sheet6!A4 -> Sierra K2XX HD | M7: =VLOOKUP(L7,Sheet6!A4:B10,2,FALSE) -> 70 | R7: CHANGE ALL | T7: Est. Acc. Credit | U7: Est. Parts Dept Profit | V7: Est. Service Dept Profit | W7: Est. Sales Dept. Profit | X7: Est. Total Profit Opportunity
C8: 100 | D8: Labor Rate | L8: =Sheet6!A5 -> Sierra K2XX LD | M8: =VLOOKUP(L8,Sheet6!A5:B11,2,FALSE) -> 138
C9: 0.5 | D9: Labor Gross Profit % | L9: =Sheet6!A6 -> Terrain | M9: =VLOOKUP(L9,Sheet6!A6:B12,2,FALSE) -> 78 | R9: % With Acc. | T9: =SUM(T27,T42,T57,T72,T87,T102,T117,T132,T147) -> 795090.35 | U9: =SUM(U27,U42,U57,U72,U87,U102,U117,U132,U147) -> 79509.035 | V9: 102550 | W9: 158952.615 | X9: 341011.65
L10: =Sheet6!A7 -> Yukon K2XX | M10: =VLOOKUP(L10,Sheet6!A7:B13,2,FALSE) -> 92
L11: =Sheet6!A8 -> Yukon XL K2XX | M11: =VLOOKUP(L11,Sheet6!A8:B14,2,FALSE) -> 47 | R11: 0.2
O12: =RVD!AA1 -> CYTD EST. RVD's through August 2016
B14: Vehicle | C14: PN | D14: Description | E14: Dealer Cost | F14: MSRP | G14: Install Time | H14: Parts Dept Profit | I14: Labor Revenue | J14: Service Dept Profit | K14: Cost To Sales (Incl Labor) | L14: Dealership Retail Price (Incl Labor) | M14: Sales Profit (Dlr Retail) | N14: Total Dlr Profit (Dlr Retail) | O14: MSRP (Incl Labor) | P14: Sales Profit (MSRP) | Q14: Total Dlr Profit (MSRP) | R14: % With Acc. | S14: # of Units with Acc. | T14: Est. Acc. Credit | U14: Total Parts Dept Profit | V14: Total Service Profit | W14: Total Sales Dept Profit | X14: Total Profit Opp
B15: ACADIA | C15: 23398828 | D15: INTEGRATED CARGO LINER | E15: =VLOOKUP(C15,PriceFile!B:F,5,FALSE) -> 93.75 | F15: =VLOOKUP(C15,PriceFile!$B:$D,3,FALSE) -> 125 | G15: =VLOOKUP(C15,Labor!$A:$B,2,FALSE) -> 0.1 | H15: =(E15*(SUM(1+$C$6))-E15) -> 9.375 | I15: =G15*$C$8 -> 10 | J15: =G15*$C$8*$C$9 -> 5 | K15: =SUM(E15+H15+I15) -> 113.125 | L15: =IF($C$5="Y","",(SUM(E15+H15)*(1+$C$7))+I15) ->  | M15: =IF($C$5="Y","",L15-K15) ->  | N15: =IF($C$5="Y","",SUM(H15+J15+M15)) ->  | O15: =IF($C$5="n","",F15+I15) -> 135 | P15: =IF($C$5="n","",O15-K15) -> 21.875 | Q15: =IF($C$5="n","",SUM(H15+J15+P15)) -> 36.25 | R15: =$R$11 -> 0.2 | S15: =ROUNDUP(($M$5*R15),0) -> 17 | T15: =S15*E15 -> 1593.75 | U15: =S15*H15 -> 159.375 | V15: =S15*J15 -> 85 | W15: =IF($C$5="Y",S15*P15,S15*M15) -> 371.875 | X15: =IF($C$5="Y",S15*Q15,S15*N15) -> 616.25
C16: 23408416 | D16: REAR SEAT ENTERTAIMENT SYSTEM | E16: =VLOOKUP(C16,PriceFile!B:F,5,FALSE) -> 1496.25 | F16: =VLOOKUP(C16,PriceFile!$B:$D,3,FALSE) -> 1995 | G16: =VLOOKUP(C16,Labor!$A:$B,2,FALSE) -> 1.5 | H16: 149.625 | I16: 150 | J16: 75 | K16: 1795.875 | O16: 2145 | P16: 349.125 | Q16: 573.75 | R16: =$R$11 -> 0.2 | S16: =ROUNDUP(($M$5*R16),0) -> 17 | T16: 25436.25 | U16: =S16*H16 -> 2543.625 | V16: =S16*J16 -> 1275 | W16: 5935.125 | X16: 9753.75
C17: 84080694 | D17: WIRELESS CHARGING STATION | E17: =VLOOKUP(C17,PriceFile!B:F,5,FALSE) -> 168.75 | F17: =VLOOKUP(C17,PriceFile!$B:$D,3,FALSE) -> 225 | G17: =VLOOKUP(C17,Labor!$A:$B,2,FALSE) -> 1.5 | H17: 16.875 | I17: 150 | J17: 75 | K17: 335.625 | O17: 375 | P17: 39.375 | Q17: 131.25 | R17: 0.2 | S17: 17 | T17: 2868.75 | U17: 286.875 | V17: 1275 | W17: 669.375 | X17: 2231.25
C18: 23319090 | D18: REMOTE START | E18: =VLOOKUP(C18,PriceFile!B:F,5,FALSE) -> 206.25 | F18: =VLOOKUP(C18,PriceFile!$B:$D,3,FALSE) -> 275 | G18: =VLOOKUP(C18,Labor!$A:$B,2,FALSE) -> 0.5 | H18: 20.625 | I18: 50 | J18: 25 | K18: 276.875 | O18: 325 | P18: 48.125 | Q18: 93.75 | R18: 0.2 | S18: 17 | T18: 3506.25 | U18: 350.625 | V18: 425 | W18: 818.125 | X18: 1593.75
C19: 84041632 | D19: ASSIST STEPS | E19: =VLOOKUP(C19,PriceFile!B:F,5,FALSE) -> 408.75 | F19: =VLOOKUP(C19,PriceFile!$B:$D,3,FALSE) -> 545 | G19: =VLOOKUP(C19,Labor!$A:$B,2,FALSE) -> 1.5 | H19: 40.875 | I19: 150 | J19: 75 | K19: 599.625 | O19: 695 | P19: 95.375 | Q19: 211.25 | R19: 0.2 | S19: 17 | T19: 6948.75 | U19: 694.875 | V19: 1275 | W19: 1621.375 | X19: 3591.25
C20: 23372598 | D20: GRILLE INSERT | E20: =VLOOKUP(C20,PriceFile!B:F,5,FALSE) -> 273.75 | F20: =VLOOKUP(C20,PriceFile!$B:$D,3,FALSE) -> 365 | G20: =VLOOKUP(C20,Labor!$A:$B,2,FALSE) -> 0.5 | H20: 27.375 | I20: 50 | J20: 25 | K20: 351.125 | O20: 415 | P20: 63.875 | Q20: 116.25 | R20: 0.2 | S20: 17 | T20: 4653.75 | U20: 465.375 | V20: 425 | W20: 1085.875 | X20: 1976.25
C21: 23445242 | D21: CHROME MIRROR COVERS | E21: =VLOOKUP(C21,PriceFile!B:F,5,FALSE) -> 97.5 | F21: =VLOOKUP(C21,PriceFile!$B:$D,3,FALSE) -> 130 | G21: =VLOOKUP(C21,Labor!$A:$B,2,FALSE) -> 0.8 | H21: 9.75 | I21: 80 | J21: 40 | K21: 187.25 | O21: 210 | P21: 22.75 | Q21: 72.5 | R21: 0.2 | S21: 17 | T21: 1657.5 | U21: 165.75 | V21: 680 | W21: 386.75 | X21: 1232.5
C22: 23280747 | D22: CARGO SECURITY SHADE | E22: =VLOOKUP(C22,PriceFile!B:F,5,FALSE) -> 112.5 | F22: =VLOOKUP(C22,PriceFile!$B:$D,3,FALSE) -> 150 | G22: =VLOOKUP(C22,Labor!$A:$B,2,FALSE) -> 0.1 | H22: 11.25 | I22: 10 | J22: 5 | K22: 133.75 | O22: 160 | P22: 26.25 | Q22: 42.5 | R22: 0.2 | S22: 17 | T22: 1912.5 | U22: 191.25 | V22: 85 | W22: 446.25 | X22: 722.5
C23: 23443874 | D23: UNIVERSAL TABLET HOLDER | E23: =VLOOKUP(C23,PriceFile!B:F,5,FALSE) -> 71.25 | F23: =VLOOKUP(C23,PriceFile!$B:$D,3,FALSE) -> 95 | G23: =VLOOKUP(C23,Labor!$A:$B,2,FALSE) -> 0.2 | H23: 7.125 | I23: 20 | J23: 10 | K23: 98.375 | O23: 115 | P23: 16.625 | Q23: 33.75 | R23: 0.2 | S23: 17 | T23: 1211.25 | U23: 121.125 | V23: 170 | W23: 282.625 | X23: 573.75
C24: 84128105 | D24: ALL WEATHER FLOOR LINER | E24: =VLOOKUP(C24,PriceFile!B:F,5,FALSE) -> 82.5 | F24: =VLOOKUP(C24,PriceFile!$B:$D,3,FALSE) -> 110 | G24: =VLOOKUP(C24,Labor!$A:$B,2,FALSE) -> 0 | H24: 8.25 | I24: 0 | J24: 0 | K24: 90.75 | O24: 110 | P24: 19.25 | Q24: 27.5 | R24: 0.2 | S24: 17 | T24: 1402.5 | U24: 140.25 | V24: 0 | W24: 327.25 | X24: 467.5
C25: 84179602 | D25: SPORT PEDAL COVER | E25: =VLOOKUP(C25,PriceFile!B:F,5,FALSE) -> 93.75 | F25: =VLOOKUP(C25,PriceFile!$B:$D,3,FALSE) -> 125 | G25: =VLOOKUP(C25,Labor!$A:$B,2,FALSE) -> 1 | H25: 9.375 | I25: 100 | J25: 50 | K25: 203.125 | O25: 225 | P25: 21.875 | Q25: 81.25 | R25: 0.2 | S25: 17 | T25: 1593.75 | U25: 159.375 | V25: 850 | W25: 371.875 | X25: 1381.25
C26: 84114400 | D26: HITCH TRAILERING PACKAGE | E26: =VLOOKUP(C26,PriceFile!B:F,5,FALSE) -> 262.5 | F26: =VLOOKUP(C26,PriceFile!$B:$D,3,FALSE) -> 350 | G26: =VLOOKUP(C26,Labor!$A:$B,2,FALSE) -> 1 | H26: 26.25 | I26: 100 | J26: 50 | K26: 388.75 | O26: 450 | P26: 61.25 | Q26: 137.5 | R26: 0.2 | S26: 17 | T26: 4462.5 | U26: 446.25 | V26: 850 | W26: 1041.25 | X26: 2337.5
T27: =IFERROR((SUM(T15:T26)),0) -> 57247.5 | U27: =IFERROR((SUM(U15:U26)),0) -> 5724.75 | V27: =IFERROR((SUM(V15:V26)),0) -> 7395 | W27: =IFERROR((SUM(W15:W26)),0) -> 13357.75 | X27: =IFERROR((SUM(X15:X26)),0) -> 26477.5
B29: Vehicle | C29: PN | D29: Description | E29: Dealer Cost | F29: MSRP | G29: Install Time | H29: Parts Dept Profit | I29: Labor Revenue | J29: Service Dept Profit | K29: Cost To Sales | L29: Dealership Retail Price (Incl Labor) | M29: Sales Profit (Dlr Retail) | N29: Total Dlr Profit (Dlr Retail) | O29: MSRP (Incl Labor) | P29: Sales Profit (MSRP) | Q29: Total Dlr Profit (MSRP) | R29: % With Acc. | S29: # of Units with Acc. | T29: Est. Acc. Credit | U29: Total Parts Dept Profit | V29: Total Service Profit | W29: Total Sales Dept Profit | X29: Total Profit Opp
B30: CANYON | C30: 23321754 | D30: GRILLE | E30: =VLOOKUP(C30,PriceFile!B:F,5,FALSE) -> 371.25 | F30: =VLOOKUP(C30,PriceFile!$B:$D,3,FALSE) -> 495 | G30: =VLOOKUP(C30,Labor!$A:$B,2,FALSE) -> 1.5 | H30: =(E30*(SUM(1+$C$6))-E30) -> 37.125 | I30: =G30*$C$8 -> 150 | J30: =G30*$C$8*$C$9 -> 75 | K30: =SUM(E30+H30+I30) -> 558.375 | L30: =IF($C$5="Y","",(SUM(E30+H30)*(1+$C$7))+I30) ->  | M30: =IF($C$5="Y","",L30-K30) ->  | N30: =IF($C$5="Y","",SUM(H30+J30+M30)) ->  | O30: =IF($C$5="n","",F30+I30) -> 645 | P30: =IF($C$5="n","",O30-K30) -> 86.625 | Q30: =IF($C$5="n","",SUM(H30+J30+P30)) -> 198.75 | R30: =$R$11 -> 0.2 | S30: =ROUNDUP(($M$6*R30),0) -> 17 | T30: =S30*E30 -> 6311.25 | U30: =S30*H30 -> 631.125 | V30: =S30*J30 -> 1275 | W30: =IF($C$5="Y",S30*P30,S30*M30) -> 1472.625 | X30: =IF($C$5="Y",S30*Q30,S30*N30) -> 3378.75
C31: 23487381 | D31: REMOTE START | E31: =VLOOKUP(C31,PriceFile!B:F,5,FALSE) -> 206.25 | F31: =VLOOKUP(C31,PriceFile!$B:$D,3,FALSE) -> 275 | G31: =VLOOKUP(C31,Labor!$A:$B,2,FALSE) -> 0.5 | H31: 20.625 | I31: 50 | J31: 25 | K31: 276.875 | O31: 325 | P31: 48.125 | Q31: 93.75 | R31: 0.2 | S31: =ROUNDUP(($M$6*R31),0) -> 17 | T31: 3506.25 | U31: =S31*H31 -> 350.625 | V31: =S31*J31 -> 425 | W31: 818.125 | X31: 1593.75
C32: 22905647 | D32: 5-INCH CHROME ASSIST STEPS | E32: =VLOOKUP(C32,PriceFile!B:F,5,FALSE) -> 506.25 | F32: =VLOOKUP(C32,PriceFile!$B:$D,3,FALSE) -> 675 | G32: =VLOOKUP(C32,Labor!$A:$B,2,FALSE) -> 0.5 | H32: 50.625 | I32: 50 | J32: 25 | K32: 606.875 | O32: 725 | P32: 118.125 | Q32: 193.75 | R32: 0.2 | S32: 17 | T32: 8606.25 | U32: 860.625 | V32: 425 | W32: 2008.125 | X32: 3293.75
C33: 23255873 | D33: CHROME DOOR HANDLES | E33: =VLOOKUP(C33,PriceFile!B:F,5,FALSE) -> 108.75 | F33: =VLOOKUP(C33,PriceFile!$B:$D,3,FALSE) -> 145 | G33: =VLOOKUP(C33,Labor!$A:$B,2,FALSE) -> 0.4 | H33: 10.875 | I33: 40 | J33: 20 | K33: 159.625 | O33: 185 | P33: 25.375 | Q33: 56.25 | R33: 0.2 | S33: 17 | T33: 1848.75 | U33: 184.875 | V33: 340 | W33: 431.375 | X33: 956.25
C34: 23334324 | D34: SIDE WINDOW DEFLECTORS | E34: =VLOOKUP(C34,PriceFile!B:F,5,FALSE) -> 90 | F34: =VLOOKUP(C34,PriceFile!$B:$D,3,FALSE) -> 120 | G34: =VLOOKUP(C34,Labor!$A:$B,2,FALSE) -> 0.6 | H34: 9 | I34: 60 | J34: 30 | K34: 159 | O34: 180 | P34: 21 | Q34: 60 | R34: 0.2 | S34: 17 | T34: 1530 | U34: 153 | V34: 510 | W34: 357 | X34: 1020
C35: 84056628 | D35: FLOOR LINERS | E35: =VLOOKUP(C35,PriceFile!B:F,5,FALSE) -> 75 | F35: =VLOOKUP(C35,PriceFile!$B:$D,3,FALSE) -> 100 | G35: =VLOOKUP(C35,Labor!$A:$B,2,FALSE) -> 0 | H35: 7.5 | I35: 0 | J35: 0 | K35: 82.5 | O35: 100 | P35: 17.5 | Q35: 25 | R35: 0.2 | S35: 17 | T35: 1275 | U35: 127.5 | V35: 0 | W35: 297.5 | X35: 425
C36: 23258993 | D36: BEDLINER | E36: =VLOOKUP(C36,PriceFile!B:F,5,FALSE) -> 228.75 | F36: =VLOOKUP(C36,PriceFile!$B:$D,3,FALSE) -> 305 | G36: =VLOOKUP(C36,Labor!$A:$B,2,FALSE) -> 0.5 | H36: 22.875 | I36: 50 | J36: 25 | K36: 301.625 | O36: 355 | P36: 53.375 | Q36: 101.25 | R36: 0.2 | S36: 17 | T36: 3888.75 | U36: 388.875 | V36: 425 | W36: 907.375 | X36: 1721.25
C37: 23325903 | D37: SPORT BAR PACKAGE | E37: =VLOOKUP(C37,PriceFile!B:F,5,FALSE) -> 746.25 | F37: =VLOOKUP(C37,PriceFile!$B:$D,3,FALSE) -> 995 | G37: =VLOOKUP(C37,Labor!$A:$B,2,FALSE) -> 1.5 | H37: 74.625 | I37: 150 | J37: 75 | K37: 970.875 | O37: 1145 | P37: 174.125 | Q37: 323.75 | R37: 0.2 | S37: 17 | T37: 12686.25 | U37: 1268.625 | V37: 1275 | W37: 2960.125 | X37: 5503.75
C38: 19330066 | D38: HARD FOLDING TONNEAU COVER | E38: =VLOOKUP(C38,PriceFile!B:F,5,FALSE) -> 824 | F38: =VLOOKUP(C38,PriceFile!$B:$D,3,FALSE) -> 1030 | G38: =VLOOKUP(C38,Labor!$A:$B,2,FALSE) -> 0.3 | H38: 82.4 | I38: 30 | J38: 15 | K38: 936.4 | O38: 1060 | P38: 123.6 | Q38: 221 | R38: 0.2 | S38: 17 | T38: 14008 | U38: 1400.8 | V38: 255 | W38: 2101.2 | X38: 3757
C39: 19329976 | D39: LOW PROFILE TOOL BOX | E39: =VLOOKUP(C39,PriceFile!B:F,5,FALSE) -> 319.2 | F39: =VLOOKUP(C39,PriceFile!$B:$D,3,FALSE) -> 399 | G39: =VLOOKUP(C39,Labor!$A:$B,2,FALSE) -> 0.5 | H39: 31.92 | I39: 50 | J39: 25 | K39: 401.12 | O39: 449 | P39: 47.88 | Q39: 104.8 | R39: 0.2 | S39: 17 | T39: 5426.4 | U39: 542.64 | V39: 425 | W39: 813.96 | X39: 1781.6
C40: 84075521 | D40: TRAILERING PACKAGE | E40: =VLOOKUP(C40,PriceFile!B:F,5,FALSE) -> 198.75 | F40: =VLOOKUP(C40,PriceFile!$B:$D,3,FALSE) -> 265 | G40: =VLOOKUP(C40,Labor!$A:$B,2,FALSE) -> 0.8 | H40: 19.875 | I40: 80 | J40: 40 | K40: 298.625 | O40: 345 | P40: 46.375 | Q40: 106.25 | R40: 0.2 | S40: 17 | T40: 3378.75 | U40: 337.875 | V40: 680 | W40: 788.375 | X40: 1806.25
C41: 23278170 | D41: SPLASH GUARDS | E41: =VLOOKUP(C41,PriceFile!B:F,5,FALSE) -> 37.5 | F41: =VLOOKUP(C41,PriceFile!$B:$D,3,FALSE) -> 50 | G41: =VLOOKUP(C41,Labor!$A:$B,2,FALSE) -> 0.5 | H41: 3.75 | I41: 50 | J41: 25 | K41: 91.25 | O41: 100 | P41: 8.75 | Q41: 37.5 | R41: 0.2 | S41: 17 | T41: 637.5 | U41: 63.75 | V41: 425 | W41: 148.75 | X41: 637.5
T42: =IFERROR((SUM(T30:T41)),0) -> 63103.15 | U42: =IFERROR((SUM(U30:U41)),0) -> 6310.315 | V42: 6460 | W42: 13104.535 | X42: 25874.85
B44: Vehicle | C44: PN | D44: Description | E44: Dealer Cost | F44: MSRP | G44: Install Time | H44: Parts Dept Profit | I44: Labor Revenue | J44: Service Dept Profit | K44: Cost To Sales | L44: Dealership Retail Price (Incl Labor) | M44: Sales Profit (Dlr Retail) | N44: Total Dlr Profit (Dlr Retail) | O44: MSRP (Incl Labor) | P44: Sales Profit (MSRP) | Q44: Total Dlr Profit (MSRP) | R44: % With Acc. | S44: # of Units with Acc. | T44: Est. Acc. Credit | U44: Total Parts Dept Profit | V44: Total Service Profit | W44: Total Sales Dept Profit | X44: Total Profit Opp
B45: SIERRA BED / STEPS | C45: 23221573 | D45: BEDLINER | E45: =VLOOKUP(C45,PriceFile!B:F,5,FALSE) -> 228.75 | F45: =VLOOKUP(C45,PriceFile!$B:$D,3,FALSE) -> 305 | G45: =VLOOKUP(C45,Labor!$A:$B,2,FALSE) -> 0.5 | H45: =(E45*(SUM(1+$C$6))-E45) -> 22.875 | I45: =G45*$C$8 -> 50 | J45: =G45*$C$8*$C$9 -> 25 | K45: =SUM(E45+H45+I45) -> 301.625 | L45: =IF($C$5="Y","",(SUM(E45+H45)*(1+$C$7))+I45) ->  | M45: =IF($C$5="Y","",L45-K45) ->  | N45: =IF($C$5="Y","",SUM(H45+J45+M45)) ->  | O45: =IF($C$5="n","",F45+I45) -> 355 | P45: =IF($C$5="n","",O45-K45) -> 53.375 | Q45: =IF($C$5="n","",SUM(H45+J45+P45)) -> 101.25 | R45: =$R$11 -> 0.2 | S45: =ROUNDUP((SUM($M$7:$M$8)*R45),0) -> 42 | T45: =S45*E45 -> 9607.5 | U45: =S45*H45 -> 960.75 | V45: =S45*J45 -> 1050 | W45: =IF($C$5="Y",S45*P45,S45*M45) -> 2241.75 | X45: =IF($C$5="Y",S45*Q45,S45*N45) -> 4252.5
C46: 19333191 | D46: BED MAT BY BedRug™ | E46: =VLOOKUP(C46,PriceFile!B:F,5,FALSE) -> 127.2 | F46: =VLOOKUP(C46,PriceFile!$B:$D,3,FALSE) -> 159 | G46: =VLOOKUP(C46,Labor!$A:$B,2,FALSE) -> 0.3 | H46: 12.72 | I46: 30 | J46: 15 | K46: 169.92 | O46: 189 | P46: 19.08 | Q46: 46.8 | R46: 0.2 | S46: =ROUNDUP((SUM($M$7:$M$8)*R46),0) -> 42 | T46: 5342.4 | U46: =S46*H46 -> 534.24 | V46: =S46*J46 -> 630 | W46: 801.36 | X46: 1965.6
C47: 84096103 | D47: BedRug™ | E47: =VLOOKUP(C47,PriceFile!B:F,5,FALSE) -> 337.5 | F47: =VLOOKUP(C47,PriceFile!$B:$D,3,FALSE) -> 450 | G47: =VLOOKUP(C47,Labor!$A:$B,2,FALSE) -> 0.9 | H47: =(E47*(SUM(1+$C$6))-E47) -> 33.75 | I47: 90 | J47: 45 | K47: 461.25 | O47: 540 | P47: 78.75 | Q47: 157.5 | R47: 0.2 | S47: 42 | T47: 14175 | U47: 1417.5 | V47: 1890 | W47: 3307.5 | X47: 6615
C48: 19301291 | D48: HARD FOLDING TONNEAU - QUAD-FOLD | E48: =VLOOKUP(C48,PriceFile!B:F,5,FALSE) -> 863.2 | F48: =VLOOKUP(C48,PriceFile!$B:$D,3,FALSE) -> 1079 | G48: =VLOOKUP(C48,Labor!$A:$B,2,FALSE) -> 0.75 | H48: 86.32 | I48: 75 | J48: 37.5 | K48: 1024.52 | O48: 1154 | P48: 129.48 | Q48: 253.3 | R48: 0.2 | S48: 42 | T48: 36254.4 | U48: 3625.44 | V48: 1575 | W48: 5438.16 | X48: 10638.6
C49: 19333082 | D49: HARD ROLLING TONNEAU | E49: =VLOOKUP(C49,PriceFile!B:F,5,FALSE) -> 799.2 | F49: =VLOOKUP(C49,PriceFile!$B:$D,3,FALSE) -> 999 | G49: =VLOOKUP(C49,Labor!$A:$B,2,FALSE) -> 0.5 | H49: =(E49*(SUM(1+$C$6))-E49) -> 79.92 | I49: =G49*$C$8 -> 50 | J49: =G49*$C$8*$C$9 -> 25 | K49: =SUM(E49+H49+I49) -> 929.12 | L49: =IF($C$5="Y","",(SUM(E49+H49)*(1+$C$7))+I49) ->  | M49: =IF($C$5="Y","",L49-K49) ->  | N49: =IF($C$5="Y","",SUM(H49+J49+M49)) ->  | O49: =IF($C$5="n","",F49+I49) -> 1049 | P49: =IF($C$5="n","",O49-K49) -> 119.88 | Q49: =IF($C$5="n","",SUM(H49+J49+P49)) -> 224.8 | R49: 0.2 | S49: 42 | T49: =S49*E49 -> 33566.4 | U49: =S49*H49 -> 3356.64 | V49: =S49*J49 -> 1050 | W49: =IF($C$5="Y",S49*P49,S49*M49) -> 5034.96 | X49: =IF($C$5="Y",S49*Q49,S49*N49) -> 9441.6
C50: 22772364 | D50: SOFT ROLL-UP TONNEAU | E50: =VLOOKUP(C50,PriceFile!B:F,5,FALSE) -> 371.25 | F50: =VLOOKUP(C50,PriceFile!$B:$D,3,FALSE) -> 495 | G50: =VLOOKUP(C50,Labor!$A:$B,2,FALSE) -> 0.4 | H50: 37.125 | I50: 40 | J50: 20 | K50: 448.375 | O50: 535 | P50: 86.625 | Q50: 143.75 | R50: 0.2 | S50: 42 | T50: 15592.5 | U50: 1559.25 | V50: 840 | W50: 3638.25 | X50: 6037.5
C51: 23462057 | D51: TRI-FOLD TONNEAU COVER | E51: =VLOOKUP(C51,PriceFile!B:F,5,FALSE) -> 675 | F51: =VLOOKUP(C51,PriceFile!$B:$D,3,FALSE) -> 900 | G51: =VLOOKUP(C51,Labor!$A:$B,2,FALSE) -> 0.5 | H51: 67.5 | I51: 50 | J51: 25 | K51: 792.5 | O51: 950 | P51: 157.5 | Q51: 250 | R51: 0.2 | S51: 42 | T51: 28350 | U51: 2835 | V51: 1050 | W51: 6615 | X51: 10500
C52: 84106507 | D52: 6" CHROME ASSIST STEPS | E52: =VLOOKUP(C52,PriceFile!B:F,5,FALSE) -> 525 | F52: =VLOOKUP(C52,PriceFile!$B:$D,3,FALSE) -> 700 | G52: =VLOOKUP(C52,Labor!$A:$B,2,FALSE) -> 0.5 | H52: 52.5 | I52: 50 | J52: 25 | K52: 627.5 | O52: 750 | P52: 122.5 | Q52: 200 | R52: 0.2 | S52: 42 | T52: 22050 | U52: 2205 | V52: 1050 | W52: 5145 | X52: 8400
C53: 84106508 | D53: 6" BLACK ASSIST STEPS | E53: =VLOOKUP(C53,PriceFile!B:F,5,FALSE) -> 487.5 | F53: =VLOOKUP(C53,PriceFile!$B:$D,3,FALSE) -> 650 | G53: =VLOOKUP(C53,Labor!$A:$B,2,FALSE) -> 0.5 | H53: 48.75 | I53: 50 | J53: 25 | K53: 586.25 | O53: 700 | P53: 113.75 | Q53: 187.5 | R53: 0.2 | S53: 42 | T53: 20475 | U53: 2047.5 | V53: 1050 | W53: 4777.5 | X53: 7875
C54: 22805436 | D54: 4" ROUND CHROME ASSIST STEPS | E54: =VLOOKUP(C54,PriceFile!B:F,5,FALSE) -> 487.5 | F54: =VLOOKUP(C54,PriceFile!$B:$D,3,FALSE) -> 650 | G54: =VLOOKUP(C54,Labor!$A:$B,2,FALSE) -> 0.5 | H54: 48.75 | I54: 50 | J54: 25 | K54: 586.25 | O54: 700 | P54: 113.75 | Q54: 187.5 | R54: 0.2 | S54: 42 | T54: 20475 | U54: 2047.5 | V54: 1050 | W54: 4777.5 | X54: 7875
C55: 22805437 | D55: 4" ROUND BLACK ASSIST STEPS | E55: =VLOOKUP(C55,PriceFile!B:F,5,FALSE) -> 450 | F55: =VLOOKUP(C55,PriceFile!$B:$D,3,FALSE) -> 600 | G55: =VLOOKUP(C55,Labor!$A:$B,2,FALSE) -> 0.5 | H55: 45 | I55: 50 | J55: 25 | K55: 545 | O55: 650 | P55: 105 | Q55: 175 | R55: 0.2 | S55: 42 | T55: 18900 | U55: 1890 | V55: 1050 | W55: 4410 | X55: 7350
C56: 23194635 | D56: 3" OFF-ROAD STEP BARS | E56: =VLOOKUP(C56,PriceFile!B:F,5,FALSE) -> 596.25 | F56: =VLOOKUP(C56,PriceFile!$B:$D,3,FALSE) -> 795 | G56: =VLOOKUP(C56,Labor!$A:$B,2,FALSE) -> 0.5 | H56: 59.625 | I56: 50 | J56: 25 | K56: 705.875 | O56: 845 | P56: 139.125 | Q56: 223.75 | R56: 0.2 | S56: 42 | T56: 25042.5 | U56: 2504.25 | V56: 1050 | W56: 5843.25 | X56: 9397.5
T57: =IFERROR((SUM(T45:T56)),0) -> 249830.7 | U57: =IFERROR((SUM(U45:U56)),0) -> 24983.07 | V57: =IFERROR((SUM(V45:V56)),0) -> 13335 | W57: =IFERROR((SUM(W45:W56)),0) -> 52030.23 | X57: =IFERROR((SUM(X45:X56)),0) -> 90348.3
B59: Vehicle | C59: PN | D59: Description | E59: Dealer Cost | F59: MSRP | G59: Install Time | H59: Parts Dept Profit | I59: Labor Revenue | J59: Service Dept Profit | K59: Cost To Sales | L59: Dealership Retail Price (Incl Labor) | M59: Sales Profit (Dlr Retail) | N59: Total Dlr Profit (Dlr Retail) | O59: MSRP (Incl Labor) | P59: Sales Profit (MSRP) | Q59: Total Dlr Profit (MSRP) | R59: % With Acc. | S59: # of Units with Acc. | T59: Est. Acc. Credit | U59: Total Parts Dept Profit | V59: Total Service Profit | W59: Total Sales Dept Profit | X59: Total Profit Opp
B60: SIERRA EXT/INT | C60: 84073616 | D60: PREM. FRONT FLOOR LINERS | E60: =VLOOKUP(C60,PriceFile!B:F,5,FALSE) -> 82.5 | F60: =VLOOKUP(C60,PriceFile!$B:$D,3,FALSE) -> 110 | G60: =VLOOKUP(C60,Labor!$A:$B,2,FALSE) -> 0 | H60: =(E60*(SUM(1+$C$6))-E60) -> 8.25 | I60: =G60*$C$8 -> 0 | J60: =G60*$C$8*$C$9 -> 0 | K60: =SUM(E60+H60+I60) -> 90.75 | L60: =IF($C$5="Y","",(SUM(E60+H60)*(1+$C$7))+I60) ->  | M60: =IF($C$5="Y","",L60-K60) ->  | N60: =IF($C$5="Y","",SUM(H60+J60+M60)) ->  | O60: =IF($C$5="n","",F60+I60) -> 110 | P60: =IF($C$5="n","",O60-K60) -> 19.25 | Q60: =IF($C$5="n","",SUM(H60+J60+P60)) -> 27.5 | R60: =$R$11 -> 0.2 | S60: =ROUNDUP((SUM($M$7:$M$8)*R60),0) -> 42 | T60: =S60*E60 -> 3465 | U60: =S60*H60 -> 346.5 | V60: =S60*J60 -> 0 | W60: =IF($C$5="Y",S60*P60,S60*M60) -> 808.5 | X60: =IF($C$5="Y",S60*Q60,S60*N60) -> 1155
C61: 23183674 | D61: UNDERSEAT STORAGE | E61: =VLOOKUP(C61,PriceFile!B:F,5,FALSE) -> 150 | F61: =VLOOKUP(C61,PriceFile!$B:$D,3,FALSE) -> 200 | G61: =VLOOKUP(C61,Labor!$A:$B,2,FALSE) -> 0.3 | H61: 15 | I61: 30 | J61: 15 | K61: 195 | O61: 230 | P61: 35 | Q61: 65 | R61: 0.2 | S61: 42 | T61: 6300 | U61: =S61*H61 -> 630 | V61: =S61*J61 -> 630 | W61: 1470 | X61: 2730
C62: 22817343 | D62: FRONT CONSOLE ORGANIZER | E62: =VLOOKUP(C62,PriceFile!B:F,5,FALSE) -> 37.5 | F62: =VLOOKUP(C62,PriceFile!$B:$D,3,FALSE) -> 50 | G62: =VLOOKUP(C62,Labor!$A:$B,2,FALSE) -> 0.1 | H62: 3.75 | I62: 10 | J62: 5 | K62: 51.25 | O62: 60 | P62: 8.75 | Q62: 17.5 | R62: 0.2 | S62: 42 | T62: 1575 | U62: 157.5 | V62: 210 | W62: 367.5 | X62: 735
C63: 22940647 | D63: CHROME DOOR HANDLES | E63: =VLOOKUP(C63,PriceFile!B:F,5,FALSE) -> 108.75 | F63: =VLOOKUP(C63,PriceFile!$B:$D,3,FALSE) -> 145 | G63: =VLOOKUP(C63,Labor!$A:$B,2,FALSE) -> 0.4 | H63: 10.875 | I63: 40 | J63: 20 | K63: 159.625 | O63: 185 | P63: 25.375 | Q63: 56.25 | R63: 0.2 | S63: 42 | T63: 4567.5 | U63: 456.75 | V63: 840 | W63: 1065.75 | X63: 2362.5
C64: 22913965 | D64: CHROME MIRROR COVERS | E64: =VLOOKUP(C64,PriceFile!B:F,5,FALSE) -> 75 | F64: =VLOOKUP(C64,PriceFile!$B:$D,3,FALSE) -> 100 | G64: =VLOOKUP(C64,Labor!$A:$B,2,FALSE) -> 0.5 | H64: 7.5 | I64: 50 | J64: 25 | K64: 132.5 | O64: 150 | P64: 17.5 | Q64: 50 | R64: 0.2 | S64: 42 | T64: 3150 | U64: 315 | V64: 1050 | W64: 735 | X64: 2100
C65: 23435023 | D65: CHROME EXHAUST TIP | E65: =VLOOKUP(C65,PriceFile!B:F,5,FALSE) -> 78.75 | F65: =VLOOKUP(C65,PriceFile!$B:$D,3,FALSE) -> 105 | G65: =VLOOKUP(C65,Labor!$A:$B,2,FALSE) -> 0.3 | H65: 7.875 | I65: 30 | J65: 15 | K65: 116.625 | O65: 135 | P65: 18.375 | Q65: 41.25 | R65: 0.2 | S65: 42 | T65: 3307.5 | U65: 330.75 | V65: 630 | W65: 771.75 | X65: 1732.5
C66: 84154469 | D66: WHEEL HOUSE LINER | E66: =VLOOKUP(C66,PriceFile!B:F,5,FALSE) -> 90 | F66: =VLOOKUP(C66,PriceFile!$B:$D,3,FALSE) -> 120 | G66: =VLOOKUP(C66,Labor!$A:$B,2,FALSE) -> 0.5 | H66: 9 | I66: 50 | J66: 25 | K66: 149 | O66: 170 | P66: 21 | Q66: 55 | R66: 0.2 | S66: 42 | T66: 3780 | U66: 378 | V66: 1050 | W66: 882 | X66: 2310
C67: 22894860 | D67: MOLDED SPLASH GUARDS - FRONT | E67: =VLOOKUP(C67,PriceFile!B:F,5,FALSE) -> 37.5 | F67: =VLOOKUP(C67,PriceFile!$B:$D,3,FALSE) -> 50 | G67: =VLOOKUP(C67,Labor!$A:$B,2,FALSE) -> 0.9 | H67: 3.75 | I67: 90 | J67: 45 | K67: 131.25 | O67: 140 | P67: 8.75 | Q67: 57.5 | R67: 0.2 | S67: 42 | T67: 1575 | U67: 157.5 | V67: 1890 | W67: 367.5 | X67: 2415
C68: 22894866 | D68: MOLDED SPLASH GUARDS - REAR | E68: =VLOOKUP(C68,PriceFile!B:F,5,FALSE) -> 37.5 | F68: =VLOOKUP(C68,PriceFile!$B:$D,3,FALSE) -> 50 | G68: =VLOOKUP(C68,Labor!$A:$B,2,FALSE) -> 0.4 | H68: 3.75 | I68: 40 | J68: 20 | K68: 81.25 | O68: 90 | P68: 8.75 | Q68: 32.5 | R68: 0.2 | S68: 42 | T68: 1575 | U68: 157.5 | V68: 840 | W68: 367.5 | X68: 1365
C69: 19302763 | D69: SIDE WINDOW WEATHER DEFLECTORS | E69: =VLOOKUP(C69,PriceFile!B:F,5,FALSE) -> 76 | F69: =VLOOKUP(C69,PriceFile!$B:$D,3,FALSE) -> 95 | G69: =VLOOKUP(C69,Labor!$A:$B,2,FALSE) -> 0.5 | H69: 7.6 | I69: 50 | J69: 25 | K69: 133.6 | O69: 145 | P69: 11.4 | Q69: 44 | R69: 0.2 | S69: 42 | T69: 3192 | U69: 319.2 | V69: 1050 | W69: 478.8 | X69: 1848
C70: 23236698 | D70: CHROME TOW HOOKS - LD ONLY | E70: =VLOOKUP(C70,PriceFile!B:F,5,FALSE) -> 112.5 | F70: =VLOOKUP(C70,PriceFile!$B:$D,3,FALSE) -> 150 | G70: =VLOOKUP(C70,Labor!$A:$B,2,FALSE) -> 1.4 | H70: 11.25 | I70: 140 | J70: 70 | K70: 263.75 | O70: 290 | P70: 26.25 | Q70: 107.5 | R70: 0.2 | S70: 42 | T70: 4725 | U70: 472.5 | V70: 2940 | W70: 1102.5 | X70: 4515
C71: 22775458 | D71: CHROME BODYSIDE MOLDING | E71: =VLOOKUP(C71,PriceFile!B:F,5,FALSE) -> 150 | F71: =VLOOKUP(C71,PriceFile!$B:$D,3,FALSE) -> 200 | G71: =VLOOKUP(C71,Labor!$A:$B,2,FALSE) -> 0.8 | H71: 15 | I71: 80 | J71: 40 | K71: 245 | O71: 280 | P71: 35 | Q71: 90 | R71: 0.2 | S71: 42 | T71: 6300 | U71: 630 | V71: 1680 | W71: 1470 | X71: 3780
T72: =IFERROR((SUM(T60:T71)),0) -> 43512 | U72: =IFERROR((SUM(U60:U71)),0) -> 4351.2 | V72: =IFERROR((SUM(V60:V71)),0) -> 12810 | W72: =IFERROR((SUM(W60:W71)),0) -> 9886.8 | X72: =IFERROR((SUM(X60:X71)),0) -> 27048
B74: Vehicle | C74: PN | D74: Description | E74: Dealer Cost | F74: MSRP | G74: Install Time | H74: Parts Dept Profit | I74: Labor Revenue | J74: Service Dept Profit | K74: Cost To Sales | L74: Dealership Retail Price (Incl Labor) | M74: Sales Profit (Dlr Retail) | N74: Total Dlr Profit (Dlr Retail) | O74: MSRP (Incl Labor) | P74: Sales Profit (MSRP) | Q74: Total Dlr Profit (MSRP) | R74: % With Acc. | S74: # of Units with Acc. | T74: Est. Acc. Credit | U74: Total Parts Dept Profit | V74: Total Service Profit | W74: Total Sales Dept Profit | X74: Total Profit Opp
B75: SIERRA ELEC/TRAILERING | C75: 19303115 | D75: KICKER 200/400 WATT SUB & AMP | E75: =VLOOKUP(C75,PriceFile!B:F,5,FALSE) -> 847.2 | F75: =VLOOKUP(C75,PriceFile!$B:$D,3,FALSE) -> 1059 | G75: =VLOOKUP(C75,Labor!$A:$B,2,FALSE) -> 1.5 | H75: =(E75*(SUM(1+$C$6))-E75) -> 84.72 | I75: =G75*$C$8 -> 150 | J75: =G75*$C$8*$C$9 -> 75 | K75: =SUM(E75+H75+I75) -> 1081.92 | L75: =IF($C$5="Y","",(SUM(E75+H75)*(1+$C$7))+I75) ->  | M75: =IF($C$5="Y","",L75-K75) ->  | N75: =IF($C$5="Y","",SUM(H75+J75+M75)) ->  | O75: =IF($C$5="n","",F75+I75) -> 1209 | P75: =IF($C$5="n","",O75-K75) -> 127.08 | Q75: =IF($C$5="n","",SUM(H75+J75+P75)) -> 286.8 | R75: =$R$11 -> 0.2 | S75: =ROUNDUP((SUM($M$7:$M$8)*R75),0) -> 42 | T75: =S75*E75 -> 35582.4 | U75: =S75*H75 -> 3558.24 | V75: =S75*J75 -> 3150 | W75: =IF($C$5="Y",S75*P75,S75*M75) -> 5337.36 | X75: =IF($C$5="Y",S75*Q75,S75*N75) -> 12045.6
C76: 22997089 | D76: REMOTE START | E76: =VLOOKUP(C76,PriceFile!B:F,5,FALSE) -> 206.25 | F76: =VLOOKUP(C76,PriceFile!$B:$D,3,FALSE) -> 275 | G76: =VLOOKUP(C76,Labor!$A:$B,2,FALSE) -> 1.5 | H76: 20.625 | I76: 150 | J76: 75 | K76: 376.875 | O76: 425 | P76: 48.125 | Q76: 143.75 | R76: 0.2 | S76: =ROUNDUP((SUM($M$7:$M$8)*R76),0) -> 42 | T76: 8662.5 | U76: =S76*H76 -> 866.25 | V76: =S76*J76 -> 3150 | W76: 2021.25 | X76: 6037.5
C77: 19353504 | D77: CAMERA SYSTEM | E77: =VLOOKUP(C77,PriceFile!B:F,5,FALSE) -> 799.2 | F77: =VLOOKUP(C77,PriceFile!$B:$D,3,FALSE) -> 999 | G77: =VLOOKUP(C77,Labor!$A:$B,2,FALSE) -> 2.5 | H77: 79.92 | I77: 250 | J77: 125 | K77: 1129.12 | O77: 1249 | P77: 119.88 | Q77: 324.8 | R77: 0.2 | S77: 42 | T77: 33566.4 | U77: 3356.64 | V77: 5250 | W77: 5034.96 | X77: 13641.6
C78: 23372182 | D78: TRAILERING MIRRORS - BLACK | E78: =VLOOKUP(C78,PriceFile!B:F,5,FALSE) -> 468.75 | F78: =VLOOKUP(C78,PriceFile!$B:$D,3,FALSE) -> 625 | G78: =VLOOKUP(C78,Labor!$A:$B,2,FALSE) -> 4.7 | H78: 46.875 | I78: 470 | J78: 235 | K78: 985.625 | O78: 1095 | P78: 109.375 | Q78: 391.25 | R78: 0.2 | S78: 42 | T78: 19687.5 | U78: 1968.75 | V78: 9870 | W78: 4593.75 | X78: 16432.5
C79: 23372181 | D79: TRAILERING MIRRORS - CHROME | E79: =VLOOKUP(C79,PriceFile!B:F,5,FALSE) -> 543.75 | F79: =VLOOKUP(C79,PriceFile!$B:$D,3,FALSE) -> 725 | G79: =VLOOKUP(C79,Labor!$A:$B,2,FALSE) -> 4.7 | H79: 54.375 | I79: 470 | J79: 235 | K79: 1068.125 | O79: 1195 | P79: 126.875 | Q79: 416.25 | R79: 0.2 | S79: 42 | T79: 22837.5 | U79: 2283.75 | V79: 9870 | W79: 5328.75 | X79: 17482.5
C80: 19330154 | D80: BRAKE CONTROLLER PACKAGE | E80: =VLOOKUP(C80,PriceFile!B:F,5,FALSE) -> 76 | F80: =VLOOKUP(C80,PriceFile!$B:$D,3,FALSE) -> 95 | G80: =VLOOKUP(C80,Labor!$A:$B,2,FALSE) -> 0.5 | H80: 7.6 | I80: 50 | J80: 25 | K80: 133.6 | O80: 145 | P80: 11.4 | Q80: 44 | R80: 0.2 | S80: 42 | T80: 3192 | U80: 319.2 | V80: 1050 | W80: 478.8 | X80: 1848
C81: 19353984 | D81: DOUBLE LOCK EZr GOOSENECK HITCH PKG | E81: =VLOOKUP(C81,PriceFile!B:F,5,FALSE) -> 399.2 | F81: =VLOOKUP(C81,PriceFile!$B:$D,3,FALSE) -> 499 | G81: =VLOOKUP(C81,Labor!$A:$B,2,FALSE) -> 2.5 | H81: 39.92 | I81: 250 | J81: 125 | K81: 689.12 | O81: 749 | P81: 59.88 | Q81: 224.8 | R81: 0.2 | S81: 42 | T81: 16766.4 | U81: 1676.64 | V81: 5250 | W81: 2514.96 | X81: 9441.6
C82: 19353369 | D82: FIFTH WHEEL HITCH PKG (STANDARD LEGS) | E82: =VLOOKUP(C82,PriceFile!B:F,5,FALSE) -> 863.2 | F82: =VLOOKUP(C82,PriceFile!$B:$D,3,FALSE) -> 1079 | G82: =VLOOKUP(C82,Labor!$A:$B,2,FALSE) -> 2 | H82: 86.32 | I82: 200 | J82: 100 | K82: 1149.52 | O82: 1279 | P82: 129.48 | Q82: 315.8 | R82: 0.2 | S82: 42 | T82: 36254.4 | U82: 3625.44 | V82: 4200 | W82: 5438.16 | X82: 13263.6
C83: 19353370 | D83: FIFTH WHEEL HITCH PKG (ROLLER LEGS) | E83: =VLOOKUP(C83,PriceFile!B:F,5,FALSE) -> 1231.2 | F83: =VLOOKUP(C83,PriceFile!$B:$D,3,FALSE) -> 1539 | G83: =VLOOKUP(C83,Labor!$A:$B,2,FALSE) -> 2 | H83: 123.12 | I83: 200 | J83: 100 | K83: 1554.32 | O83: 1739 | P83: 184.68 | Q83: 407.8 | R83: 0.2 | S83: 42 | T83: 51710.4 | U83: 5171.04 | V83: 4200 | W83: 7756.56 | X83: 17127.6
C84: 23294258 | D84: UNDERBODY SHIELD | E84: =VLOOKUP(C84,PriceFile!B:F,5,FALSE) -> 187.5 | F84: =VLOOKUP(C84,PriceFile!$B:$D,3,FALSE) -> 250 | G84: =VLOOKUP(C84,Labor!$A:$B,2,FALSE) -> 0.5 | H84: 18.75 | I84: 50 | J84: 25 | K84: 256.25 | O84: 300 | P84: 43.75 | Q84: 87.5 | R84: 0.2 | S84: 42 | T84: 7875 | U84: 787.5 | V84: 1050 | W84: 1837.5 | X84: 3675
C85: 23415423 | D85: FOG LAMPS | E85: =VLOOKUP(C85,PriceFile!B:F,5,FALSE) -> 746.25 | F85: =VLOOKUP(C85,PriceFile!$B:$D,3,FALSE) -> 995 | G85: =VLOOKUP(C85,Labor!$A:$B,2,FALSE) -> 2 | H85: 74.625 | I85: 200 | J85: 100 | K85: 1020.875 | O85: 1195 | P85: 174.125 | Q85: 348.75 | R85: 0.2 | S85: 42 | T85: 31342.5 | U85: 3134.25 | V85: 4200 | W85: 7313.25 | X85: 14647.5
C86: 19303333 | D86: CAT-BACK EXHAUST SYSTEM | E86: =VLOOKUP(C86,PriceFile!B:F,5,FALSE) -> 999.2 | F86: =VLOOKUP(C86,PriceFile!$B:$D,3,FALSE) -> 1249 | G86: =VLOOKUP(C86,Labor!$A:$B,2,FALSE) -> 0.5 | H86: 99.92 | I86: 50 | J86: 25 | K86: 1149.12 | O86: 1299 | P86: 149.88 | Q86: 274.8 | R86: 0.2 | S86: 42 | T86: 41966.4 | U86: 4196.64 | V86: 1050 | W86: 6294.96 | X86: 11541.6
T87: =IFERROR((SUM(T75:T86)),0) -> 309443.4 | U87: =IFERROR((SUM(U75:U86)),0) -> 30944.34 | V87: =IFERROR((SUM(V75:V86)),0) -> 52290 | W87: =IFERROR((SUM(W75:W86)),0) -> 53950.26 | X87: =IFERROR((SUM(X75:X86)),0) -> 137184.6
B89: Vehicle | C89: PN | D89: Description | E89: Dealer Cost | F89: MSRP | G89: Install Time | H89: Parts Dept Profit | I89: Labor Revenue | J89: Service Dept Profit | K89: Cost To Sales | L89: Dealership Retail Price (Incl Labor) | M89: Sales Profit (Dlr Retail) | N89: Total Dlr Profit (Dlr Retail) | O89: MSRP (Incl Labor) | P89: Sales Profit (MSRP) | Q89: Total Dlr Profit (MSRP) | R89: % With Acc. | S89: # of Units with Acc. | T89: Est. Acc. Credit | U89: Total Parts Dept Profit | V89: Total Service Profit | W89: Total Sales Dept Profit | X89: Total Profit Opp
B90: YUKON | C90: 84112236 | D90: 6 INCH CHROME STEPS | E90: =VLOOKUP(C90,PriceFile!B:F,5,FALSE) -> 525 | F90: =VLOOKUP(C90,PriceFile!$B:$D,3,FALSE) -> 700 | G90: =VLOOKUP(C90,Labor!$A:$B,2,FALSE) -> 0.5 | H90: =(E90*(SUM(1+$C$6))-E90) -> 52.5 | I90: =G90*$C$8 -> 50 | J90: =G90*$C$8*$C$9 -> 25 | K90: =SUM(E90+H90+I90) -> 627.5 | L90: =IF($C$5="Y","",(SUM(E90+H90)*(1+$C$7))+I90) ->  | M90: =IF($C$5="Y","",L90-K90) ->  | N90: =IF($C$5="Y","",SUM(H90+J90+M90)) ->  | O90: =IF($C$5="n","",F90+I90) -> 750 | P90: =IF($C$5="n","",O90-K90) -> 122.5 | Q90: =IF($C$5="n","",SUM(H90+J90+P90)) -> 200 | R90: =$R$11 -> 0.2 | S90: =ROUNDUP((SUM($M$10:$M$11)*R90),0) -> 28 | T90: =S90*E90 -> 14700 | U90: =S90*H90 -> 1470 | V90: =S90*J90 -> 700 | W90: =IF($C$5="Y",S90*P90,S90*M90) -> 3430 | X90: =IF($C$5="Y",S90*Q90,S90*N90) -> 5600
C91: 19329346 | D91: MOLDED HOOD PROTECTOR | E91: =VLOOKUP(C91,PriceFile!B:F,5,FALSE) -> 71.2 | F91: =VLOOKUP(C91,PriceFile!$B:$D,3,FALSE) -> 89 | G91: =VLOOKUP(C91,Labor!$A:$B,2,FALSE) -> 0.3 | H91: 7.12 | I91: 30 | J91: 15 | K91: 108.32 | O91: 119 | P91: 10.68 | Q91: 32.8 | R91: 0.2 | S91: =ROUNDUP((SUM($M$10:$M$11)*R91),0) -> 28 | T91: 1993.6 | U91: =S91*H91 -> 199.36 | V91: =S91*J91 -> 420 | W91: 299.04 | X91: 918.4
C92: 22940646 | D92: CHROME DOOR HANDLES | E92: =VLOOKUP(C92,PriceFile!B:F,5,FALSE) -> 108.75 | F92: =VLOOKUP(C92,PriceFile!$B:$D,3,FALSE) -> 145 | G92: =VLOOKUP(C92,Labor!$A:$B,2,FALSE) -> 0.4 | H92: 10.875 | I92: 40 | J92: 20 | K92: 159.625 | O92: 185 | P92: 25.375 | Q92: 56.25 | R92: 0.2 | S92: 28 | T92: 3045 | U92: 304.5 | V92: 560 | W92: 710.5 | X92: 1575
C93: 23256564 | D93: ROOF RACK CROSS RAILS | E93: =VLOOKUP(C93,PriceFile!B:F,5,FALSE) -> 157.5 | F93: =VLOOKUP(C93,PriceFile!$B:$D,3,FALSE) -> 210 | G93: =VLOOKUP(C93,Labor!$A:$B,2,FALSE) -> 0.4 | H93: 15.75 | I93: 40 | J93: 20 | K93: 213.25 | O93: 250 | P93: 36.75 | Q93: 72.5 | R93: 0.2 | S93: 28 | T93: 4410 | U93: 441 | V93: 560 | W93: 1029 | X93: 2030
C94: 22988756 | D94: BODYSIDE MOLDING | E94: =VLOOKUP(C94,PriceFile!B:F,5,FALSE) -> 150 | F94: =VLOOKUP(C94,PriceFile!$B:$D,3,FALSE) -> 200 | G94: =VLOOKUP(C94,Labor!$A:$B,2,FALSE) -> 0.8 | H94: 15 | I94: 80 | J94: 40 | K94: 245 | O94: 280 | P94: 35 | Q94: 90 | R94: 0.2 | S94: 28 | T94: 4200 | U94: 420 | V94: 1120 | W94: 980 | X94: 2520
C95: 23156310 | D95: GRILLE | E95: =VLOOKUP(C95,PriceFile!B:F,5,FALSE) -> 371.25 | F95: =VLOOKUP(C95,PriceFile!$B:$D,3,FALSE) -> 495 | G95: =VLOOKUP(C95,Labor!$A:$B,2,FALSE) -> 1.5 | H95: 37.125 | I95: 150 | J95: 75 | K95: 558.375 | O95: 645 | P95: 86.625 | Q95: 198.75 | R95: 0.2 | S95: 28 | T95: 10395 | U95: 1039.5 | V95: 2100 | W95: 2425.5 | X95: 5565
C96: 22913963 | D96: CHROME MIRROR COVERS | E96: =VLOOKUP(C96,PriceFile!B:F,5,FALSE) -> 75 | F96: =VLOOKUP(C96,PriceFile!$B:$D,3,FALSE) -> 100 | G96: =VLOOKUP(C96,Labor!$A:$B,2,FALSE) -> 0.5 | H96: 7.5 | I96: 50 | J96: 25 | K96: 132.5 | O96: 150 | P96: 17.5 | Q96: 50 | R96: 0.2 | S96: 28 | T96: 2100 | U96: 210 | V96: 700 | W96: 490 | X96: 1400
C97: 23132561 | D97: CARGO NET | E97: =VLOOKUP(C97,PriceFile!B:F,5,FALSE) -> 37.5 | F97: =VLOOKUP(C97,PriceFile!$B:$D,3,FALSE) -> 50 | G97: =VLOOKUP(C97,Labor!$A:$B,2,FALSE) -> 0.1 | H97: 3.75 | I97: 10 | J97: 5 | K97: 51.25 | O97: 60 | P97: 8.75 | Q97: 17.5 | R97: 0.2 | S97: 28 | T97: 1050 | U97: 105 | V97: 140 | W97: 245 | X97: 490
C98: 23452755 | D98: ALL WEATHER FLOOR MATS | E98: =VLOOKUP(C98,PriceFile!B:F,5,FALSE) -> 60 | F98: =VLOOKUP(C98,PriceFile!$B:$D,3,FALSE) -> 80 | G98: =VLOOKUP(C98,Labor!$A:$B,2,FALSE) -> 0.1 | H98: 6 | I98: 10 | J98: 5 | K98: 76 | O98: 90 | P98: 14 | Q98: 25 | R98: 0.2 | S98: 28 | T98: 1680 | U98: 168 | V98: 140 | W98: 392 | X98: 700
C99: 22817343 | D99: CENTER CONSOLE ORGANIZER | E99: =VLOOKUP(C99,PriceFile!B:F,5,FALSE) -> 37.5 | F99: =VLOOKUP(C99,PriceFile!$B:$D,3,FALSE) -> 50 | G99: =VLOOKUP(C99,Labor!$A:$B,2,FALSE) -> 0.1 | H99: 3.75 | I99: 10 | J99: 5 | K99: 51.25 | O99: 60 | P99: 8.75 | Q99: 17.5 | R99: 0.2 | S99: 28 | T99: 1050 | U99: 105 | V99: 140 | W99: 245 | X99: 490
C100: 22926859 | D100: CENTER CONSOLE TOTE | E100: =VLOOKUP(C100,PriceFile!B:F,5,FALSE) -> 26.25 | F100: =VLOOKUP(C100,PriceFile!$B:$D,3,FALSE) -> 35 | G100: =VLOOKUP(C100,Labor!$A:$B,2,FALSE) -> 0.1 | H100: 2.625 | I100: 10 | J100: 5 | K100: 38.875 | O100: 45 | P100: 6.125 | Q100: 13.75 | R100: 0.2 | S100: 28 | T100: 735 | U100: 73.5 | V100: 140 | W100: 171.5 | X100: 385
C101: 22964401 | D101: CARGO SECURITY SHADE | E101: =VLOOKUP(C101,PriceFile!B:F,5,FALSE) -> 146.25 | F101: =VLOOKUP(C101,PriceFile!$B:$D,3,FALSE) -> 195 | G101: =VLOOKUP(C101,Labor!$A:$B,2,FALSE) -> 0.1 | H101: 14.625 | I101: 10 | J101: 5 | K101: 170.875 | O101: 205 | P101: 34.125 | Q101: 53.75 | R101: 0.2 | S101: 28 | T101: 4095 | U101: 409.5 | V101: 140 | W101: 955.5 | X101: 1505
T102: =IFERROR((SUM(T90:T101)),0) -> 49453.6 | U102: =IFERROR((SUM(U90:U101)),0) -> 4945.36 | V102: =IFERROR((SUM(V90:V101)),0) -> 6860 | W102: =IFERROR((SUM(W90:W101)),0) -> 11373.04 | X102: =IFERROR((SUM(X90:X101)),0) -> 23178.4
B104: Vehicle | C104: PN | D104: Description | E104: Dealer Cost | F104: MSRP | G104: Install Time | H104: Parts Dept Profit | I104: Labor Revenue | J104: Service Dept Profit | K104: Cost To Sales | L104: Dealership Retail Price (Incl Labor) | M104: Sales Profit (Dlr Retail) | N104: Total Dlr Profit (Dlr Retail) | O104: MSRP (Incl Labor) | P104: Sales Profit (MSRP) | Q104: Total Dlr Profit (MSRP) | R104: % With Acc. | S104: # of Units with Acc. | T104: Est. Acc. Credit | U104: Total Parts Dept Profit | V104: Total Service Profit | W104: Total Sales Dept Profit | X104: Total Profit Opp
B105: TERRAIN | C105: 22832328 | D105: ALL WEATHER FLOOR MATS | E105: =VLOOKUP(C105,PriceFile!B:F,5,FALSE) -> 52.5 | F105: =VLOOKUP(C105,PriceFile!$B:$D,3,FALSE) -> 70 | G105: =VLOOKUP(C105,Labor!$A:$B,2,FALSE) -> 0 | H105: =(E105*(SUM(1+$C$6))-E105) -> 5.25 | I105: =G105*$C$8 -> 0 | J105: =G105*$C$8*$C$9 -> 0 | K105: =SUM(E105+H105+I105) -> 57.75 | L105: =IF($C$5="Y","",(SUM(E105+H105)*(1+$C$7))+I105) ->  | M105: =IF($C$5="Y","",L105-K105) ->  | N105: =IF($C$5="Y","",SUM(H105+J105+M105)) ->  | O105: =IF($C$5="n","",F105+I105) -> 70 | P105: =IF($C$5="n","",O105-K105) -> 12.25 | Q105: =IF($C$5="n","",SUM(H105+J105+P105)) -> 17.5 | R105: =$R$11 -> 0.2 | S105: =ROUNDUP(($M$9*R105),0) -> 16 | T105: =S105*E105 -> 840 | U105: =S105*H105 -> 84 | V105: =S105*J105 -> 0 | W105: =IF($C$5="Y",S105*P105,S105*M105) -> 196 | X105: =IF($C$5="Y",S105*Q105,S105*N105) -> 280
C106: 23443874 | D106: UNIVERSAL TABLET HOLDER | E106: =VLOOKUP(C106,PriceFile!B:F,5,FALSE) -> 71.25 | F106: =VLOOKUP(C106,PriceFile!$B:$D,3,FALSE) -> 95 | G106: =VLOOKUP(C106,Labor!$A:$B,2,FALSE) -> 0.2 | H106: 7.125 | I106: 20 | J106: 10 | K106: 98.375 | O106: 115 | P106: 16.625 | Q106: 33.75 | R106: 0.2 | S106: =ROUNDUP(($M$9*R106),0) -> 16 | T106: 1140 | U106: =S106*H106 -> 114 | V106: =S106*J106 -> 160 | W106: 266 | X106: 540
C107: 23220403 | D107: MOLDED SPLASH GUARDS | E107: =VLOOKUP(C107,PriceFile!B:F,5,FALSE) -> 37.5 | F107: =VLOOKUP(C107,PriceFile!$B:$D,3,FALSE) -> 50 | G107: =VLOOKUP(C107,Labor!$A:$B,2,FALSE) -> 0.5 | H107: 3.75 | I107: 50 | J107: 25 | K107: 91.25 | O107: 100 | P107: 8.75 | Q107: 37.5 | R107: 0.2 | S107: 16 | T107: 600 | U107: 60 | V107: 400 | W107: 140 | X107: 600
C108: 23372588 | D108: GRILLE | E108: =VLOOKUP(C108,PriceFile!B:F,5,FALSE) -> 262.5 | F108: =VLOOKUP(C108,PriceFile!$B:$D,3,FALSE) -> 350 | G108: =VLOOKUP(C108,Labor!$A:$B,2,FALSE) -> 1 | H108: 26.25 | I108: 100 | J108: 50 | K108: 388.75 | O108: 450 | P108: 61.25 | Q108: 137.5 | R108: 0.2 | S108: 16 | T108: 4200 | U108: 420 | V108: 800 | W108: 980 | X108: 2200
C109: 23169368 | D109: ILLUMINATED DOOR SILL PLATES | E109: =VLOOKUP(C109,PriceFile!B:F,5,FALSE) -> 221.25 | F109: =VLOOKUP(C109,PriceFile!$B:$D,3,FALSE) -> 295 | G109: =VLOOKUP(C109,Labor!$A:$B,2,FALSE) -> 1 | H109: 22.125 | I109: 100 | J109: 50 | K109: 343.375 | O109: 395 | P109: 51.625 | Q109: 123.75 | R109: 0.2 | S109: 16 | T109: 3540 | U109: 354 | V109: 800 | W109: 826 | X109: 1980
C110: 23131658 | D110: CARGO SECURITY SHADE | E110: =VLOOKUP(C110,PriceFile!B:F,5,FALSE) -> 101.25 | F110: =VLOOKUP(C110,PriceFile!$B:$D,3,FALSE) -> 135 | G110: =VLOOKUP(C110,Labor!$A:$B,2,FALSE) -> 0.1 | H110: 10.125 | I110: 10 | J110: 5 | K110: 121.375 | O110: 145 | P110: 23.625 | Q110: 38.75 | R110: 0.2 | S110: 16 | T110: 1620 | U110: 162 | V110: 80 | W110: 378 | X110: 620
C111: 22956689 | D111: HITCH TRAILERING PACKAGE | E111: =VLOOKUP(C111,PriceFile!B:F,5,FALSE) -> 228.75 | F111: =VLOOKUP(C111,PriceFile!$B:$D,3,FALSE) -> 305 | G111: =VLOOKUP(C111,Labor!$A:$B,2,FALSE) -> 0.7 | H111: 22.875 | I111: 70 | J111: 35 | K111: 321.625 | O111: 375 | P111: 53.375 | Q111: 111.25 | R111: 0.2 | S111: 16 | T111: 3660 | U111: 366 | V111: 560 | W111: 854 | X111: 1780
C112: 23477163 | D112: CARGO ALL WEATHER MAT | E112: =VLOOKUP(C112,PriceFile!B:F,5,FALSE) -> 52.5 | F112: =VLOOKUP(C112,PriceFile!$B:$D,3,FALSE) -> 70 | G112: =VLOOKUP(C112,Labor!$A:$B,2,FALSE) -> 0 | H112: 5.25 | I112: 0 | J112: 0 | K112: 57.75 | O112: 70 | P112: 12.25 | Q112: 17.5 | R112: 0.2 | S112: 16 | T112: 840 | U112: 84 | V112: 0 | W112: 196 | X112: 280
C113: 19244271 | D113: CARGO NET | E113: =VLOOKUP(C113,PriceFile!B:F,5,FALSE) -> 41.25 | F113: =VLOOKUP(C113,PriceFile!$B:$D,3,FALSE) -> 55 | G113: =VLOOKUP(C113,Labor!$A:$B,2,FALSE) -> 0.1 | H113: 4.125 | I113: 10 | J113: 5 | K113: 55.375 | O113: 65 | P113: 9.625 | Q113: 18.75 | R113: 0.2 | S113: 16 | T113: 660 | U113: 66 | V113: 80 | W113: 154 | X113: 300
C114: 19202488 | D114: ROOF RACK CROSS RAILS | E114: =VLOOKUP(C114,PriceFile!B:F,5,FALSE) -> 127.5 | F114: =VLOOKUP(C114,PriceFile!$B:$D,3,FALSE) -> 170 | G114: =VLOOKUP(C114,Labor!$A:$B,2,FALSE) -> 0.25 | H114: 12.75 | I114: 25 | J114: 12.5 | K114: 165.25 | O114: 195 | P114: 29.75 | Q114: 55 | R114: 0.2 | S114: 16 | T114: 2040 | U114: 204 | V114: 200 | W114: 476 | X114: 880
C115: 23426665 | D115: CARGO AREA CLOSE OUT PANEL | E115: =VLOOKUP(C115,PriceFile!B:F,5,FALSE) -> 101.25 | F115: =VLOOKUP(C115,PriceFile!$B:$D,3,FALSE) -> 135 | G115: =VLOOKUP(C115,Labor!$A:$B,2,FALSE) -> 0 | H115: 10.125 | I115: 0 | J115: 0 | K115: 111.375 | O115: 135 | P115: 23.625 | Q115: 33.75 | R115: 0.2 | S115: 16 | T115: 1620 | U115: 162 | V115: 0 | W115: 378 | X115: 540
C116: 19212052 | D116: CHROME DOOR HANDLES | E116: =VLOOKUP(C116,PriceFile!B:F,5,FALSE) -> 108.75 | F116: =VLOOKUP(C116,PriceFile!$B:$D,3,FALSE) -> 145 | G116: =VLOOKUP(C116,Labor!$A:$B,2,FALSE) -> 0.4 | H116: 10.875 | I116: 40 | J116: 20 | K116: 159.625 | O116: 185 | P116: 25.375 | Q116: 56.25 | R116: 0.2 | S116: 16 | T116: 1740 | U116: 174 | V116: 320 | W116: 406 | X116: 900
T117: =IFERROR((SUM(T105:T116)),0) -> 22500 | U117: =IFERROR((SUM(U105:U116)),0) -> 2250 | V117: =IFERROR((SUM(V105:V116)),0) -> 3400 | W117: =IFERROR((SUM(W105:W116)),0) -> 5250 | X117: =IFERROR((SUM(X105:X116)),0) -> 10900
B119: Vehicle | C119: PN | D119: Description | E119: Dealer Cost | F119: MSRP | G119: Install Time | H119: Parts Dept Profit | I119: Labor Revenue | J119: Service Dept Profit | K119: Cost To Sales | L119: Dealership Retail Price (Incl Labor) | M119: Sales Profit (Dlr Retail) | N119: Total Dlr Profit (Dlr Retail) | O119: MSRP (Incl Labor) | P119: Sales Profit (MSRP) | Q119: Total Dlr Profit (MSRP) | R119: % With Acc. | S119: # of Units with Acc. | T119: Est. Acc. Credit | U119: Total Parts Dept Profit | V119: Total Service Profit | W119: Total Sales Dept Profit | X119: Total Profit Opp
E120: =VLOOKUP(C120,PriceFile!B:F,5,FALSE) ->  | F120: =VLOOKUP(C120,PriceFile!$B:$D,3,FALSE) ->  | H120: =(E120*(SUM(1+$C$6))-E120) ->  | I120: =G120*$C$8 -> 0 | J120: =G120*$C$8*$C$9 -> 0 | K120: =SUM(E120+H120+I120) ->  | L120: =IF($C$5="Y","",(SUM(E120+H120)*(1+$C$7))+I120) ->  | M120: =IF($C$5="Y","",L120-K120) ->  | N120: =IF($C$5="Y","",SUM(H120+J120+M120)) ->  | O120: =IF($C$5="n","",F120+I120) ->  | P120: =IF($C$5="n","",O120-K120) ->  | Q120: =IF($C$5="n","",SUM(H120+J120+P120)) ->  | R120: =$R$11 -> 0.2 | S120: =ROUNDUP(($M$12*R120),0) -> 0 | T120: =S120*E120 ->  | U120: =S120*H120 ->  | V120: =S120*J120 -> 0 | W120: =IF($C$5="Y",S120*P120,S120*M120) ->  | X120: =IF($C$5="Y",S120*Q120,S120*N120) -> 
E121: =VLOOKUP(C121,PriceFile!B:F,5,FALSE) ->  | F121: =VLOOKUP(C121,PriceFile!$B:$D,3,FALSE) ->  | I121: 0 | J121: 0 | R121: 0.2 | S121: 0 | U121: =S121*H121 ->  | V121: =S121*J121 -> 0
E122: =VLOOKUP(C122,PriceFile!B:F,5,FALSE) ->  | F122: =VLOOKUP(C122,PriceFile!$B:$D,3,FALSE) ->  | I122: 0 | J122: 0 | R122: 0.2 | S122: 0 | V122: 0
E123: =VLOOKUP(C123,PriceFile!B:F,5,FALSE) ->  | F123: =VLOOKUP(C123,PriceFile!$B:$D,3,FALSE) ->  | I123: 0 | J123: 0 | R123: 0.2 | S123: 0 | V123: 0
E124: =VLOOKUP(C124,PriceFile!B:F,5,FALSE) ->  | F124: =VLOOKUP(C124,PriceFile!$B:$D,3,FALSE) ->  | I124: 0 | J124: 0 | R124: 0.2 | S124: 0 | V124: 0
E125: =VLOOKUP(C125,PriceFile!B:F,5,FALSE) ->  | F125: =VLOOKUP(C125,PriceFile!$B:$D,3,FALSE) ->  | I125: 0 | J125: 0 | R125: 0.2 | S125: 0 | V125: 0
E126: =VLOOKUP(C126,PriceFile!B:F,5,FALSE) ->  | F126: =VLOOKUP(C126,PriceFile!$B:$D,3,FALSE) ->  | I126: 0 | J126: 0 | R126: 0.2 | S126: 0 | V126: 0
E127: =VLOOKUP(C127,PriceFile!B:F,5,FALSE) ->  | F127: =VLOOKUP(C127,PriceFile!$B:$D,3,FALSE) ->  | I127: 0 | J127: 0 | R127: 0.2 | S127: 0 | V127: 0
E128: =VLOOKUP(C128,PriceFile!B:F,5,FALSE) ->  | F128: =VLOOKUP(C128,PriceFile!$B:$D,3,FALSE) ->  | I128: 0 | J128: 0 | R128: 0.2 | S128: 0 | V128: 0
E129: =VLOOKUP(C129,PriceFile!B:F,5,FALSE) ->  | F129: =VLOOKUP(C129,PriceFile!$B:$D,3,FALSE) ->  | I129: 0 | J129: 0 | R129: 0.2 | S129: 0 | V129: 0
E130: =VLOOKUP(C130,PriceFile!B:F,5,FALSE) ->  | F130: =VLOOKUP(C130,PriceFile!$B:$D,3,FALSE) ->  | I130: 0 | J130: 0 | R130: 0.2 | S130: 0 | V130: 0
E131: =VLOOKUP(C131,PriceFile!B:F,5,FALSE) ->  | F131: =VLOOKUP(C131,PriceFile!$B:$D,3,FALSE) ->  | I131: 0 | J131: 0 | R131: 0.2 | S131: 0 | V131: 0
T132: =IFERROR((SUM(T120:T131)),0) -> 0 | U132: =IFERROR((SUM(U120:U131)),0) -> 0 | V132: =IFERROR((SUM(V120:V131)),0) -> 0 | W132: =IFERROR((SUM(W120:W131)),0) -> 0 | X132: =IFERROR((SUM(X120:X131)),0) -> 0
B134: Vehicle | C134: PN | D134: Description | E134: Dealer Cost | F134: MSRP | G134: Install Time | H134: Parts Dept Profit | I134: Labor Revenue | J134: Service Dept Profit | K134: Cost To Sales | L134: Dealership Retail Price (Incl Labor) | M134: Sales Profit (Dlr Retail) | N134: Total Dlr Profit (Dlr Retail) | O134: MSRP (Incl Labor) | P134: Sales Profit (MSRP) | Q134: Total Dlr Profit (MSRP) | R134: % With Acc. | S134: # of Units with Acc. | T134: Est. Acc. Credit | U134: Total Parts Dept Profit | V134: Total Service Profit | W134: Total Sales Dept Profit | X134: Total Profit Opp
E135: =VLOOKUP(C135,PriceFile!B:F,5,FALSE) ->  | F135: =VLOOKUP(C135,PriceFile!$B:$D,3,FALSE) ->  | H135: =(E135*(SUM(1+$C$6))-E135) ->  | I135: =G135*$C$8 -> 0 | J135: =G135*$C$8*$C$9 -> 0 | K135: =SUM(E135+H135+I135) ->  | L135: =IF($C$5="Y","",(SUM(E135+H135)*(1+$C$7))+I135) ->  | M135: =IF($C$5="Y","",L135-K135) ->  | N135: =IF($C$5="Y","",SUM(H135+J135+M135)) ->  | O135: =IF($C$5="n","",F135+I135) ->  | P135: =IF($C$5="n","",O135-K135) ->  | Q135: =IF($C$5="n","",SUM(H135+J135+P135)) ->  | R135: =$R$11 -> 0.2 | S135: =ROUNDUP(($P$6*R135),0) -> 0 | T135: =S135*E135 ->  | U135: =S135*H135 ->  | V135: =S135*J135 -> 0 | W135: =IF($C$5="Y",S135*P135,S135*M135) ->  | X135: =IF($C$5="Y",S135*Q135,S135*N135) -> 
E136: =VLOOKUP(C136,PriceFile!B:F,5,FALSE) ->  | F136: =VLOOKUP(C136,PriceFile!$B:$D,3,FALSE) ->  | I136: 0 | J136: 0 | R136: 0.2 | S136: =ROUNDUP(($P$6*R136),0) -> 0 | U136: =S136*H136 ->  | V136: =S136*J136 -> 0
E137: =VLOOKUP(C137,PriceFile!B:F,5,FALSE) ->  | F137: =VLOOKUP(C137,PriceFile!$B:$D,3,FALSE) ->  | I137: 0 | J137: 0 | R137: 0.2 | S137: 0 | V137: 0
E138: =VLOOKUP(C138,PriceFile!B:F,5,FALSE) ->  | F138: =VLOOKUP(C138,PriceFile!$B:$D,3,FALSE) ->  | I138: 0 | J138: 0 | R138: 0.2 | S138: 0 | V138: 0
E139: =VLOOKUP(C139,PriceFile!B:F,5,FALSE) ->  | F139: =VLOOKUP(C139,PriceFile!$B:$D,3,FALSE) ->  | I139: 0 | J139: 0 | R139: 0.2 | S139: 0 | V139: 0
E140: =VLOOKUP(C140,PriceFile!B:F,5,FALSE) ->  | F140: =VLOOKUP(C140,PriceFile!$B:$D,3,FALSE) ->  | I140: 0 | J140: 0 | R140: 0.2 | S140: 0 | V140: 0
E141: =VLOOKUP(C141,PriceFile!B:F,5,FALSE) ->  | F141: =VLOOKUP(C141,PriceFile!$B:$D,3,FALSE) ->  | I141: 0 | J141: 0 | R141: 0.2 | S141: 0 | V141: 0
E142: =VLOOKUP(C142,PriceFile!B:F,5,FALSE) ->  | F142: =VLOOKUP(C142,PriceFile!$B:$D,3,FALSE) ->  | I142: 0 | J142: 0 | R142: 0.2 | S142: 0 | V142: 0
E143: =VLOOKUP(C143,PriceFile!B:F,5,FALSE) ->  | F143: =VLOOKUP(C143,PriceFile!$B:$D,3,FALSE) ->  | I143: 0 | J143: 0 | R143: 0.2 | S143: 0 | V143: 0
E144: =VLOOKUP(C144,PriceFile!B:F,5,FALSE) ->  | F144: =VLOOKUP(C144,PriceFile!$B:$D,3,FALSE) ->  | I144: 0 | J144: 0 | R144: 0.2 | S144: 0 | V144: 0
E145: =VLOOKUP(C145,PriceFile!B:F,5,FALSE) ->  | F145: =VLOOKUP(C145,PriceFile!$B:$D,3,FALSE) ->  | I145: 0 | J145: 0 | R145: 0.2 | S145: 0 | V145: 0
E146: =VLOOKUP(C146,PriceFile!B:F,5,FALSE) ->  | F146: =VLOOKUP(C146,PriceFile!$B:$D,3,FALSE) ->  | I146: 0 | J146: 0 | R146: 0.2 | S146: 0 | V146: 0
T147: =IFERROR((SUM(T135:T146)),0) -> 0 | U147: =IFERROR((SUM(U135:U146)),0) -> 0 | V147: =IFERROR((SUM(V135:V146)),0) -> 0 | W147: =IFERROR((SUM(W135:W146)),0) -> 0 | X147: =IFERROR((SUM(X135:X146)),0) -> 0

Sheet Quick Tips
A1: This workbook, to include menus and profit worksheet, are a guide to help initiate and drive the GM Accessories sales process at GM dealerships.
A4: Final pricing, installation, and taxes will be determined by VIN of the customer's vehicle.
A7: To Save the File as a PDF:
A8: 1. Click on the first tab you want in the file, hold down CTRL on the keyboard, and proceed to click on each of the tabs you want included in the file.
A9: 2. Click on File > Save As
A10: 3. From the Save As dialog box, click on the Save As Type drop-down
A11: 4. Select PDF
A12: 5. Change the filename if you wish
A13: 6. Select Save
A16: To Save the File to use on iPad/iPhone -- iCloud/iBooks:
A17: 1. Send file to email you can access on your tablet/phone
A18: 2. Open the email from your device
A19: 3. Click on attachment to download
A20: 4. In the top right corner, tap the icon (square with arrow pointing through it to the top)
A21: 5. Select where to save it (i.e. iCloud, iBooks, Adobe, etc.)

Sheet CustRecs (hidden)
A1: ADI | B1: ADI Name | C1: APR | D1: APR Name | E1: BAC | F1: Dealer Name | G1: Address | H1: City | I1: State | J1: Zip | K1: Region | L1: Zone | M1: Area | N1: Territory Sales Manager | Q1: 2016-08-30
A2: 234041 | B2: SouthWest ADI | C2: 2001 | D2: Austin, TX | E2: 114801 | F2: BRASHER-GUNN, INC. | G2: 108 W COLORADO | H2: LA GRANGE | I2: TX | J2: 78945 | K2: 20 | L2: 2118 | M2: 1181 | N2: EMILY CODDING
A3: 234041 | B3: SouthWest ADI | C3: 2001 | D3: Austin, TX | E3: 114811 | F3: DON HEWLETT CHEVROLET BUICK, | G3: 7601 IH - 35 S | H3: GEORGETOWN | I3: TX | J3: 78626 | K3: 20 | L3: 2213 | M3: 2134 | N3: EMILY CODDING
A4: 234041 | B4: SouthWest ADI | C4: 2001 | D4: Austin, TX | E4: 114811 | F4: DON HEWLETT CHEVROLET BUICK, | G4: 7601 IH - 35 S | H4: GEORGETOWN | I4: TX | J4: 78626 | K4: 20 | L4: 2118 | M4: 1181 | N4: EMILY CODDING
A5: 234041 | B5: SouthWest ADI | C5: 2001 | D5: Austin, TX | E5: 114865 | F5: RATLIFF CHEVROLET-BUICK | G5: 207 W YOUNG ST | H5: LLANO | I5: TX | J5: 78643 | K5: 20 | L5: 2118 | M5: 1185 | N5: EMILY CODDING
A6: 234041 | B6: SouthWest ADI | C6: 2001 | D6: Austin, TX | E6: 114876 | F6: CHUCK NASH CHEVROLET BUICK GMC | G6: 3209 N IH 35 | H6: SAN MARCOS | I6: TX | J6: 78666 | K6: 20 | L6: 2118 | M6: 1181 | N6: EMILY CODDING
A7: 234041 | B7: SouthWest ADI | C7: 2001 | D7: Austin, TX | E7: 114876 | F7: CHUCK NASH CHEVROLET BUICK GMC | G7: 3209 N IH 35 | H7: SAN MARCOS | I7: TX | J7: 78666 | K7: 20 | L7: 2213 | M7: 2134 | N7: EMILY CODDING
A8: 234041 | B8: SouthWest ADI | C8: 2001 | D8: Austin, TX | E8: 114878 | F8: COVERT CHEVROLET BUICK GMC | G8: 702 STATE HIGHWAY 71 W | H8: BASTROP | I8: TX | J8: 78602 | K8: 20 | L8: 2213 | M8: 2134 | N8: EMILY CODDING
A9: 234041 | B9: SouthWest ADI | C9: 2001 | D9: Austin, TX | E9: 114878 | F9: COVERT CHEVROLET BUICK GMC | G9: 702 STATE HIGHWAY 71 W | H9: BASTROP | I9: TX | J9: 78602 | K9: 20 | L9: 2118 | M9: 1181 | N9: EMILY CODDING
A10: 234041 | B10: SouthWest ADI | C10: 2001 | D10: Austin, TX | E10: 114906 | F10: HENNA CHEVROLET, L.P. | G10: 8805 IH-35 N | H10: AUSTIN | I10: TX | J10: 78753 | K10: 20 | L10: 2118 | M10: 1181 | N10: EMILY CODDING
A11: 234041 | B11: SouthWest ADI | C11: 2001 | D11: Austin, TX | E11: 118653 | F11: COVERT CADILLAC BUICK GMC | G11: 11750 B RESEARCH BLVD | H11: AUSTIN | I11: TX | J11: 78759 | K11: 20 | L11: 2213 | M11: 2134 | N11: EMILY CODDING
A12: 234041 | B12: SouthWest ADI | C12: 2001 | D12: Austin, TX | E12: 118653 | F12: COVERT CADILLAC BUICK GMC | G12: 11750 B RESEARCH BLVD | H12: AUSTIN | I12: TX | J12: 78759 | K12: 20 | L12: 2312 | M12: 3121 | N12: EMILY CODDING
A13: 234041 | B13: SouthWest ADI | C13: 2001 | D13: Austin, TX | E13: 161005 | F13: COVERT CHEVROLET OF HUTTO | G13: 1200B HWY 79 E | H13: HUTTO | I13: TX | J13: 78634 | K13: 20 | L13: 2118 | M13: 1181 | N13: EMILY CODDING
A14: 234041 | B14: SouthWest ADI | C14: 2001 | D14: Austin, TX | E14: 161576 | F14: CAPITOL CHEVROLET, INC. | G14: 6200 S IH 35 | H14: AUSTIN | I14: TX | J14: 78745 | K14: 20 | L14: 2118 | M14: 1181 | N14: EMILY CODDING
A15: 234041 | B15: SouthWest ADI | C15: 2001 | D15: Austin, TX | E15: 164064 | F15: AUTONATION CHEVROLET WEST | G15: 11400 RESEARCH BLVD | H15: AUSTIN | I15: TX | J15: 78759 | K15: 20 | L15: 2118 | M15: 1181 | N15: EMILY CODDING
A16: 234041 | B16: SouthWest ADI | C16: 2001 | D16: Austin, TX | E16: 189155 | F16: LULING CHEVROLET BUICK GMC | G16: 1088 E PIERCE ST | H16: LULING | I16: TX | J16: 78648 | K16: 20 | L16: 2118 | M16: 1181 | N16: EMILY CODDING
A17: 234041 | B17: SouthWest ADI | C17: 2001 | D17: Austin, TX | E17: 223149 | F17: NYLE MAXWELL GMC | G17: 3000 NORTH I-35 | H17: ROUND ROCK | I17: TX | J17: 78681 | K17: 20 | L17: 2213 | M17: 2134 | N17: EMILY CODDING
A18: 234041 | B18: SouthWest ADI | C18: 2001 | D18: Austin, TX | E18: 279899 | F18: RUSH CHEVROLET | G18: 1395 HWY 290 WEST | H18: ELGIN | I18: TX | J18: 78621 | K18: 20 | L18: 2118 | M18: 1181 | N18: EMILY CODDING
A19: 234041 | B19: SouthWest ADI | C19: 2001 | D19: Austin, TX | E19: 288717 | F19: BOB PRICE CHEVROLET BUICK GMC | G19: 1225 SOUTH STATE HIGHWAY | H19: FREDERICKSBURG | I19: TX | J19: 78624 | K19: 20 | L19: 2118 | M19: 1182 | N19: DINA MOTZ
A20: 234041 | B20: SouthWest ADI | C20: 2001 | D20: Austin, TX | E20: 291025 | F20: CHEVROLET BUICK MARBLE FALLS | G20: 2301 HWY 281 NORTH | H20: MARBLE FALLS | I20: TX | J20: 78654 | K20: 20 | L20: 2118 | M20: 1181 | N20: EMILY CODDING
A21: 234041 | B21: SouthWest ADI | C21: 2002 | D21: San Antonio, TX | E21: 114798 | F21: ATZENHOFFER CHEVROLET CADILLAC | G21: 3211 N NAVARRO | H21: VICTORIA | I21: TX | J21: 77901 | K21: 20 | L21: 2117 | M21: 1173 | N21: MARIO CRUZ
A22: 234041 | B22: SouthWest ADI | C22: 2002 | D22: San Antonio, TX | E22: 114807 | F22: REGENCY CHEVROLET, BUICK, GMC | G22: 825 E MAIN | H22: UVALDE | I22: TX | J22: 78801 | K22: 20 | L22: 2118 | M22: 1185 | N22: DINA MOTZ
A23: 234041 | B23: SouthWest ADI | C23: 2002 | D23: San Antonio, TX | E23: 114816 | F23: THE ANCIRA-WINTON CHEVROLET, | G23: 6111 BANDERA AT WURZBACH | H23: SAN ANTONIO | I23: TX | J23: 78238 | K23: 20 | L23: 2118 | M23: 1182 | N23: DINA MOTZ
A24: 234041 | B24: SouthWest ADI | C24: 2002 | D24: San Antonio, TX | E24: 114841 | F24: KOEPP CHEVROLET, INC. | G24: 13221 US HWY W 87 | H24: LA VERNIA | I24: TX | J24: 78121 | K24: 20 | L24: 2118 | M24: 1185 | N24: MARIO CRUZ
A25: 234041 | B25: SouthWest ADI | C25: 2002 | D25: San Antonio, TX | E25: 114843 | F25: SEGUIN CHEVROLET, INC. | G25: 509 W I-H 10 | H25: SEGUIN | I25: TX | J25: 78155 | K25: 20 | L25: 2118 | M25: 1182 | N25: DINA MOTZ
A26: 234041 | B26: SouthWest ADI | C26: 2002 | D26: San Antonio, TX | E26: 114860 | F26: TOM BENSON CHEVROLET | G26: 9400 SAN PEDRO AVE | H26: SAN ANTONIO | I26: TX | J26: 78216 | K26: 20 | L26: 2118 | M26: 1182 | N26: DINA MOTZ
A27: 234041 | B27: SouthWest ADI | C27: 2002 | D27: San Antonio, TX | E27: 114877 | F27: RICHARDSON BROS., INC. | G27: 1539 NORTH HWY 181 | H27: FLORESVILLE | I27: TX | J27: 78114 | K27: 20 | L27: 2118 | M27: 1182 | N27: MARIO CRUZ
A28: 234041 | B28: SouthWest ADI | C28: 2002 | D28: San Antonio, TX | E28: 114890 | F28: PRICE CHEVROLET | G28: 2035 W OAKLAWN | H28: PLEASANTON | I28: TX | J28: 78064 | K28: 20 | L28: 2118 | M28: 1182 | N28: MARIO CRUZ
A29: 234041 | B29: SouthWest ADI | C29: 2002 | D29: San Antonio, TX | E29: 114899 | F29: BROWN CHEVROLET COMPANY INC | G29: 340 IH 35 SOUTH | H29: DEVINE | I29: TX | J29: 78016 | K29: 20 | L29: 2118 | M29: 1182 | N29: DINA MOTZ
A30: 234041 | B30: SouthWest ADI | C30: 2002 | D30: San Antonio, TX | E30: 114907 | F30: VARA CHEVROLET | G30: 8011 I-H 35 S | H30: SAN ANTONIO | I30: TX | J30: 78224 | K30: 20 | L30: 2118 | M30: 1182 | N30: DINA MOTZ
A31: 234041 | B31: SouthWest ADI | C31: 2002 | D31: San Antonio, TX | E31: 114916 | F31: GUNN CHEVROLET, LTD. | G31: 16550 IH 35 NORTH | H31: SELMA | I31: TX | J31: 78154 | K31: 20 | L31: 2118 | M31: 1182 | N31: DINA MOTZ
A32: 234041 | B32: SouthWest ADI | C32: 2002 | D32: San Antonio, TX | E32: 116649 | F32: WITTE, INC. | G32: 201 S MARKET ST | H32: KARNES CITY | I32: TX | J32: 78118 | K32: 20 | L32: 2213 | M32: 2134 | N32: MARIO CRUZ
A33: 234041 | B33: SouthWest ADI | C33: 2002 | D33: San Antonio, TX | E33: 117706 | F33: GRAFE CHEVROLET GMC | G33: 407 FAIRWINDS | H33: HALLETTSVILLE | I33: TX | J33: 77964 | K33: 20 | L33: 2117 | M33: 1175 | N33: MARIO CRUZ
A34: 234041 | B34: SouthWest ADI | C34: 2002 | D34: San Antonio, TX | E34: 117720 | F34: SOECHTING MOTORS, INC. | G34: 603 E KINGSBURY ST | H34: SEGUIN | I34: TX | J34: 78155 | K34: 20 | L34: 2213 | M34: 2134 | N34: DINA MOTZ
A35: 234041 | B35: SouthWest ADI | C35: 2002 | D35: San Antonio, TX | E35: 118664 | F35: CAVENDER BUICK GMC | G35: 17811 SAN PEDRO | H35: SAN ANTONIO | I35: TX | J35: 78232 | K35: 20 | L35: 2213 | M35: 2134 | N35: DINA MOTZ
A36: 234041 | B36: SouthWest ADI | C36: 2002 | D36: San Antonio, TX | E36: 118962 | F36: PURSCH MOTORS INC. | G36: 2207 W OAKLAWN | H36: PLEASANTON | I36: TX | J36: 78064 | K36: 20 | L36: 2213 | M36: 2134 | N36: MARIO CRUZ
A37: 234041 | B37: SouthWest ADI | C37: 2002 | D37: San Antonio, TX | E37: 119226 | F37: KEN BATCHELOR CADILLAC | G37: 11001 W IH 10 | H37: SAN ANTONIO | I37: TX | J37: 78230 | K37: 20 | L37: 2312 | M37: 3121 | N37: DINA MOTZ
A38: 234041 | B38: SouthWest ADI | C38: 2002 | D38: San Antonio, TX | E38: 119227 | F38: CAVENDER CADILLAC COMPANY | G38: 7625 N LOOP 1604 EAST | H38: SAN ANTONIO | I38: TX | J38: 78233 | K38: 20 | L38: 2312 | M38: 3121 | N38: DINA MOTZ
A39: 234041 | B39: SouthWest ADI | C39: 2002 | D39: San Antonio, TX | E39: 119498 | F39: ANCIRA BUICK GMC | G39: 30500 I H 10 W | H39: BOERNE | I39: TX | J39: 78006 | K39: 20 | L39: 2213 | M39: 2134 | N39: DINA MOTZ
A40: 234041 | B40: SouthWest ADI | C40: 2002 | D40: San Antonio, TX | E40: 119500 | F40: CRENWELGE MOTORS | G40: 301 MAIN ST | H40: KERRVILLE | I40: TX | J40: 78028 | K40: 20 | L40: 2213 | M40: 2134 | N40: DINA MOTZ
A41: 234041 | B41: SouthWest ADI | C41: 2002 | D41: San Antonio, TX | E41: 131082 | F41: GUNN BUICK-GMC, LTD | G41: 16440 I-H 35 NORTH | H41: SELMA | I41: TX | J41: 78154 | K41: 20 | L41: 2213 | M41: 2134 | N41: DINA MOTZ
A42: 234041 | B42: SouthWest ADI | C42: 2002 | D42: San Antonio, TX | E42: 151650 | F42: CECIL ATKISSION MOTORS | G42: 550 BENSON DR | H42: KERRVILLE | I42: TX | J42: 78028 | K42: 20 | L42: 2118 | M42: 1182 | N42: DINA MOTZ
A43: 234041 | B43: SouthWest ADI | C43: 2002 | D43: San Antonio, TX | E43: 158904 | F43: CAVENDER CHEVROLET | G43: 30700 INTERSTATE 10 - WEST | H43: BOERNE | I43: TX | J43: 78006 | K43: 20 | L43: 2118 | M43: 1182 | N43: DINA MOTZ
A44: 234041 | B44: SouthWest ADI | C44: 2002 | D44: San Antonio, TX | E44: 172528 | F44: CASTROVILLE CHEVROLET | G44: 1955 HWY 90 EAST | H44: CASTROVILLE | I44: TX | J44: 78009 | K44: 20 | L44: 2118 | M44: 1182 | N44: DINA MOTZ
A45: 234041 | B45: SouthWest ADI | C45: 2002 | D45: San Antonio, TX | E45: 202445 | F45: BROWN AUTOMOTIVE CENTER, INC. | G45: 2520 VETERANS BLVD | H45: DEL RIO | I45: TX | J45: 78840 | K45: 20 | L45: 2213 | M45: 2134 | N45: DINA MOTZ
A46: 234041 | B46: SouthWest ADI | C46: 2002 | D46: San Antonio, TX | E46: 202445 | F46: BROWN AUTOMOTIVE CENTER, INC. | G46: 2520 VETERANS BLVD | H46: DEL RIO | I46: TX | J46: 78840 | K46: 20 | L46: 2118 | M46: 1185 | N46: DINA MOTZ
A47: 234041 | B47: SouthWest ADI | C47: 2002 | D47: San Antonio, TX | E47: 204132 | F47: FREEDOM CHEVROLET | G47: 13483 IH 10 W | H47: SAN ANTONIO | I47: TX | J47: 78249 | K47: 20 | L47: 2118 | M47: 1182 | N47: DINA MOTZ
A48: 234041 | B48: SouthWest ADI | C48: 2002 | D48: San Antonio, TX | E48: 207673 | F48: BROWN CHEVY BUICK GMC OF EAGLE | G48: 3860 US HIGHWAY 57 | H48: EAGLE PASS | I48: TX | J48: 78852 | K48: 20 | L48: 2118 | M48: 1185 | N48: DINA MOTZ
A49: 234041 | B49: SouthWest ADI | C49: 2002 | D49: San Antonio, TX | E49: 208869 | F49: VALMARK CHEVROLET | G49: 725 IH 35 S | H49: NEW BRAUNFELS | I49: TX | J49: 78130 | K49: 20 | L49: 2118 | M49: 1182 | N49: DINA MOTZ
A50: 234041 | B50: SouthWest ADI | C50: 2002 | D50: San Antonio, TX | E50: 213132 | F50: PARTNERS CHEVROLET BUICK GMC | G50: 1409 E BROADWAY ST | H50: CUERO | I50: TX | J50: 77954 | K50: 20 | L50: 2213 | M50: 2134 | N50: MARIO CRUZ
A51: 234041 | B51: SouthWest ADI | C51: 2002 | D51: San Antonio, TX | E51: 213132 | F51: PARTNERS CHEVROLET BUICK GMC | G51: 1409 E BROADWAY ST | H51: CUERO | I51: TX | J51: 77954 | K51: 20 | L51: 2118 | M51: 1181 | N51: MARIO CRUZ
A52: 234041 | B52: SouthWest ADI | C52: 2002 | D52: San Antonio, TX | E52: 226952 | F52: VICTORY BUICK GMC | G52: 4702 N NAVARRO | H52: VICTORIA | I52: TX | J52: 77904 | K52: 20 | L52: 2213 | M52: 2132 | N52: MARIO CRUZ
A53: 234041 | B53: SouthWest ADI | C53: 2002 | D53: San Antonio, TX | E53: 279846 | F53: WORFE CHEVROLET, LLC | G53: 16919 I H 35 SOUTH | H53: DILLEY | I53: TX | J53: 78017 | K53: 20 | L53: 2118 | M53: 1185 | N53: MARIO CRUZ
A54: 234041 | B54: SouthWest ADI | C54: 2002 | D54: San Antonio, TX | E54: 281502 | F54: CAVENDER BUICK GMC WEST | G54: 7400 W LOOP 1604N | H54: SAN ANTONIO | I54: TX | J54: 78254 | K54: 20 | L54: 2213 | M54: 2134 | N54: DINA MOTZ
A55: 234041 | B55: SouthWest ADI | C55: 2005 | D55: Dallas, TX | E55: 112219 | F55: BRUCE LOWRIE CHEVROLET, INC. | G55: 711 SW LOOP 820 | H55: FORT WORTH | I55: TX | J55: 76134 | K55: 20 | L55: 2116 | M55: 1162 | N55: KIM MALONEY
A56: 234041 | B56: SouthWest ADI | C56: 2005 | D56: Dallas, TX | E56: 112220 | F56: BAYER MOTOR CO., INC. | G56: 1101 W CENTRAL | H56: COMANCHE | I56: TX | J56: 76442 | K56: 20 | L56: 2116 | M56: 1162 | N56: KIM MALONEY
A57: 234041 | B57: SouthWest ADI | C57: 2005 | D57: Dallas, TX | E57: 112220 | F57: BAYER MOTOR CO., INC. | G57: 1101 W CENTRAL | H57: COMANCHE | I57: TX | J57: 76442 | K57: 20 | L57: 2212 | M57: 2124 | N57: KIM MALONEY
A58: 234041 | B58: SouthWest ADI | C58: 2005 | D58: Dallas, TX | E58: 112222 | F58: AUTONATION CHEVROLET ENNIS | G58: 401 S I-45 | H58: ENNIS | I58: TX | J58: 75119 | K58: 20 | L58: 2116 | M58: 1165 | N58: MICHAEL FOGLE
A59: 234041 | B59: SouthWest ADI | C59: 2005 | D59: Dallas, TX | E59: 112223 | F59: JIM HOFFPAUIR, INC. | G59: 802 N KEY | H59: LAMPASAS | I59: TX | J59: 76550 | K59: 20 | L59: 2117 | M59: 1174 | N59: EMILY CODDING
A60: 234041 | B60: SouthWest ADI | C60: 2005 | D60: Dallas, TX | E60: 112227 | F60: CARLISLE CHEVROLET BUICK GMC | G60: 1701 W HIGHWAY 287 BYP | H60: WAXAHACHIE | I60: TX | J60: 75165 | K60: 20 | L60: 2212 | M60: 2124 | N60: MICHAEL FOGLE
A61: 234041 | B61: SouthWest ADI | C61: 2005 | D61: Dallas, TX | E61: 112227 | F61: CARLISLE CHEVROLET BUICK GMC | G61: 1701 W HIGHWAY 287 BYP | H61: WAXAHACHIE | I61: TX | J61: 75165 | K61: 20 | L61: 2116 | M61: 1165 | N61: MICHAEL FOGLE
A62: 234041 | B62: SouthWest ADI | C62: 2005 | D62: Dallas, TX | E62: 112227 | F62: CARLISLE CHEVROLET BUICK GMC | G62: 1701 W HIGHWAY 287 BYP | H62: WAXAHACHIE | I62: TX | J62: 75165 | K62: 20 | L62: 2312 | M62: 3124 | N62: MICHAEL FOGLE
A63: 234041 | B63: SouthWest ADI | C63: 2005 | D63: Dallas, TX | E63: 112228 | F63: RAMEY CHEVROLET CADILLAC CO. | G63: 600 E LAMBERTH RD | H63: SHERMAN | I63: TX | J63: 75090 | K63: 20 | L63: 2116 | M63: 1163 | N63: KIM MALONEY
A64: 234041 | B64: SouthWest ADI | C64: 2005 | D64: Dallas, TX | E64: 112232 | F64: EL DORADO MOTORS, INC. | G64: 2300 N CENTRAL EXPRESSWAY | H64: MCKINNEY | I64: TX | J64: 75070 | K64: 20 | L64: 2116 | M64: 1163 | N64: KIM MALONEY
A65: 234041 | B65: SouthWest ADI | C65: 2005 | D65: Dallas, TX | E65: 112237 | F65: CLASSIC CHEVROLET BUICK GMC | G65: 1909 HWY 377 E | H65: GRANBURY | I65: TX | J65: 76049 | K65: 20 | L65: 2116 | M65: 1162 | N65: KIM MALONEY
A66: 234041 | B66: SouthWest ADI | C66: 2005 | D66: Dallas, TX | E66: 112237 | F66: CLASSIC CHEVROLET BUICK GMC | G66: 1909 HWY 377 E | H66: GRANBURY | I66: TX | J66: 76049 | K66: 20 | L66: 2212 | M66: 2124 | N66: KIM MALONEY
A67: 234041 | B67: SouthWest ADI | C67: 2005 | D67: Dallas, TX | E67: 112239 | F67: LAKESIDE CHEVROLET COMPANY | G67: 2005 S GOLIAD | H67: ROCKWALL | I67: TX | J67: 75087 | K67: 20 | L67: 2116 | M67: 1165 | N67: ANNETTE HEDBLOM
A68: 234041 | B68: SouthWest ADI | C68: 2005 | D68: Dallas, TX | E68: 112242 | F68: BEENE MOTOR SALES, INC | G68: 1100 E MILAM | H68: MEXIA | I68: TX | J68: 76667 | K68: 20 | L68: 2117 | M68: 1174 | N68: MICHAEL FOGLE
A69: 234041 | B69: SouthWest ADI | C69: 2005 | D69: Dallas, TX | E69: 112243 | F69: JAMES WOOD CHEVROLET BUICK GMC | G69: 2111 S HWY 287 | H69: DECATUR | I69: TX | J69: 76234 | K69: 20 | L69: 2116 | M69: 1163 | N69: MICHAEL FOGLE
A70: 234041 | B70: SouthWest ADI | C70: 2005 | D70: Dallas, TX | E70: 112243 | F70: JAMES WOOD CHEVROLET BUICK GMC | G70: 2111 S HWY 287 | H70: DECATUR | I70: TX | J70: 76234 | K70: 20 | L70: 2212 | M70: 2123 | N70: MICHAEL FOGLE
A71: 234041 | B71: SouthWest ADI | C71: 2005 | D71: Dallas, TX | E71: 112247 | F71: BACON CHEVROLET, INC. | G71: 1129 FRANKSTON HIGHWAY N | H71: FRANKSTON | I71: TX | J71: 75763 | K71: 20 | L71: 2116 | M71: 1164 | N71: JOHNNY SANSOM
A72: 234041 | B72: SouthWest ADI | C72: 2005 | D72: Dallas, TX | E72: 112248 | F72: FRIENDLY CHEVROLET, LTD. | G72: 2754 N STEMMONS FWY | H72: DALLAS | I72: TX | J72: 75207 | K72: 20 | L72: 2116 | M72: 1161 | N72: MICHAEL FOGLE
A73: 234041 | B73: SouthWest ADI | C73: 2005 | D73: Dallas, TX | E73: 112254 | F73: GRAFF CHEVROLET COMPANY | G73: 1405 E MAIN ST | H73: GRAND PRAIRIE | I73: TX | J73: 75050 | K73: 20 | L73: 2116 | M73: 1165 | N73: ANNETTE HEDBLOM
A74: 234041 | B74: SouthWest ADI | C74: 2005 | D74: Dallas, TX | E74: 112261 | F74: HUFFINES CHEVROLET | G74: 1400 S I-35E | H74: LEWISVILLE | I74: TX | J74: 75067 | K74: 20 | L74: 2116 | M74: 1161 | N74: MICHAEL FOGLE
A75: 234041 | B75: SouthWest ADI | C75: 2005 | D75: Dallas, TX | E75: 112263 | F75: JUPITER CHEVROLET, L.P. | G75: 11611 LBJ FWY | H75: GARLAND | I75: TX | J75: 75041 | K75: 20 | L75: 2116 | M75: 1161 | N75: ANNETTE HEDBLOM
A76: 234041 | B76: SouthWest ADI | C76: 2005 | D76: Dallas, TX | E76: 112265 | F76: BRUNER MOTORS, INC. | G76: 1515 S LOOP | H76: STEPHENVILLE | I76: TX | J76: 76401 | K76: 20 | L76: 2116 | M76: 1162 | N76: KIM MALONEY
A77: 234041 | B77: SouthWest ADI | C77: 2005 | D77: Dallas, TX | E77: 112265 | F77: BRUNER MOTORS, INC. | G77: 1515 S LOOP | H77: STEPHENVILLE | I77: TX | J77: 76401 | K77: 20 | L77: 2312 | M77: 3122 | N77: KIM MALONEY
A78: 234041 | B78: SouthWest ADI | C78: 2005 | D78: Dallas, TX | E78: 112266 | F78: BOB TEDFORD CHEVROLET CO. | G78: 1344 W AUDIE MURPHY | H78: FARMERSVILLE | I78: TX | J78: 75442 | K78: 20 | L78: 2116 | M78: 1163 | N78: ANNETTE HEDBLOM
A79: 234041 | B79: SouthWest ADI | C79: 2005 | D79: Dallas, TX | E79: 112268 | F79: LEWIS CHEVROLET BUICK GMC | G79: 385 W DALLAS ST | H79: CANTON | I79: TX | J79: 75103 | K79: 20 | L79: 2212 | M79: 2124 | N79: JOHNNY SANSOM
A80: 234041 | B80: SouthWest ADI | C80: 2005 | D80: Dallas, TX | E80: 112268 | F80: LEWIS CHEVROLET BUICK GMC | G80: 385 W DALLAS ST | H80: CANTON | I80: TX | J80: 75103 | K80: 20 | L80: 2116 | M80: 1165 | N80: JOHNNY SANSOM
A81: 234041 | B81: SouthWest ADI | C81: 2005 | D81: Dallas, TX | E81: 112277 | F81: JAMES WOOD CHEVROLET-CADILLAC | G81: 3906 I-35E S | H81: DENTON | I81: TX | J81: 76210 | K81: 20 | L81: 2312 | M81: 3122 | N81: MICHAEL FOGLE
A82: 234041 | B82: SouthWest ADI | C82: 2005 | D82: Dallas, TX | E82: 112277 | F82: JAMES WOOD CHEVROLET-CADILLAC | G82: 3906 I-35E S | H82: DENTON | I82: TX | J82: 76210 | K82: 20 | L82: 2116 | M82: 1163 | N82: MICHAEL FOGLE
A83: 234041 | B83: SouthWest ADI | C83: 2005 | D83: Dallas, TX | E83: 112282 | F83: DOW AUTOPLEX | G83: 1313 S PACIFIC | H83: MINEOLA | I83: TX | J83: 75773 | K83: 20 | L83: 2214 | M83: 2142 | N83: JIM GAGNON
A84: 234041 | B84: SouthWest ADI | C84: 2005 | D84: Dallas, TX | E84: 112282 | F84: DOW AUTOPLEX | G84: 1313 S PACIFIC | H84: MINEOLA | I84: TX | J84: 75773 | K84: 20 | L84: 2116 | M84: 1164 | N84: JIM GAGNON
A85: 234041 | B85: SouthWest ADI | C85: 2005 | D85: Dallas, TX | E85: 112288 | F85: JERRY'S CHEVROLET, CADILLAC | G85: 3118 FORT WORTH HWY | H85: WEATHERFORD | I85: TX | J85: 76087 | K85: 20 | L85: 2212 | M85: 2124 | N85: KIM MALONEY
A86: 234041 | B86: SouthWest ADI | C86: 2005 | D86: Dallas, TX | E86: 112288 | F86: JERRY'S CHEVROLET, CADILLAC | G86: 3118 FORT WORTH HWY | H86: WEATHERFORD | I86: TX | J86: 76087 | K86: 20 | L86: 2312 | M86: 3122 | N86: KIM MALONEY
A87: 234041 | B87: SouthWest ADI | C87: 2005 | D87: Dallas, TX | E87: 112288 | F87: JERRY'S CHEVROLET, CADILLAC | G87: 3118 FORT WORTH HWY | H87: WEATHERFORD | I87: TX | J87: 76087 | K87: 20 | L87: 2116 | M87: 1162 | N87: KIM MALONEY
A88: 234041 | B88: SouthWest ADI | C88: 2005 | D88: Dallas, TX | E88: 112290 | F88: CHUCK FAIRBANKS CHEVROLET, INC. | G88: 629 N BECKLEY | H88: DESOTO | I88: TX | J88: 75115 | K88: 20 | L88: 2116 | M88: 1161 | N88: MICHAEL FOGLE
A89: 234041 | B89: SouthWest ADI | C89: 2005 | D89: Dallas, TX | E89: 112295 | F89: CLASSIC CHEVROLET, INC. | G89: 1101 HWY 114 W | H89: GRAPEVINE | I89: TX | J89: 76051 | K89: 20 | L89: 2116 | M89: 1161 | N89: JOHNNY SANSOM
A90: 234041 | B90: SouthWest ADI | C90: 2005 | D90: Dallas, TX | E90: 112297 | F90: GLOFF MOTORS, INC. | G90: 1106 N AVENUE G | H90: CLIFTON | I90: TX | J90: 76634 | K90: 20 | L90: 2117 | M90: 1175 | N90: KIM MALONEY
A91: 234041 | B91: SouthWest ADI | C91: 2005 | D91: Dallas, TX | E91: 112298 | F91: DON RINGLER CHEVROLET | G91: 7777 S GENERAL BRUCE DR | H91: TEMPLE | I91: TX | J91: 76502 | K91: 20 | L91: 2117 | M91: 1174 | N91: KIM MALONEY
A92: 234041 | B92: SouthWest ADI | C92: 2005 | D92: Dallas, TX | E92: 112299 | F92: AUTONATION CHEVROLET WACO | G92: 1625 N VALLEY MILLS DRIVE | H92: WACO | I92: TX | J92: 76710 | K92: 20 | L92: 2117 | M92: 1174 | N92: MICHAEL FOGLE
A93: 234041 | B93: SouthWest ADI | C93: 2005 | D93: Dallas, TX | E93: 112301 | F93: TEAM BONNER CHEVROLET CADILLAC | G93: 2900 EISENHOWER PKY | H93: DENISON | I93: TX | J93: 75020 | K93: 20 | L93: 2116 | M93: 1163 | N93: ANNETTE HEDBLOM
A94: 234041 | B94: SouthWest ADI | C94: 2005 | D94: Dallas, TX | E94: 112302 | F94: LYNN SMITH CHEVROLET | G94: 925 N BURLESON BLVD | H94: BURLESON | I94: TX | J94: 76028 | K94: 20 | L94: 2116 | M94: 1162 | N94: KIM MALONEY
A95: 234041 | B95: SouthWest ADI | C95: 2005 | D95: Dallas, TX | E95: 112311 | F95: RELIABLE CHEVROLET | G95: 800 N CENTRAL EXPY | H95: RICHARDSON | I95: TX | J95: 75080 | K95: 20 | L95: 2116 | M95: 1161 | N95: MICHAEL FOGLE
A96: 234041 | B96: SouthWest ADI | C96: 2005 | D96: Dallas, TX | E96: 112317 | F96: YOUNG CHEVROLET, INC. | G96: 9301 E RL THORNTON FWY | H96: DALLAS | I96: TX | J96: 75228 | K96: 20 | L96: 2116 | M96: 1161 | N96: JOHNNY SANSOM
A97: 234041 | B97: SouthWest ADI | C97: 2005 | D97: Dallas, TX | E97: 112318 | F97: RAY HUFFINES CHEVROLET, INC. | G97: 1001 COIT RD | H97: PLANO | I97: TX | J97: 75075 | K97: 20 | L97: 2116 | M97: 1161 | N97: ANNETTE HEDBLOM
A98: 234041 | B98: SouthWest ADI | C98: 2005 | D98: Dallas, TX | E98: 112320 | F98: TOM LIGHT CHEVROLET COMPANY | G98: 738 N EARL RUDDER FRWY | H98: BRYAN | I98: TX | J98: 77802 | K98: 20 | L98: 2117 | M98: 1174 | N98: JASON COLBY
A99: 234041 | B99: SouthWest ADI | C99: 2005 | D99: Dallas, TX | E99: 112323 | F99: CUTSHAW CHEVROLET INC | G99: HWY 287 S | H99: GRAPELAND | I99: TX | J99: 75844 | K99: 20 | L99: 2116 | M99: 1164 | N99: JOHNNY SANSOM
A100: 234041 | B100: SouthWest ADI | C100: 2005 | D100: Dallas, TX | E100: 112326 | F100: GOUND CHEVROLET COMPANY | G100: 1015 NORTH ST | H100: NACOGDOCHES | I100: TX | J100: 75961 | K100: 20 | L100: 2116 | M100: 1164 | N100: JIM GAGNON
A101: 234041 | B101: SouthWest ADI | C101: 2005 | D101: Dallas, TX | E101: 112328 | F101: MILLER-STARNES CHEVROLET-BUICK, | G101: 476 W CAMERON | H101: ROCKDALE | I101: TX | J101: 76567 | K101: 20 | L101: 2117 | M101: 1175 | N101: JASON COLBY
A102: 234041 | B102: SouthWest ADI | C102: 2005 | D102: Dallas, TX | E102: 112355 | F102: MID-AMERICA AUTO GROUP | G102: 1301 N BROADWAY | H102: ADA | I102: OK | J102: 74820 | K102: 20 | L102: 2113 | M102: 1131 | N102: ANNETTE HEDBLOM
A103: 234041 | B103: SouthWest ADI | C103: 2005 | D103: Dallas, TX | E103: 112428 | F103: TISHOMINGO CHEVROLET, INC. | G103: 1120 W MAIN | H103: TISHOMINGO | I103: OK | J103: 73460 | K103: 20 | L103: 2113 | M103: 1135 | N103: ANNETTE HEDBLOM
A104: 234041 | B104: SouthWest ADI | C104: 2005 | D104: Dallas, TX | E104: 114145 | F104: ARNOLD-BAKER CHEVROLET CO. | G104: 619 S WASHINGTON | H104: MAGNOLIA | I104: AR | J104: 71753 | K104: 20 | L104: 2114 | M104: 1146 | N104: JIM GAGNON
A105: 234041 | B105: SouthWest ADI | C105: 2005 | D105: Dallas, TX | E105: 114147 | F105: YORK GARY AUTOPLEX, INC. | G105: 1420 W LESLIE ST | H105: NASHVILLE | I105: AR | J105: 71852 | K105: 20 | L105: 2114 | M105: 1144 | N105: JIM GAGNON
A106: 234041 | B106: SouthWest ADI | C106: 2005 | D106: Dallas, TX | E106: 114173 | F106: TEAGUE CHEVROLET TOYOTA, INC. | G106: 1830 W HILLSBORO | H106: EL DORADO | I106: AR | J106: 71730 | K106: 20 | L106: 2115 | M106: 1156 | N106: JIM GAGNON
A107: 234041 | B107: SouthWest ADI | C107: 2005 | D107: Dallas, TX | E107: 114257 | F107: PIPPEN MOTOR COMPANY | G107: 1300 W PANOLA ST | H107: CARTHAGE | I107: TX | J107: 75633 | K107: 20 | L107: 2214 | M107: 2142 | N107: JIM GAGNON
A108: 234041 | B108: SouthWest ADI | C108: 2005 | D108: Dallas, TX | E108: 114257 | F108: PIPPEN MOTOR COMPANY | G108: 1300 W PANOLA ST | H108: CARTHAGE | I108: TX | J108: 75633 | K108: 20 | L108: 2115 | M108: 1156 | N108: JIM GAGNON
A109: 234041 | B109: SouthWest ADI | C109: 2005 | D109: Dallas, TX | E109: 114259 | F109: YAZELL CHEVROLET INC. | G109: 701 S WOOD ST | H109: GILMER | I109: TX | J109: 75644 | K109: 20 | L109: 2115 | M109: 1156 | N109: JIM GAGNON
A110: 234041 | B110: SouthWest ADI | C110: 2005 | D110: Dallas, TX | E110: 114265 | F110: PETERS CHEVROLET, INC. | G110: 4181 HWY 259 NORTH | H110: LONGVIEW | I110: TX | J110: 75605 | K110: 20 | L110: 2116 | M110: 1164 | N110: JIM GAGNON
A111: 234041 | B111: SouthWest ADI | C111: 2005 | D111: Dallas, TX | E111: 114266 | F111: NEHLS CHEVROLET | G111: 4801 E END BLVD S | H111: MARSHALL | I111: TX | J111: 75672 | K111: 20 | L111: 2115 | M111: 1156 | N111: JIM GAGNON
A112: 234041 | B112: SouthWest ADI | C112: 2005 | D112: Dallas, TX | E112: 114267 | F112: SANDLIN MOTORS, INC. | G112: 204-6 E 16TH ST | H112: MOUNT PLEASANT | I112: TX | J112: 75455 | K112: 20 | L112: 2116 | M112: 1164 | N112: JIM GAGNON
A113: 234041 | B113: SouthWest ADI | C113: 2005 | D113: Dallas, TX | E113: 114271 | F113: ORR, INC. | G113: 4502 GUSS ORR DRIVE | H113: TEXARKANA | I113: TX | J113: 75503 | K113: 20 | L113: 2115 | M113: 1153 | N113: JIM GAGNON
A114: 234041 | B114: SouthWest ADI | C114: 2005 | D114: Dallas, TX | E114: 114273 | F114: RAY JONES CHEVROLET | G114: 1727 TENAHA ST | H114: CENTER | I114: TX | J114: 75935 | K114: 20 | L114: 2115 | M114: 1156 | N114: JIM GAGNON
A115: 234041 | B115: SouthWest ADI | C115: 2005 | D115: Dallas, TX | E115: 114378 | F115: JAMES HODGE CHEVROLET OF BROKEN | G115: 1207 S PARK DR | H115: BROKEN BOW | I115: OK | J115: 74728 | K115: 20 | L115: 2115 | M115: 1156 | N115: JIM GAGNON
A116: 234041 | B116: SouthWest ADI | C116: 2005 | D116: Dallas, TX | E116: 116543 | F116: FREEMAN BUICK-GMC | G116: 501 WEST STATE HWY 114 | H116: GRAPEVINE | I116: TX | J116: 76051 | K116: 20 | L116: 2212 | M116: 2123 | N116: KIM MALONEY
A117: 234041 | B117: SouthWest ADI | C117: 2005 | D117: Dallas, TX | E117: 116549 | F117: J. P. HARVEY MOTORS, INC. | G117: 700 E MAIN ST | H117: CLARKSVILLE | I117: TX | J117: 75426 | K117: 20 | L117: 2116 | M117: 1165 | N117: JIM GAGNON
A118: 234041 | B118: SouthWest ADI | C118: 2005 | D118: Dallas, TX | E118: 116555 | F118: SEWELL BUICK GMC | G118: 7474 LEMMON AVE | H118: DALLAS | I118: TX | J118: 75209 | K118: 20 | L118: 2212 | M118: 2123 | N118: ANNETTE HEDBLOM
A119: 234041 | B119: SouthWest ADI | C119: 2005 | D119: Dallas, TX | E119: 116606 | F119: BRAD FENTON MOTORS OF ARDMORE, | G119: 1540 N ROCKFORD RD | H119: ARDMORE | I119: OK | J119: 73401 | K119: 20 | L119: 2212 | M119: 2123 | N119: ANNETTE HEDBLOM
A120: 234041 | B120: SouthWest ADI | C120: 2005 | D120: Dallas, TX | E120: 116606 | F120: BRAD FENTON MOTORS OF ARDMORE, | G120: 1540 N ROCKFORD RD | H120: ARDMORE | I120: OK | J120: 73401 | K120: 20 | L120: 2113 | M120: 1131 | N120: ANNETTE HEDBLOM
A121: 234041 | B121: SouthWest ADI | C121: 2005 | D121: Dallas, TX | E121: 116610 | F121: MONCO MOTOR CO. | G121: 301 SAN AUGUSTINE ST | H121: CENTER | I121: TX | J121: 75935 | K121: 20 | L121: 2214 | M121: 2142 | N121: JIM GAGNON
A122: 234041 | B122: SouthWest ADI | C122: 2005 | D122: Dallas, TX | E122: 116668 | F122: PATRIOT BUICK-GMC | G122: 4600 E CENTRAL TEXAS EXPY | H122: KILLEEN | I122: TX | J122: 76543 | K122: 20 | L122: 2212 | M122: 2124 | N122: KIM MALONEY
A123: 234041 | B123: SouthWest ADI | C123: 2005 | D123: Dallas, TX | E123: 117660 | F123: LIVELY CADILLAC GMC COMPANY, | G123: 400 SPUR 63 N | H123: LONGVIEW | I123: TX | J123: 75601 | K123: 20 | L123: 2214 | M123: 2142 | N123: JIM GAGNON
A124: 234041 | B124: SouthWest ADI | C124: 2005 | D124: Dallas, TX | E124: 117660 | F124: LIVELY CADILLAC GMC COMPANY, | G124: 400 SPUR 63 N | H124: LONGVIEW | I124: TX | J124: 75601 | K124: 20 | L124: 2312 | M124: 3124 | N124: JIM GAGNON
A125: 234041 | B125: SouthWest ADI | C125: 2005 | D125: Dallas, TX | E125: 117668 | F125: GARLYN SHELTON CADILLAC BUICK | G125: 5700 SW HK DODGEN LOOP | H125: TEMPLE | I125: TX | J125: 76504 | K125: 20 | L125: 2212 | M125: 2124 | N125: KIM MALONEY
A126: 234041 | B126: SouthWest ADI | C126: 2005 | D126: Dallas, TX | E126: 117668 | F126: GARLYN SHELTON CADILLAC BUICK | G126: 5700 SW HK DODGEN LOOP | H126: TEMPLE | I126: TX | J126: 76504 | K126: 20 | L126: 2312 | M126: 3124 | N126: KIM MALONEY
A127: 234041 | B127: SouthWest ADI | C127: 2005 | D127: Dallas, TX | E127: 118628 | F127: JAMES WOOD BUICK-GMC | G127: 3906 I-35E S | H127: DENTON | I127: TX | J127: 76210 | K127: 20 | L127: 2212 | M127: 2123 | N127: MICHAEL FOGLE
A128: 234041 | B128: SouthWest ADI | C128: 2005 | D128: Dallas, TX | E128: 118631 | F128: EWING BUICK GMC | G128: 6425 DALLAS PARKWAY | H128: PLANO | I128: TX | J128: 75024 | K128: 20 | L128: 2212 | M128: 2123 | N128: ANNETTE HEDBLOM
A129: 234041 | B129: SouthWest ADI | C129: 2005 | D129: Dallas, TX | E129: 118633 | F129: SISK BUICK, INC. | G129: 318 W MARSHALL ST | H129: LONGVIEW | I129: TX | J129: 75601 | K129: 20 | L129: 2214 | M129: 2144 | N129: JIM GAGNON
A130: 234041 | B130: SouthWest ADI | C130: 2005 | D130: Dallas, TX | E130: 118639 | F130: SISK MOTORS, INC. | G130: 2739 WEST FERGUSON ROAD | H130: MOUNT PLEASANT | I130: TX | J130: 75455 | K130: 20 | L130: 2214 | M130: 2144 | N130: JIM GAGNON
A131: 234041 | B131: SouthWest ADI | C131: 2005 | D131: Dallas, TX | E131: 119216 | F131: FRANK KENT CADILLAC | G131: 3500 WEST LOOP 820 SOUTH | H131: FORT WORTH | I131: TX | J131: 76116 | K131: 20 | L131: 2312 | M131: 3122 | N131: KIM MALONEY
A132: 234041 | B132: SouthWest ADI | C132: 2005 | D132: Dallas, TX | E132: 119218 | F132: CREST CADILLAC | G132: 6280 STATE HIGHWAY 121 | H132: FRISCO | I132: TX | J132: 75034 | K132: 20 | L132: 2312 | M132: 3122 | N132: ANNETTE HEDBLOM
A133: 234041 | B133: SouthWest ADI | C133: 2005 | D133: Dallas, TX | E133: 119219 | F133: SEWELL CADILLAC | G133: 7310 LEMMON AVE | H133: DALLAS | I133: TX | J133: 75209 | K133: 20 | L133: 2312 | M133: 3122 | N133: ANNETTE HEDBLOM
A134: 234041 | B134: SouthWest ADI | C134: 2005 | D134: Dallas, TX | E134: 131062 | F134: MCKAIG CHEVROLET BUICK | G134: 1110 E BROADWAY AVE | H134: GLADEWATER | I134: TX | J134: 75647 | K134: 20 | L134: 2116 | M134: 1164 | N134: JIM GAGNON
A135: 234041 | B135: SouthWest ADI | C135: 2005 | D135: Dallas, TX | E135: 131174 | F135: BACON AUTO COUNTRY, INC. | G135: 5677 NORTH JACKSON | H135: JACKSONVILLE | I135: TX | J135: 75766 | K135: 20 | L135: 2214 | M135: 2142 | N135: JOHNNY SANSOM
A136: 234041 | B136: SouthWest ADI | C136: 2005 | D136: Dallas, TX | E136: 131174 | F136: BACON AUTO COUNTRY, INC. | G136: 5677 NORTH JACKSON | H136: JACKSONVILLE | I136: TX | J136: 75766 | K136: 20 | L136: 2312 | M136: 3124 | N136: JOHNNY SANSOM
A137: 234041 | B137: SouthWest ADI | C137: 2005 | D137: Dallas, TX | E137: 131174 | F137: BACON AUTO COUNTRY, INC. | G137: 5677 NORTH JACKSON | H137: JACKSONVILLE | I137: TX | J137: 75766 | K137: 20 | L137: 2116 | M137: 1164 | N137: JOHNNY SANSOM
A138: 234041 | B138: SouthWest ADI | C138: 2005 | D138: Dallas, TX | E138: 133016 | F138: MORITZ CHEVROLET, LTD. | G138: 9101 SPUR 580 W | H138: FORT WORTH | I138: TX | J138: 76116 | K138: 20 | L138: 2116 | M138: 1162 | N138: JOHNNY SANSOM
A139: 234041 | B139: SouthWest ADI | C139: 2005 | D139: Dallas, TX | E139: 158338 | F139: REX PERRY AUTOPLEX | G139: 3916 NW STALLINGS DRIVE | H139: NACOGDOCHES | I139: TX | J139: 75964 | K139: 20 | L139: 2312 | M139: 3124 | N139: JIM GAGNON
A140: 234041 | B140: SouthWest ADI | C140: 2005 | D140: Dallas, TX | E140: 158338 | F140: REX PERRY AUTOPLEX | G140: 3916 NW STALLINGS DRIVE | H140: NACOGDOCHES | I140: TX | J140: 75964 | K140: 20 | L140: 2214 | M140: 2142 | N140: JIM GAGNON
A141: 234041 | B141: SouthWest ADI | C141: 2005 | D141: Dallas, TX | E141: 158540 | F141: COLEMAN MOTORS, INC. | G141: 510 ADDISON | H141: NEW BOSTON | I141: TX | J141: 75570 | K141: 20 | L141: 2115 | M141: 1153 | N141: JIM GAGNON
A142: 234041 | B142: SouthWest ADI | C142: 2005 | D142: Dallas, TX | E142: 159018 | F142: WYLIE MUSSER CHEVROLET CADILLAC | G142: 1212 W MOORE AVE | H142: TERRELL | I142: TX | J142: 75160 | K142: 20 | L142: 2116 | M142: 1165 | N142: JOHNNY SANSOM
A143: 234041 | B143: SouthWest ADI | C143: 2005 | D143: Dallas, TX | E143: 159018 | F143: WYLIE MUSSER CHEVROLET CADILLAC | G143: 1212 W MOORE AVE | H143: TERRELL | I143: TX | J143: 75160 | K143: 20 | L143: 2312 | M143: 3124 | N143: JOHNNY SANSOM
A144: 234041 | B144: SouthWest ADI | C144: 2005 | D144: Dallas, TX | E144: 159198 | F144: VANDERGRIFF CHEVROLET | G144: 1200 W I20 | H144: ARLINGTON | I144: TX | J144: 76017 | K144: 20 | L144: 2116 | M144: 1162 | N144: JOHNNY SANSOM
A145: 234041 | B145: SouthWest ADI | C145: 2005 | D145: Dallas, TX | E145: 159584 | F145: LUTTRULL-MCNATT CHEVROLET | G145: 1405 N STEMMONS | H145: SANGER | I145: TX | J145: 76266 | K145: 20 | L145: 2116 | M145: 1163 | N145: ANNETTE HEDBLOM
A146: 234041 | B146: SouthWest ADI | C146: 2005 | D146: Dallas, TX | E146: 159603 | F146: BACON AUTOPLEX, INC. | G146: 1216 E PALESTINE AVE | H146: PALESTINE | I146: TX | J146: 75801 | K146: 20 | L146: 2214 | M146: 2142 | N146: JOHNNY SANSOM
A147: 234041 | B147: SouthWest ADI | C147: 2005 | D147: Dallas, TX | E147: 159603 | F147: BACON AUTOPLEX, INC. | G147: 1216 E PALESTINE AVE | H147: PALESTINE | I147: TX | J147: 75801 | K147: 20 | L147: 2116 | M147: 1164 | N147: JOHNNY SANSOM
A148: 234041 | B148: SouthWest ADI | C148: 2005 | D148: Dallas, TX | E148: 163497 | F148: YATES BUICK GMC | G148: 215 HWY 79 S | H148: HENDERSON | I148: TX | J148: 75654 | K148: 20 | L148: 2214 | M148: 2142 | N148: JIM GAGNON
A149: 234041 | B149: SouthWest ADI | C149: 2005 | D149: Dallas, TX | E149: 164344 | F149: GABRIEL/JORDAN CHEVROLET | G149: 1704 US HWY 259 NORTH | H149: HENDERSON | I149: TX | J149: 75652 | K149: 20 | L149: 2116 | M149: 1164 | N149: JIM GAGNON
A150: 234041 | B150: SouthWest ADI | C150: 2005 | D150: Dallas, TX | E150: 164344 | F150: GABRIEL/JORDAN CHEVROLET | G150: 1704 US HWY 259 NORTH | H150: HENDERSON | I150: TX | J150: 75652 | K150: 20 | L150: 2312 | M150: 3124 | N150: JIM GAGNON
A151: 234041 | B151: SouthWest ADI | C151: 2005 | D151: Dallas, TX | E151: 165932 | F151: RICHARD KARR MOTORS | G151: 900 WEST LOOP 340 | H151: WACO | I151: TX | J151: 76712 | K151: 20 | L151: 2312 | M151: 3124 | N151: MICHAEL FOGLE
A152: 234041 | B152: SouthWest ADI | C152: 2005 | D152: Dallas, TX | E152: 165932 | F152: RICHARD KARR MOTORS | G152: 900 WEST LOOP 340 | H152: WACO | I152: TX | J152: 76712 | K152: 20 | L152: 2212 | M152: 2124 | N152: MICHAEL FOGLE
A153: 234041 | B153: SouthWest ADI | C153: 2005 | D153: Dallas, TX | E153: 167127 | F153: PELTIER CHEVROLET CADILLAC | G153: 1710 S FIRST ST | H153: LUFKIN | I153: TX | J153: 75901 | K153: 20 | L153: 2116 | M153: 1164 | N153: JIM GAGNON
A154: 234041 | B154: SouthWest ADI | C154: 2005 | D154: Dallas, TX | E154: 167127 | F154: PELTIER CHEVROLET CADILLAC | G154: 1710 S FIRST ST | H154: LUFKIN | I154: TX | J154: 75901 | K154: 20 | L154: 2312 | M154: 3124 | N154: JIM GAGNON
A155: 234041 | B155: SouthWest ADI | C155: 2005 | D155: Dallas, TX | E155: 169516 | F155: MCKINNEY BUICK-GMC | G155: 3950 SOUTH CENTRAL | H155: MCKINNEY | I155: TX | J155: 75069 | K155: 20 | L155: 2212 | M155: 2123 | N155: KIM MALONEY
A156: 234041 | B156: SouthWest ADI | C156: 2005 | D156: Dallas, TX | E156: 170867 | F156: STERLING AUTO GROUP | G156: 205 NORTH EARL RUDDER | H156: BRYAN | I156: TX | J156: 77802 | K156: 20 | L156: 2212 | M156: 2124 | N156: JASON COLBY
A157: 234041 | B157: SouthWest ADI | C157: 2005 | D157: Dallas, TX | E157: 170867 | F157: STERLING AUTO GROUP | G157: 205 NORTH EARL RUDDER | H157: BRYAN | I157: TX | J157: 77802 | K157: 20 | L157: 2312 | M157: 3124 | N157: JASON COLBY
A158: 234041 | B158: SouthWest ADI | C158: 2005 | D158: Dallas, TX | E158: 173040 | F158: MADILL CHEVROLET-BUICK, INC. | G158: HWY 70 S | H158: MADILL | I158: OK | J158: 73446 | K158: 20 | L158: 2113 | M158: 1135 | N158: ANNETTE HEDBLOM
A159: 234041 | B159: SouthWest ADI | C159: 2005 | D159: Dallas, TX | E159: 177215 | F159: LONE STAR CHEVROLET | G159: 320 E I-45 | H159: FAIRFIELD | I159: TX | J159: 75840 | K159: 20 | L159: 2116 | M159: 1165 | N159: MICHAEL FOGLE
A160: 234041 | B160: SouthWest ADI | C160: 2005 | D160: Dallas, TX | E160: 183793 | F160: WILLS POINT CHEVROLET | G160: 620 HOUSTON ST | H160: WILLS POINT | I160: TX | J160: 75169 | K160: 20 | L160: 2116 | M160: 1165 | N160: JOHNNY SANSOM
A161: 234041 | B161: SouthWest ADI | C161: 2005 | D161: Dallas, TX | E161: 184555 | F161: MIKE PERRY CHEVROLET BUICK | G161: 101 W MAIN | H161: SAN AUGUSTINE | I161: TX | J161: 75972 | K161: 20 | L161: 2115 | M161: 1156 | N161: JIM GAGNON
A162: 234041 | B162: SouthWest ADI | C162: 2005 | D162: Dallas, TX | E162: 187128 | F162: AUTONATION CHEVROLET NORTH | G162: 7769 GRAPEVINE HWY | H162: NORTH RICHLAND | I162: TX | J162: 76180 | K162: 20 | L162: 2116 | M162: 1161 | N162: KIM MALONEY
A163: 234041 | B163: SouthWest ADI | C163: 2005 | D163: Dallas, TX | E163: 188066 | F163: MASSEY CADILLAC | G163: 11675 LBJ FREEWAY | H163: GARLAND | I163: TX | J163: 75041 | K163: 20 | L163: 2312 | M163: 3122 | N163: ANNETTE HEDBLOM
A164: 234041 | B164: SouthWest ADI | C164: 2005 | D164: Dallas, TX | E164: 192854 | F164: TEAGUE CHEVROLET-BUICK, INC. | G164: 815 W MASON ST | H164: MABANK | I164: TX | J164: 75147 | K164: 20 | L164: 2116 | M164: 1165 | N164: JOHNNY SANSOM
A165: 234041 | B165: SouthWest ADI | C165: 2005 | D165: Dallas, TX | E165: 194896 | F165: CALDWELL COUNTRY CHEVROLET | G165: 800 STATE HWY 21 EAST | H165: CALDWELL | I165: TX | J165: 77836 | K165: 20 | L165: 2117 | M165: 1174 | N165: JASON COLBY
A166: 234041 | B166: SouthWest ADI | C166: 2005 | D166: Dallas, TX | E166: 199485 | F166: HOLIDAY CHEVROLET | G166: 1009 HWY 82 W | H166: WHITESBORO | I166: TX | J166: 76273 | K166: 20 | L166: 2116 | M166: 1163 | N166: ANNETTE HEDBLOM
A167: 234041 | B167: SouthWest ADI | C167: 2005 | D167: Dallas, TX | E167: 199963 | F167: CLASSIC BUICK, GMC, CADILLAC | G167: 4333 MALL DRIVE | H167: TEXARKANA | I167: TX | J167: 75501 | K167: 20 | L167: 2214 | M167: 2142 | N167: JIM GAGNON
A168: 234041 | B168: SouthWest ADI | C168: 2005 | D168: Dallas, TX | E168: 199963 | F168: CLASSIC BUICK, GMC, CADILLAC | G168: 4333 MALL DRIVE | H168: TEXARKANA | I168: TX | J168: 75501 | K168: 20 | L168: 2312 | M168: 3124 | N168: JIM GAGNON
A169: 234041 | B169: SouthWest ADI | C169: 2005 | D169: Dallas, TX | E169: 204056 | F169: HALL BUICK GMC | G169: 3010 SSW LOOP 323 | H169: TYLER | I169: TX | J169: 75701 | K169: 20 | L169: 2214 | M169: 2142 | N169: JIM GAGNON
A170: 234041 | B170: SouthWest ADI | C170: 2005 | D170: Dallas, TX | E170: 206039 | F170: SEWELL CADILLAC OF GRAPEVINE | G170: 1001 EAST STATE HIGHWAY | H170: GRAPEVINE | I170: TX | J170: 76051 | K170: 20 | L170: 2312 | M170: 3122 | N170: KIM MALONEY
A171: 234041 | B171: SouthWest ADI | C171: 2005 | D171: Dallas, TX | E171: 207212 | F171: GABRIEL/JORDAN BUICK GMC | G171: 1500 N HWY 259 | H171: KILGORE | I171: TX | J171: 75662 | K171: 20 | L171: 2214 | M171: 2142 | N171: JIM GAGNON
A172: 234041 | B172: SouthWest ADI | C172: 2005 | D172: Dallas, TX | E172: 207662 | F172: STONEBRIAR CHEVROLET | G172: 9950 STATE HIGHWAY 121 | H172: FRISCO | I172: TX | J172: 75035 | K172: 20 | L172: 2116 | M172: 1161 | N172: MICHAEL FOGLE
A173: 234041 | B173: SouthWest ADI | C173: 2005 | D173: Dallas, TX | E173: 208083 | F173: PATTERSON MOTORS | G173: 1611 N HWY 259 | H173: KILGORE | I173: TX | J173: 75662 | K173: 20 | L173: 2116 | M173: 1164 | N173: JIM GAGNON
A174: 234041 | B174: SouthWest ADI | C174: 2005 | D174: Dallas, TX | E174: 213449 | F174: HERITAGE BUICK GMC | G174: 930 EAST INTERSTATE 30 | H174: ROCKWALL | I174: TX | J174: 75087 | K174: 20 | L174: 2212 | M174: 2123 | N174: ANNETTE HEDBLOM
A175: 234041 | B175: SouthWest ADI | C175: 2005 | D175: Dallas, TX | E175: 213519 | F175: CLASSIC BUICK, GMC | G175: 1400 E INTERSTATE 20 | H175: ARLINGTON | I175: TX | J175: 76018 | K175: 20 | L175: 2212 | M175: 2124 | N175: JOHNNY SANSOM
A176: 234041 | B176: SouthWest ADI | C176: 2005 | D176: Dallas, TX | E176: 216129 | F176: HOPE AUTO COMPANY CHEVROLET | G176: 1700 N HERVEY | H176: HOPE | I176: AR | J176: 71801 | K176: 20 | L176: 2114 | M176: 1144 | N176: JIM GAGNON
A177: 234041 | B177: SouthWest ADI | C177: 2005 | D177: Dallas, TX | E177: 216256 | F177: PELTIER CHEVROLET, INC. | G177: 2700 WSW LOOP 323 | H177: TYLER | I177: TX | J177: 75701 | K177: 20 | L177: 2116 | M177: 1164 | N177: JIM GAGNON
A178: 234041 | B178: SouthWest ADI | C178: 2005 | D178: Dallas, TX | E178: 217929 | F178: STANLEY CHEVROLET-KAUFMAN | G178: 825 E FAIR ST | H178: KAUFMAN | I178: TX | J178: 75142 | K178: 20 | L178: 2116 | M178: 1165 | N178: JOHNNY SANSOM
A179: 234041 | B179: SouthWest ADI | C179: 2005 | D179: Dallas, TX | E179: 224462 | F179: STANLEY CHEVROLET-BUICK-GMC- | G179: 210 S HWY 36 BYPASS | H179: GATESVILLE | I179: TX | J179: 76528 | K179: 20 | L179: 2117 | M179: 1174 | N179: KIM MALONEY
A180: 234041 | B180: SouthWest ADI | C180: 2005 | D180: Dallas, TX | E180: 224462 | F180: STANLEY CHEVROLET-BUICK-GMC- | G180: 210 S HWY 36 BYPASS | H180: GATESVILLE | I180: TX | J180: 76528 | K180: 20 | L180: 2212 | M180: 2124 | N180: KIM MALONEY
A181: 234041 | B181: SouthWest ADI | C181: 2005 | D181: Dallas, TX | E181: 225793 | F181: BRITAIN CHEVROLET CADILLAC | G181: 4495 I-30 | H181: GREENVILLE | I181: TX | J181: 75402 | K181: 20 | L181: 2116 | M181: 1165 | N181: ANNETTE HEDBLOM
A182: 234041 | B182: SouthWest ADI | C182: 2005 | D182: Dallas, TX | E182: 230489 | F182: EXCEL CHEVROLET | G182: HWY 59 S & FM 2208 | H182: JEFFERSON | I182: TX | J182: 75657 | K182: 20 | L182: 2115 | M182: 1153 | N182: JIM GAGNON
A183: 234041 | B183: SouthWest ADI | C183: 2005 | D183: Dallas, TX | E183: 231653 | F183: BACON AUTO RANCH | G183: 311 E TYLER | H183: ATHENS | I183: TX | J183: 75751 | K183: 20 | L183: 2116 | M183: 1164 | N183: JOHNNY SANSOM
A184: 234041 | B184: SouthWest ADI | C184: 2005 | D184: Dallas, TX | E184: 231653 | F184: BACON AUTO RANCH | G184: 311 E TYLER | H184: ATHENS | I184: TX | J184: 75751 | K184: 20 | L184: 2214 | M184: 2142 | N184: JOHNNY SANSOM
A185: 234041 | B185: SouthWest ADI | C185: 2005 | D185: Dallas, TX | E185: 235818 | F185: FREEDOM CHEVROLET BUICK GMC | G185: 8008 MARVIN D LOVE FWY | H185: DALLAS | I185: TX | J185: 75237 | K185: 20 | L185: 2116 | M185: 1165 | N185: MICHAEL FOGLE
A186: 234041 | B186: SouthWest ADI | C186: 2005 | D186: Dallas, TX | E186: 235818 | F186: FREEDOM CHEVROLET BUICK GMC | G186: 8008 MARVIN D LOVE FWY | H186: DALLAS | I186: TX | J186: 75237 | K186: 20 | L186: 2212 | M186: 2124 | N186: MICHAEL FOGLE
A187: 234041 | B187: SouthWest ADI | C187: 2005 | D187: Dallas, TX | E187: 239811 | F187: FAULKNER CHEVROLET | G187: 307 S GREER BLVD | H187: PITTSBURG | I187: TX | J187: 75686 | K187: 20 | L187: 2116 | M187: 1164 | N187: JIM GAGNON
A188: 234041 | B188: SouthWest ADI | C188: 2005 | D188: Dallas, TX | E188: 242384 | F188: GREG MAY CHEVROLET | G188: 225 T M WEST PARKWAY | H188: WEST | I188: TX | J188: 76691 | K188: 20 | L188: 2117 | M188: 1174 | N188: MICHAEL FOGLE
A189: 234041 | B189: SouthWest ADI | C189: 2005 | D189: Dallas, TX | E189: 242681 | F189: AUTONATION CHEVROLET GALLERIA | G189: 4747 LBJ FWY | H189: DALLAS | I189: TX | J189: 75244 | K189: 20 | L189: 2116 | M189: 1161 | N189: MICHAEL FOGLE
A190: 234041 | B190: SouthWest ADI | C190: 2005 | D190: Dallas, TX | E190: 243512 | F190: HENSON CHEVROLET BUICK GMC | G190: 201 NORTH MAY STREET | H190: MADISONVILLE | I190: TX | J190: 77864 | K190: 20 | L190: 2117 | M190: 1174 | N190: JOE PERNARELLI
A191: 234041 | B191: SouthWest ADI | C191: 2005 | D191: Dallas, TX | E191: 244819 | F191: CLASSIC BUICK, GMC OF | G191: 2700 N I 35 E | H191: CARROLLTON | I191: TX | J191: 75007 | K191: 20 | L191: 2212 | M191: 2123 | N191: KIM MALONEY
A192: 234041 | B192: SouthWest ADI | C192: 2005 | D192: Dallas, TX | E192: 255786 | F192: GENTRY CHEVROLET INC | G192: 801 W COLLIN RAYE DR | H192: DE QUEEN | I192: AR | J192: 71832 | K192: 20 | L192: 2114 | M192: 1144 | N192: JIM GAGNON
A193: 234041 | B193: SouthWest ADI | C193: 2005 | D193: Dallas, TX | E193: 256599 | F193: WRIGHT BUICK GMC | G193: 1703 S FIRST ST | H193: LUFKIN | I193: TX | J193: 75901 | K193: 20 | L193: 2214 | M193: 2142 | N193: JIM GAGNON
A194: 234041 | B194: SouthWest ADI | C194: 2005 | D194: Dallas, TX | E194: 257006 | F194: PARIS CHEVROLET BUICK GMC | G194: 1915 N MAIN | H194: PARIS | I194: TX | J194: 75460 | K194: 20 | L194: 2116 | M194: 1163 | N194: ANNETTE HEDBLOM
A195: 234041 | B195: SouthWest ADI | C195: 2005 | D195: Dallas, TX | E195: 259147 | F195: WAGNER CADILLAC | G195: 4100 S BROADWAY | H195: TYLER | I195: TX | J195: 75701 | K195: 20 | L195: 2312 | M195: 3124 | N195: JIM GAGNON
A196: 234041 | B196: SouthWest ADI | C196: 2005 | D196: Dallas, TX | E196: 259309 | F196: LEE HOFFPAUIR CHEVROLET BUICK | G196: 1260 US HIGHWAY 84 WEST | H196: GOLDTHWAITE | I196: TX | J196: 76844 | K196: 20 | L196: 2117 | M196: 1175 | N196: KIM MALONEY
A197: 234041 | B197: SouthWest ADI | C197: 2005 | D197: Dallas, TX | E197: 259562 | F197: COLE-MCNATT CHEVROLET BUICK | G197: 1608 W HWY 82 | H197: GAINESVILLE | I197: TX | J197: 76240 | K197: 20 | L197: 2212 | M197: 2123 | N197: ANNETTE HEDBLOM
A198: 234041 | B198: SouthWest ADI | C198: 2005 | D198: Dallas, TX | E198: 259562 | F198: COLE-MCNATT CHEVROLET BUICK | G198: 1608 W HWY 82 | H198: GAINESVILLE | I198: TX | J198: 76240 | K198: 20 | L198: 2116 | M198: 1163 | N198: ANNETTE HEDBLOM
A199: 234041 | B199: SouthWest ADI | C199: 2005 | D199: Dallas, TX | E199: 261289 | F199: HILEY BUICK GMC OF FORT WORTH | G199: 3535 W LOOP 820 S | H199: FORT WORTH | I199: TX | J199: 76116 | K199: 20 | L199: 2212 | M199: 2124 | N199: JOHNNY SANSOM
A200: 234041 | B200: SouthWest ADI | C200: 2005 | D200: Dallas, TX | E200: 262744 | F200: ORR CLASSIC CHEVROLET | G200: 941 N CONSTITUTION AVE | H200: ASHDOWN | I200: AR | J200: 71822 | K200: 20 | L200: 2115 | M200: 1153 | N200: JIM GAGNON
... 129 more rows

Sheet PriceFile (hidden)
A1: Product Line Code | B1: GM Part Number | C1: Description | D1: List Price | E1: Future List Price | F1: Dealer Price | G1: Future Dealer Price | H1: Suggested Retail Price | I1: Future Retail Price | J1: Future Price Effective Date | K1: FY | L1: LY | O1: 2016-08-01
A2: 32 | B2: 334772 | C2: MIRROR ASM - O/S RR VIEW | D2: 68.68 | E2: 0 | F2: 39.15 | G2: 0 | H2: 0 | I2: 0 | K2: 1974 | L2: 1975
A3: 32 | B3: 550625 | C3: HEATER ASM- | D3: 34.78 | E3: 0 | F3: 20.87 | G3: 0 | H3: 0 | I3: 0 | K3: 1975 | L3: 1990
A4: 32 | B4: 730540 | C4: HEATER ASM-ENG BLK | D4: 13.16 | E4: 0 | F4: 7.5 | G4: 0 | H4: 0 | I4: 0 | K4: 1978 | L4: 1991
A5: 32 | B5: 980670 | C5: BALL PKG,TRLR HITCH(2"DIA) *CHROME | D5: 9 | E5: 0 | F5: 6.3 | G5: 0 | H5: 0 | I5: 0 | K5: 1974 | L5: 2001
A6: 32 | B6: 981148 | C6: BALL PKG,TRLR HITCH(1 7/8"DIA) | D6: 7.74 | E6: 0 | F6: 5.84 | G6: 0 | H6: 0 | I6: 0 | K6: 1976 | L6: 2001
A7: 32 | B7: 981825 | C7: MIRROR PKG-VISOR VANITY | D7: 18.11 | E7: 0 | F7: 11.75 | G7: 0 | H7: 0 | I7: 0 | K7: 1975 | L7: 2000
A8: 32 | B8: 983335 | C8: COMPASS PKG, | D8: 11 | E8: 0 | F8: 7.7 | G8: 0 | H8: 0 | I8: 0 | K8: 1953 | L8: 2004
A9: 32 | B9: 993231 | C9: HEATER PKG - EXTERNAL ENGINE BLOCK | D9: 18.08 | E9: 0 | F9: 14.81 | G9: 0 | H9: 0 | I9: 0 | K9: 1985 | L9: 1993
A10: 32 | B10: 993427 | C10: HEATER PKG-ENGINE BLOCK | D10: 22 | E10: 0 | F10: 15.4 | G10: 0 | H10: 0 | I10: 0 | K10: 1985 | L10: 1989
A11: 32 | B11: 994632 | C11: AIR DEFLECTOR UNIT - ROOF MTD | D11: 100 | E11: 0 | F11: 70 | G11: 0 | H11: 0 | I11: 0 | K11: 1979 | L11: 1991
A12: 32 | B12: 994668 | C12: LIGHTER UNIT-CIGARETTE | D12: 15 | E12: 0 | F12: 10.5 | G12: 0 | H12: 0 | I12: 0 | K12: 1974 | L12: 1991
A13: 32 | B13: 994822 | C13: DEFLECTOR PKG-ROOF MOUNTED AIR | D13: 100 | E13: 0 | F13: 70 | G13: 0 | H13: 0 | I13: 0 | K13: 1979 | L13: 1991
A14: 32 | B14: 994952 | C14: GUARD PKG-FENDER SPLASH *BLACK)(INSTA | D14: 13 | E14: 0 | F14: 9.1 | G14: 0 | H14: 0 | I14: 0 | K14: 1970 | L14: 1993
A15: 32 | B15: 995118 | C15: MLDG PKG, DOOR EDGE GUARD | D15: 13.8 | E15: 0 | F15: 9.66 | G15: 0 | H15: 0 | I15: 0 | K15: 1975 | L15: 1986
A16: 32 | B16: 995742 | C16: HITCH PKG-TRAILER | D16: 89 | E16: 0 | F16: 62.3 | G16: 0 | H16: 0 | I16: 0 | K16: 1978 | L16: 1995
A17: 32 | B17: 995772 | C17: GUARD PKG-FRONT BUMPER | D17: 51 | E17: 0 | F17: 35.7 | G17: 0 | H17: 0 | I17: 0 | K17: 1978 | L17: 1996
A18: 32 | B18: 996220 | C18: MIRROR PKG-O/S RR VIEW BELOW EYE LEVEL-STAINLESS-9X6.5 | D18: 99.69 | E18: 0 | F18: 69.78 | G18: 0 | H18: 0 | I18: 0 | K18: 1979 | L18: 1989
A19: 32 | B19: 996223 | C19: MIRROR PKG-O/S RR VIEW-HEAD ONLY(PAINT) | D19: 40 | E19: 0 | F19: 28 | G19: 0 | H19: 0 | I19: 0 | K19: 1979 | L19: 1991
A20: 32 | B20: 996224 | C20: MIRROR PKG,O/S RR VIEW | D20: 99.69 | E20: 0 | F20: 69.78 | G20: 0 | H20: 0 | I20: 0 | K20: 1979 | L20: 1991
A21: 32 | B21: 996225 | C21: MIRROR-O/S RR VIEW-HEAD ONLY-STAINLESS | D21: 39.97 | E21: 0 | F21: 27.98 | G21: 0 | H21: 0 | I21: 0 | K21: 1979 | L21: 1991
A22: 32 | B22: 996226 | C22: MIRROR PKG-O/S RR VIEW-HEAD ONLY-STAINLESS | D22: 39.97 | E22: 0 | F22: 27.98 | G22: 0 | H22: 0 | I22: 0 | K22: 1979 | L22: 1991
A23: 32 | B23: 996245 | C23: HEATER PKG., ENGINE BLOCK | D23: 22 | E23: 0 | F23: 15.4 | G23: 0 | H23: 0 | I23: 0 | K23: 1976 | L23: 1990
A24: 32 | B24: 996246 | C24: HEATER PKG., ENGINE BLOCK *INSTALL .75 | D24: 25 | E24: 0 | F24: 18.75 | G24: 0 | H24: 0 | I24: 0 | K24: 1976 | L24: 2000
A25: 32 | B25: 996549 | C25: HEATER PKG-AUX.RR | D25: 279 | E25: 0 | F25: 195.3 | G25: 0 | H25: 0 | I25: 0 | K25: 1976 | L25: 1991
A26: 32 | B26: 996655 | C26: MIRROR PKG-O/S RR VIEW SR.WEST COAST 7X16,PAINTED | D26: 83.92 | E26: 0 | F26: 68.86 | G26: 0 | H26: 0 | I26: 0 | K26: 1980 | L26: 1987
A27: 32 | B27: 996656 | C27: MIRROR HEAD PKG-O/S RR VIEW SR WEST COAS*WHITE-PAINT | D27: 19.77 | E27: 0 | F27: 13.84 | G27: 0 | H27: 0 | I27: 0 | K27: 1975 | L27: 1991
A28: 32 | B28: 996744 | C28: GUARD PKG-FENDER SPLASH-WHITE *WHITE)(INSTA | D28: 13 | E28: 0 | F28: 9.1 | G28: 0 | H28: 0 | I28: 0 | K28: 1970 | L28: 1996
A29: 32 | B29: 996922 | C29: HITCH PKG-TRAILER | D29: 81.77 | E29: 0 | F29: 67.02 | G29: 0 | H29: 0 | I29: 0 | K29: 1981 | L29: 1991
A30: 32 | B30: 996924 | C30: HITCH PKG-TRAILERTOWING PLATFORM | D30: 199 | E30: 0 | F30: 139.3 | G30: 0 | H30: 0 | I30: 0 | K30: 1981 | L30: 1991
A31: 32 | B31: 996925 | C31: HITCH PKG-PLATFORM | D31: 199 | E31: 0 | F31: 139.3 | G31: 0 | H31: 0 | I31: 0 | K31: 1981 | L31: 1991
A32: 32 | B32: 997074 | C32: MIRROR PKG,O/S RR VIEW(SPORT) | D32: 32.94 | E32: 0 | F32: 23.06 | G32: 0 | H32: 0 | I32: 0 | K32: 1982 | L32: 1989
A33: 32 | B33: 997411 | C33: MOLDING PKG,D/E | D33: 11.19 | E33: 0 | F33: 9.17 | G33: 0 | H33: 0 | I33: 0 | K33: 1982 | L33: 1990
A34: 32 | B34: 997451 | C34: LAMP PKG-UNDERHOOD | D34: 7.66 | E34: 0 | F34: 5.74 | G34: 0 | H34: 0 | I34: 0 | K34: 1982 | L34: 1987
A35: 32 | B35: 997460 | C35: MAT PKG,FRONT VINYL | D35: 21.43 | E35: 0 | F35: 15 | G35: 0 | H35: 0 | I35: 0 | K35: 1982 | L35: 1993
A36: 32 | B36: 997461 | C36: MOLDING PKG, DOOR EDGE, STAINLESS | D36: 14 | E36: 0 | F36: 9.8 | G36: 0 | H36: 0 | I36: 0 | K36: 1982 | L36: 1993
A37: 32 | B37: 997592 | C37: HEATER PKG., ENGINE BLOCK | D37: 18.08 | E37: 0 | F37: 14.76 | G37: 0 | H37: 0 | I37: 0 | K37: 1982 | L37: 1986
A38: 32 | B38: 997595 | C38: HOOK PKG-TOW | D38: 47.17 | E38: 0 | F38: 33.02 | G38: 0 | H38: 0 | I38: 0 | K38: 1981 | L38: 1989
A39: 32 | B39: 997719 | C39: HEATER PKG., ENGINE BLOCK | D39: 22 | E39: 0 | F39: 15.4 | G39: 0 | H39: 0 | I39: 0 | K39: 1982 | L39: 1989
A40: 32 | B40: 997791 | C40: MOLDING PKG,DOOR EDGE, STAINLESS | D40: 14 | E40: 0 | F40: 9.8 | G40: 0 | H40: 0 | I40: 0 | K40: 1982 | L40: 1993
A41: 32 | B41: 997822 | C41: GUARD PKG-SPLASH *WHITE W/BLAC | D41: 6.21 | E41: 0 | F41: 3.73 | G41: 0 | H41: 0 | I41: 0 | K41: 1982 | L41: 1997
A42: 32 | B42: 997835 | C42: CARRIER PKG-ROOF LUGGAGE-CHROME | D42: 115 | E42: 0 | F42: 80.5 | G42: 0 | H42: 0 | I42: 0 | K42: 1983 | L42: 1996
A43: 32 | B43: 997884 | C43: HOOK PKG,TOW | D43: 43.56 | E43: 0 | F43: 30.49 | G43: 0 | H43: 0 | I43: 0 | K43: 1983 | L43: 1989
A44: 32 | B44: 997889 | C44: DEFLECTOR PKG-RR AIR | D44: 62 | E44: 0 | F44: 43.4 | G44: 0 | H44: 0 | I44: 0 | K44: 1983 | L44: 1991
A45: 32 | B45: 997895 | C45: RAIL PKG - PICK-UP BOX SIDE | D45: 109 | E45: 0 | F45: 76.3 | G45: 0 | H45: 0 | I45: 0 | K45: 1982 | L45: 1998
A46: 32 | B46: 998008 | C46: MAT PKG,REAR VINYL *CHARCOAL | D46: 39 | E46: 0 | F46: 27.3 | G46: 0 | H46: 0 | I46: 0 | K46: 1983 | L46: 1994
A47: 32 | B47: 998010 | C47: MAT PKG,REAR VINYL | D47: 12.42 | E47: 0 | F47: 10.19 | G47: 0 | H47: 0 | I47: 0 | K47: 1983 | L47: 1987
A48: 32 | B48: 998139 | C48: MOLDING PKG-WHEELHOUSE OPENING | D48: 40 | E48: 0 | F48: 28 | G48: 0 | H48: 0 | I48: 0 | K48: 1982 | L48: 1993
A49: 32 | B49: 998140 | C49: MOLDING PKG-WHEELHOUSE OPENING | D49: 26 | E49: 0 | F49: 18.2 | G49: 0 | H49: 0 | I49: 0 | K49: 1983 | L49: 1991
A50: 32 | B50: 998141 | C50: MOLDING PKG-WHEELHOUSE OPENING | D50: 45 | E50: 0 | F50: 31.5 | G50: 0 | H50: 0 | I50: 0 | K50: 1982 | L50: 1993
A51: 32 | B51: 998142 | C51: MOLDING PKG-WHEELHOUSE OPENING | D51: 40 | E51: 0 | F51: 28 | G51: 0 | H51: 0 | I51: 0 | K51: 1982 | L51: 1994
A52: 32 | B52: 998143 | C52: MOLDING PKG,W/H OPG *BRIGHT | D52: 73 | E52: 0 | F52: 51.1 | G52: 0 | H52: 0 | I52: 0 | K52: 1982 | L52: 1990
A53: 32 | B53: 998222 | C53: MIRROR PKG | D53: 35 | E53: 0 | F53: 24.5 | G53: 0 | H53: 0 | I53: 0 | K53: 1983 | L53: 1994
A54: 32 | B54: 998231 | C54: HEATER PKG-AUX. | D54: 329 | E54: 0 | F54: 230.3 | G54: 0 | H54: 0 | I54: 0 | K54: 1983 | L54: 1994
A55: 32 | B55: 998248 | C55: GUARD PKG.- FRT BUMPER - HI-RISE | D55: 31.05 | E55: 0 | F55: 25.46 | G55: 0 | H55: 0 | I55: 0 | K55: 1982 | L55: 1990
A56: 32 | B56: 998279 | C56: GUARD PKG-CHILD LOCK SHIELD | D56: 7.61 | E56: 0 | F56: 4.55 | G56: 0 | H56: 0 | I56: 0 | K56: 1982 | L56: 1990
A57: 32 | B57: 998284 | C57: SPOTLIGHT PKG-PORTABLE | D57: 26 | E57: 0 | F57: 18.2 | G57: 0 | H57: 0 | I57: 0 | K57: 1981 | L57: 2004
A58: 32 | B58: 998286 | C58: MOLDING PKG, DOOR EDGE | D58: 14 | E58: 0 | F58: 9.8 | G58: 0 | H58: 0 | I58: 0 | K58: 1983 | L58: 1991
A59: 32 | B59: 998291 | C59: TONNEAU COVER PKG | D59: 70 | E59: 0 | F59: 49 | G59: 0 | H59: 0 | I59: 0 | K59: 1982 | L59: 1993
A60: 32 | B60: 998296 | C60: LOCK PKG-7/16-20 WHEEL | D60: 16 | E60: 0 | F60: 11.2 | G60: 0 | H60: 0 | I60: 0 | K60: 1978 | L60: 1990
A61: 32 | B61: 998297 | C61: LOCK PKG-12MM X 1.50 WHEEL | D61: 20 | E61: 0 | F61: 14 | G61: 0 | H61: 0 | I61: 0 | K61: 1982 | L61: 1990
A62: 32 | B62: 998365 | C62: MOLDING PKG | D62: 23 | E62: 0 | F62: 18.81 | G62: 0 | H62: 0 | I62: 0 | K62: 1985 | L62: 1990
A63: 32 | B63: 998386 | C63: SUNSHADE PKG., RR. WINDOW | D63: 222.53 | E63: 0 | F63: 182.47 | G63: 0 | H63: 0 | I63: 0 | K63: 1982 | L63: 1990
A64: 32 | B64: 998391 | C64: BALL PKG,TRLR HITCH | D64: 12.81 | E64: 0 | F64: 8.97 | G64: 0 | H64: 0 | I64: 0 | K64: 1982 | L64: 1998
A65: 32 | B65: 998392 | C65: BALL PKG,TRLR HITCH | D65: 13.69 | E65: 0 | F65: 9.58 | G65: 0 | H65: 0 | I65: 0 | K65: 1982 | L65: 2001
A66: 32 | B66: 998482 | C66: LAMP PKG, U/H | D66: 18 | E66: 0 | F66: 12.6 | G66: 0 | H66: 0 | I66: 0 | K66: 1976 | L66: 1993
A67: 32 | B67: 998485 | C67: HITCH PKG-PLATFORM | D67: 184 | E67: 0 | F67: 128.8 | G67: 0 | H67: 0 | I67: 0 | K67: 1984 | L67: 1993
A68: 32 | B68: 998496 | C68: MAT PKG,FRONT VINYL | D68: 31 | E68: 0 | F68: 21.7 | G68: 0 | H68: 0 | I68: 0 | K68: 1984 | L68: 1996
A69: 32 | B69: 998527 | C69: T-TOP PKG | D69: 1112.63 | E69: 0 | F69: 879.75 | G69: 0 | H69: 0 | I69: 0 | K69: 1978 | L69: 1982
A70: 32 | B70: 998528 | C70: LAMP PKG, FOG (MARCHAL), W/LAMP COVERS *INSTALL 1.0 | D70: 110 | E70: 0 | F70: 77 | G70: 0 | H70: 0 | I70: 0 | K70: 1977 | L70: 2000
A71: 32 | B71: 998551 | C71: COVER PKG., WIRE WHEEL | D71: 251.36 | E71: 0 | F71: 188.52 | G71: 0 | H71: 0 | I71: 0 | K71: 1982 | L71: 1984
A72: 32 | B72: 998614 | C72: MAT PKG,REAR CARPET | D72: 20.8 | E72: 0 | F72: 17.08 | G72: 0 | H72: 0 | I72: 0 | K72: 1985 | L72: 1990
A73: 32 | B73: 998673 | C73: COVER PKG,SPARE TIRE(BLACK 28") *BLACK | D73: 12.5 | E73: 0 | F73: 8.75 | G73: 0 | H73: 0 | I73: 0 | K73: 1982 | L73: 2002
A74: 32 | B74: 998674 | C74: COVER PKG,SPARE TIRE(BLACK 29") *BLACK | D74: 25 | E74: 0 | F74: 17.5 | G74: 0 | H74: 0 | I74: 0 | K74: 1982 | L74: 2002
A75: 32 | B75: 998746 | C75: MAT PKG,REAR VINYL *BLUE | D75: 39 | E75: 0 | F75: 27.3 | G75: 0 | H75: 0 | I75: 0 | K75: 1985 | L75: 1987
A76: 32 | B76: 998769 | C76: MAT PKG,FRONT VINYL | D76: 17.6 | E76: 0 | F76: 14.44 | G76: 0 | H76: 0 | I76: 0 | K76: 1985 | L76: 1987
A77: 32 | B77: 998781 | C77: MAT PKG,FRONT VINYL | D77: 17.6 | E77: 0 | F77: 14.44 | G77: 0 | H77: 0 | I77: 0 | K77: 1985 | L77: 1987
A78: 32 | B78: 998783 | C78: MAT PKG,FRONT VINYL *CLARET | D78: 24 | E78: 0 | F78: 16.8 | G78: 0 | H78: 0 | I78: 0 | K78: 1985 | L78: 1990
A79: 32 | B79: 998785 | C79: MAT PKG,FRONT VINYL | D79: 24 | E79: 0 | F79: 16.8 | G79: 0 | H79: 0 | I79: 0 | K79: 1985 | L79: 1990
A80: 32 | B80: 998861 | C80: HEATER PKG-ENG BLOCK | D80: 18.08 | E80: 0 | F80: 14.76 | G80: 0 | H80: 0 | I80: 0 | K80: 1982 | L80: 1986
A81: 32 | B81: 998888 | C81: MAT PKG,FRONT VINYL | D81: 21.43 | E81: 0 | F81: 15 | G81: 0 | H81: 0 | I81: 0 | K81: 1985 | L81: 1987
A82: 32 | B82: 998889 | C82: MAT PKG,FRONT VINYL | D82: 15.53 | E82: 0 | F82: 12.73 | G82: 0 | H82: 0 | I82: 0 | K82: 1985 | L82: 1990
A83: 32 | B83: 998892 | C83: MAT PKG,REAR VINYL | D83: 20.7 | E83: 0 | F83: 16.97 | G83: 0 | H83: 0 | I83: 0 | K83: 1985 | L83: 1990
A84: 32 | B84: 998905 | C84: MIRROR PKG-CAMPER TYPE STAINLESS | D84: 119 | E84: 0 | F84: 83.3 | G84: 0 | H84: 0 | I84: 0 | K84: 1985 | L84: 1991
A85: 32 | B85: 998906 | C85: MIRROR HEAD-CAMPER TYPE STAINLESS | D85: 55 | E85: 0 | F85: 38.5 | G85: 0 | H85: 0 | I85: 0 | K85: 1979 | L85: 1996
A86: 32 | B86: 998954 | C86: HITCH PKG-TRAILER DEAD WEIGHT | D86: 124 | E86: 0 | F86: 86.8 | G86: 0 | H86: 0 | I86: 0 | K86: 1984 | L86: 1994
A87: 32 | B87: 998956 | C87: HEATER PKG,ENG BLOCK | D87: 22 | E87: 0 | F87: 15.4 | G87: 0 | H87: 0 | I87: 0 | K87: 1985 | L87: 1990
A88: 32 | B88: 998973 | C88: CAP,F/TNK FIL | D88: 15 | E88: 0 | F88: 11.25 | G88: 0 | H88: 0 | I88: 0 | K88: 1984 | L88: 2003
A89: 32 | B89: 998987 | C89: SUNROOF PKG-REMOVABLE *INSTALL .25 | D89: 289 | E89: 0 | F89: 202.3 | G89: 0 | H89: 0 | I89: 0 | K89: 1984 | L89: 1996
A90: 32 | B90: 998994 | C90: COVER PKG-FRONT END *INSTALL .3 | D90: 97 | E90: 0 | F90: 67.9 | G90: 0 | H90: 0 | I90: 0 | K90: 1984 | L90: 1990
A91: 32 | B91: 999007 | C91: MAT PKG,REAR VINYL *MAPLE | D91: 31 | E91: 0 | F91: 21.7 | G91: 0 | H91: 0 | I91: 0 | K91: 1985 | L91: 1989
A92: 32 | B92: 999019 | C92: MOLDING PKG,W/H OPG | D92: 43.04 | E92: 0 | F92: 30.13 | G92: 0 | H92: 0 | I92: 0 | K92: 1985 | L92: 1989
A93: 32 | B93: 999021 | C93: COVER PKG-FRT END | D93: 44 | E93: 0 | F93: 30.8 | G93: 0 | H93: 0 | I93: 0 | K93: 1982 | L93: 1987
A94: 32 | B94: 999022 | C94: COVER PKG-FRT END *INSTALL .3 | D94: 88 | E94: 0 | F94: 61.6 | G94: 0 | H94: 0 | I94: 0 | K94: 1982 | L94: 1988
A95: 32 | B95: 999023 | C95: RELEASE PKG-ELECTRIC TRUNK | D95: 43.99 | E95: 0 | F95: 30.79 | G95: 0 | H95: 0 | I95: 0 | K95: 1985 | L95: 1996
A96: 32 | B96: 999028 | C96: RELEASE PKG-ELECTRIC TRUNK | D96: 36.89 | E96: 0 | F96: 30.13 | G96: 0 | H96: 0 | I96: 0 | K96: 1985 | L96: 1988
A97: 32 | B97: 999052 | C97: CARRIER PKG-ROOF LUGG(BLACK) | D97: 0 | E97: 0 | F97: 0 | G97: 0 | H97: 0 | I97: 0 | K97: 1983 | L97: 1992
A98: 32 | B98: 999057 | C98: LOCK NUT PKG - ALUMINUM WHL *INSTALL .50 | D98: 15.71 | E98: 0 | F98: 11 | G98: 0 | H98: 0 | I98: 0 | K98: 1976 | L98: 1994
A99: 32 | B99: 999103 | C99: MIRROR PKG,O/S RR VIEW | D99: 44 | E99: 0 | F99: 30.8 | G99: 0 | H99: 0 | I99: 0 | K99: 1986 | L99: 1990
A100: 32 | B100: 999104 | C100: RELEASE PKG-ELECTRIC TRUNK | D100: 43.99 | E100: 0 | F100: 30.79 | G100: 0 | H100: 0 | I100: 0 | K100: 1986 | L100: 1988
A101: 32 | B101: 999108 | C101: PROTECTOR PKG - LICENSE PLATE | D101: 8 | E101: 0 | F101: 5.6 | G101: 0 | H101: 0 | I101: 0 | K101: 1975 | L101: 1998
A102: 32 | B102: 999111 | C102: MIRROR PKG,O/S RR VIEW | D102: 25.82 | E102: 0 | F102: 21.21 | G102: 0 | H102: 0 | I102: 0 | K102: 1985 | L102: 1988
A103: 32 | B103: 999141 | C103: TOOL PKG, | D103: 25 | E103: 0 | F103: 17.5 | G103: 0 | H103: 0 | I103: 0 | K103: 1975 | L103: 2004
A104: 32 | B104: 999157 | C104: MAT PKG,REAR CARPET *SADDLE | D104: 31 | E104: 0 | F104: 21.7 | G104: 0 | H104: 0 | I104: 0 | K104: 1985 | L104: 1987
A105: 32 | B105: 999170 | C105: SUNROOF PKG - REMOVABLE *INSTALL .1 | D105: 299 | E105: 0 | F105: 209.3 | G105: 0 | H105: 0 | I105: 0 | K105: 1984 | L105: 1999
A106: 32 | B106: 999173 | C106: HARNESS PKG - TRAILER WRG | D106: 75.3 | E106: 0 | F106: 45.18 | G106: 0 | H106: 0 | I106: 0 | K106: 1983 | L106: 1993
A107: 32 | B107: 999180 | C107: BALL PKG,PLTF HITCH MT | D107: 28 | E107: 0 | F107: 19.6 | G107: 0 | H107: 0 | I107: 0 | K107: 1980 | L107: 2012
A108: 32 | B108: 999181 | C108: DECAL PKG - BLAZER - WINDSHIELD *SILVER)(INST | D108: 35 | E108: 0 | F108: 24.5 | G108: 0 | H108: 0 | I108: 0 | K108: 1983 | L108: 2003
A109: 32 | B109: 999182 | C109: DECAL PKG - JIMMY - WINDSHIELD *SILVER)(INST | D109: 35 | E109: 0 | F109: 24.5 | G109: 0 | H109: 0 | I109: 0 | K109: 1983 | L109: 2001
A110: 32 | B110: 999183 | C110: DECAL PKG - 4X4 - WINDSHIELD *SILVER)(INST | D110: 35 | E110: 0 | F110: 24.5 | G110: 0 | H110: 0 | I110: 0 | K110: 1982 | L110: 2001
A111: 32 | B111: 999184 | C111: DECAL PKG - S TRUCK - WINDSHIELD *SILVER)(INST | D111: 35 | E111: 0 | F111: 24.5 | G111: 0 | H111: 0 | I111: 0 | K111: 1982 | L111: 2003
A112: 32 | B112: 999186 | C112: FENDER FLARE PKG., RUBBER *INSTALL 1.0 | D112: 33 | E112: 0 | F112: 23.1 | G112: 0 | H112: 0 | I112: 0 | K112: 1979 | L112: 2000
A113: 32 | B113: 999187 | C113: FENDER FLARE PKG | D113: 33 | E113: 0 | F113: 23.1 | G113: 0 | H113: 0 | I113: 0 | K113: 1982 | L113: 1994
A114: 32 | B114: 999197 | C114: LAMP PKG - ROOF MARKER | D114: 27.17 | E114: 0 | F114: 20.39 | G114: 0 | H114: 0 | I114: 0 | K114: 1982 | L114: 1991
A115: 32 | B115: 999222 | C115: HEATER PKG - ENGINE BLOCK *INSTALL .5 | D115: 25 | E115: 0 | F115: 17.5 | G115: 0 | H115: 0 | I115: 0 | K115: 1986 | L115: 1996
A116: 32 | B116: 999223 | C116: MOLDING PKG,BODY SIDE | D116: 131 | E116: 0 | F116: 91.7 | G116: 0 | H116: 0 | I116: 0 | K116: 1981 | L116: 1987
A117: 32 | B117: 999224 | C117: MOLDING PKG,BODY SIDE | D117: 105 | E117: 0 | F117: 73.5 | G117: 0 | H117: 0 | I117: 0 | K117: 1981 | L117: 1987
A118: 32 | B118: 999259 | C118: MIRROR PKG - STAINLESS 2ND DES RH CONVEX | D118: 108.57 | E118: 0 | F118: 76 | G118: 0 | H118: 0 | I118: 0 | K118: 1986 | L118: 1991
A119: 32 | B119: 999260 | C119: MIRROR HEAD PKG - STAINLESS CONVEX | D119: 39.87 | E119: 0 | F119: 27.91 | G119: 0 | H119: 0 | I119: 0 | K119: 1985 | L119: 1991
A120: 32 | B120: 999261 | C120: MIRROR PKG - STAINLESS 2ND DES RH CONVEX*STAINLESS | D120: 99.69 | E120: 0 | F120: 69.78 | G120: 0 | H120: 0 | I120: 0 | K120: 1986 | L120: 1993
A121: 32 | B121: 999262 | C121: MIRROR HEAD PKG - STAINLESS CONVEX | D121: 39.87 | E121: 0 | F121: 27.91 | G121: 0 | H121: 0 | I121: 0 | K121: 1985 | L121: 1991
A122: 32 | B122: 999267 | C122: HARNESS PACKAGE - TRAILER WRG *INSTALL .50 | D122: 25 | E122: 0 | F122: 17.5 | G122: 0 | H122: 0 | I122: 0 | K122: 1980 | L122: 2005
A123: 32 | B123: 999268 | C123: HARNESS PACKAGE - TRAILER WRG *INSTALL .5 | D123: 25 | E123: 0 | F123: 18.75 | G123: 0 | H123: 0 | I123: 0 | K123: 1980 | L123: 2004
A124: 32 | B124: 999276 | C124: DECAL PKG - CHEVY - WINDSHIELD *SILVER)(INST | D124: 35 | E124: 0 | F124: 24.5 | G124: 0 | H124: 0 | I124: 0 | K124: 1985 | L124: 2005
A125: 32 | B125: 999279 | C125: DECAL PKG - PONTIAC - WINDSHIELD *SILVER)(INST | D125: 39 | E125: 0 | F125: 27.3 | G125: 0 | H125: 0 | I125: 0 | K125: 1985 | L125: 2005
A126: 32 | B126: 999280 | C126: DECAL PKG - CORVETTE - WINDSHIELD *SILVER)(INST | D126: 35 | E126: 0 | F126: 24.5 | G126: 0 | H126: 0 | I126: 0 | K126: 1985 | L126: 2003
A127: 32 | B127: 999285 | C127: COVER PKG - FRONT END | D127: 88 | E127: 0 | F127: 61.6 | G127: 0 | H127: 0 | I127: 0 | K127: 1982 | L127: 1990
A128: 32 | B128: 999287 | C128: COVER PKG - FRONT END | D128: 97 | E128: 0 | F128: 67.9 | G128: 0 | H128: 0 | I128: 0 | K128: 1985 | L128: 1990
A129: 32 | B129: 999319 | C129: DECAL PKG-GRAND AM-WINDSHIELD *SILVER)(INST | D129: 35 | E129: 0 | F129: 24.5 | G129: 0 | H129: 0 | I129: 0 | K129: 1985 | L129: 2005
A130: 32 | B130: 999328 | C130: FLARE PKG - SAFETY | D130: 13 | E130: 0 | F130: 9.1 | G130: 0 | H130: 0 | I130: 0 | K130: 9899 | L130: 9899
A131: 32 | B131: 999349 | C131: CARRIER PKG - ROOF LUGGAGE-BLACK 62" | D131: 144.9 | E131: 0 | F131: 101.43 | G131: 0 | H131: 0 | I131: 0 | K131: 1985 | L131: 1993
A132: 32 | B132: 999374 | C132: COVER PKG - FRONT END - FIERO GT | D132: 87.14 | E132: 0 | F132: 61 | G132: 0 | H132: 0 | I132: 0 | K132: 1985 | L132: 1988
A133: 32 | B133: 999375 | C133: LAMP ASM-UNIVERSAL HIGH MOUNTED STOP-PEDESTAL MOUNTED | D133: 19.82 | E133: 0 | F133: 14.85 | G133: 0 | H133: 0 | I133: 0 | K133: 1980 | L133: 1985
A134: 32 | B134: 999411 | C134: COVER PKG, FRT END | D134: 44 | E134: 0 | F134: 30.8 | G134: 0 | H134: 0 | I134: 0 | K134: 1982 | L134: 1990
A135: 32 | B135: 999413 | C135: DEFLECTOR PKG,SI WDO | D135: 55 | E135: 0 | F135: 41.25 | G135: 0 | H135: 0 | I135: 0 | K135: 1983 | L135: 1997
A136: 32 | B136: 999439 | C136: DECAL PKG - GMC TRUCKS - WINDSHIELD *SILVER)(INST | D136: 35 | E136: 0 | F136: 24.5 | G136: 0 | H136: 0 | I136: 0 | K136: 1983 | L136: 2001
A137: 32 | B137: 999441 | C137: MIRROR PKG - OSRV LH REMOTE SPORT | D137: 43 | E137: 0 | F137: 30.1 | G137: 0 | H137: 0 | I137: 0 | K137: 1985 | L137: 1994
A138: 32 | B138: 999451 | C138: LAMP PKG - FOG CLEAR W/O COVERS *BLACK HSG)(I | D138: 73 | E138: 0 | F138: 51.1 | G138: 0 | H138: 0 | I138: 0 | K138: 1982 | L138: 2002
A139: 32 | B139: 999455 | C139: HOOD SCOOP PKG | D139: 119 | E139: 0 | F139: 83.3 | G139: 0 | H139: 0 | I139: 0 | K139: 1986 | L139: 1994
A140: 32 | B140: 999463 | C140: LAMP PKG,OFF ROAD *BLACK HSG)(I | D140: 77.5 | E140: 0 | F140: 54.25 | G140: 0 | H140: 0 | I140: 0 | K140: 1985 | L140: 2002
A141: 32 | B141: 999464 | C141: LAMP PKG,FRT FOG *BLACK HSG)(I | D141: 93 | E141: 0 | F141: 65.1 | G141: 0 | H141: 0 | I141: 0 | K141: 1985 | L141: 2002
A142: 32 | B142: 999465 | C142: LAMP PKG,DRIVING *BLACK HSG)(I | D142: 94 | E142: 0 | F142: 65.8 | G142: 0 | H142: 0 | I142: 0 | K142: 1985 | L142: 2002
A143: 32 | B143: 999486 | C143: DECAL PKG - WINDSHIELD - CHEVROLET *WHITE)(INSTA | D143: 35 | E143: 0 | F143: 24.5 | G143: 0 | H143: 0 | I143: 0 | K143: 1982 | L143: 2000
A144: 32 | B144: 999524 | C144: NETTING PKG-UTILITY RESTRAINT(TRUNK) | D144: 36.23 | E144: 0 | F144: 25.62 | G144: 0 | H144: 0 | I144: 0 | K144: 1982 | L144: 1993
A145: 32 | B145: 999525 | C145: NETTING PKG-UTILITY RESTRAINT(TRUNK) | D145: 40 | E145: 0 | F145: 28 | G145: 0 | H145: 0 | I145: 0 | K145: 1982 | L145: 1996
A146: 32 | B146: 999526 | C146: NETTING PKG-UTILITY RESTRAINT(TRUNK) | D146: 36.23 | E146: 0 | F146: 25.62 | G146: 0 | H146: 0 | I146: 0 | K146: 1985 | L146: 1987
A147: 32 | B147: 999556 | C147: HEATER PKG-ENGINE BLOCK | D147: 22 | E147: 0 | F147: 15.4 | G147: 0 | H147: 0 | I147: 0 | K147: 1986 | L147: 1991
A148: 32 | B148: 999559 | C148: MLDG PKG-BODY SIDE | D148: 52.5 | E148: 0 | F148: 36.75 | G148: 0 | H148: 0 | I148: 0 | K148: 1982 | L148: 1993
A149: 32 | B149: 999560 | C149: MOLDING PKG-BODY SIDE | D149: 105 | E149: 0 | F149: 73.5 | G149: 0 | H149: 0 | I149: 0 | K149: 1982 | L149: 1993
A150: 32 | B150: 999561 | C150: MOLDING PKG-BODY SIDE(BLACK W/ DUAL CHR ACCENT B84) | D150: 105 | E150: 0 | F150: 73.5 | G150: 0 | H150: 0 | I150: 0 | K150: 1983 | L150: 1990
A151: 32 | B151: 999612 | C151: MAT PKG,REAR VINYL *CHARCOAL | D151: 17 | E151: 0 | F151: 12.75 | G151: 0 | H151: 0 | I151: 0 | K151: 1986 | L151: 1989
A152: 32 | B152: 999679 | C152: COOLER/WARMER PKG,FOOD & BEVERAGE (10.240) | D152: 190 | E152: 0 | F152: 133 | G152: 0 | H152: 0 | I152: 0 | K152: 1980 | L152: 2004
A153: 32 | B153: 999681 | C153: ADAPTER,COOLER/WARMER AC PWR SCE | D153: 47 | E153: 0 | F153: 32.9 | G153: 0 | H153: 0 | I153: 0 | K153: 1980 | L153: 2004
A154: 32 | B154: 999732 | C154: BELT PKG-SHOULDER AND LAP (BLACK) | D154: 185.7 | E154: 0 | F154: 139.28 | G154: 0 | H154: 0 | I154: 0 | K154: 1978 | L154: 1980
A155: 32 | B155: 999767 | C155: RAIL UNIT-PICKUP BOX SI,CHROME | D155: 69.35 | E155: 0 | F155: 56.93 | G155: 0 | H155: 0 | I155: 0 | K155: 1974 | L155: 1992
A156: 32 | B156: 999772 | C156: HITCH PKG-PLATFORM *INSTALL 1.0 | D156: 210 | E156: 0 | F156: 147 | G156: 0 | H156: 0 | I156: 0 | K156: 1988 | L156: 2000
A157: 32 | B157: 999812 | C157: WINDOW KIT,RF LIFT OFF | D157: 367 | E157: 0 | F157: 256.9 | G157: 0 | H157: 0 | I157: 0 | K157: 1985 | L157: 1986
A158: 32 | B158: 999813 | C158: WINDOW KIT,RF LIFT OFF | D158: 367 | E158: 0 | F158: 256.9 | G158: 0 | H158: 0 | I158: 0 | K158: 1985 | L158: 1986
A159: 32 | B159: 999814 | C159: WINDOW KIT,RF LIFT OFF | D159: 734 | E159: 0 | F159: 513.8 | G159: 0 | H159: 0 | I159: 0 | K159: 1987 | L159: 1989
A160: 32 | B160: 999832 | C160: DEFLECTOR PKG,SI WDO | D160: 55 | E160: 0 | F160: 41.25 | G160: 0 | H160: 55.86 | I160: 0 | K160: 1988 | L160: 2000
A161: 32 | B161: 999839 | C161: HEATER PACKAGE-ENGINE BLOCK | D161: 15.21 | E161: 0 | F161: 12.42 | G161: 0 | H161: 0 | I161: 0 | K161: 1985 | L161: 1989
A162: 32 | B162: 999866 | C162: TOW HOOK PKG *INSTALL 3.0 | D162: 65 | E162: 0 | F162: 45.5 | G162: 0 | H162: 0 | I162: 0 | K162: 1988 | L162: 2000
A163: 32 | B163: 999872 | C163: MAT PKG,FRONT VINYL | D163: 16 | E163: 0 | F163: 13.6 | G163: 0 | H163: 0 | I163: 0 | K163: 1988 | L163: 1990
A164: 32 | B164: 999874 | C164: MAT PKG-PICK UP | D164: 144.85 | E164: 0 | F164: 108.63 | G164: 0 | H164: 0 | I164: 0 | K164: 1988 | L164: 1998
A165: 32 | B165: 999875 | C165: MAT PKG-PICK UP BED | D165: 129.32 | E165: 0 | F165: 96.99 | G165: 0 | H165: 0 | I165: 0 | K165: 1988 | L165: 1998
A166: 32 | B166: 999876 | C166: MOLDING PKG-DR GUARD(STLS STL) | D166: 14 | E166: 0 | F166: 9.8 | G166: 0 | H166: 0 | I166: 0 | K166: 1988 | L166: 1995
A167: 32 | B167: 999877 | C167: MOLDING PKG-DR GUARD(BLACK) | D167: 14 | E167: 0 | F167: 9.8 | G167: 0 | H167: 0 | I167: 0 | K167: 1988 | L167: 1995
A168: 32 | B168: 999881 | C168: CARRIER PKG-RR DECK-BRIGHT | D168: 105.84 | E168: 0 | F168: 74.09 | G168: 0 | H168: 0 | I168: 0 | K168: 1980 | L168: 1991
A169: 32 | B169: 999882 | C169: CARRIER PKG-RR DECK-BLACK | D169: 105.84 | E169: 0 | F169: 74.09 | G169: 0 | H169: 0 | I169: 0 | K169: 1985 | L169: 1991
A170: 32 | B170: 999902 | C170: PACKAGE-DOOR EDGE GUARD (CHROME) | D170: 13.41 | E170: 0 | F170: 9.39 | G170: 0 | H170: 0 | I170: 0 | K170: 1987 | L170: 1993
A171: 32 | B171: 999904 | C171: CARRIER PKG,ROOF LUGGAGE-80"(BLACK) | D171: 165.6 | E171: 0 | F171: 115.92 | G171: 0 | H171: 0 | I171: 0 | K171: 1985 | L171: 1994
A172: 32 | B172: 999916 | C172: MAT PKG,FRONT CARPET | D172: 26.19 | E172: 0 | F172: 21.48 | G172: 0 | H172: 0 | I172: 0 | K172: 1988 | L172: 1990
A173: 32 | B173: 1636872 | C173: MAT PKG,FRONT CARPET | D173: 48 | E173: 0 | F173: 36 | G173: 0 | H173: 0 | I173: 0 | K173: 1987 | L173: 1987
A174: 32 | B174: 1643807 | C174: MAT PKG,FRONT CARPET | D174: 60 | E174: 0 | F174: 45 | G174: 0 | H174: 0 | I174: 0 | K174: 1986 | L174: 1987
A175: 32 | B175: 2074148 | C175: HEATER ASM - ENGINE BLOCK | D175: 94.14 | E175: 0 | F175: 53.66 | G175: 0 | H175: 0 | I175: 0 | K175: 1983 | L175: 1991
A176: 32 | B176: 2234267 | C176: HEATER PKG,ENGINE COOLANT | D176: 31.43 | E176: 0 | F176: 22 | G176: 0 | H176: 0 | I176: 0 | K176: 1968 | L176: 1982
A177: 32 | B177: 2234835 | C177: HUB PKG-LOCKING (UNITIZED) | D177: 135.25 | E177: 0 | F177: 81.15 | G177: 0 | H177: 0 | I177: 0 | K177: 1969 | L177: 1989
A178: 32 | B178: 2234894 | C178: MIRROR PKG,O/S RR VIEW | D178: 184 | E178: 0 | F178: 128.8 | G178: 0 | H178: 0 | I178: 0 | K178: 1979 | L178: 1981
A179: 32 | B179: 2234901 | C179: FLARE PKG | D179: 43 | E179: 0 | F179: 30.1 | G179: 0 | H179: 0 | I179: 0 | K179: 1981 | L179: 2013
A180: 32 | B180: 3528293 | C180: BELT ASM-CHILD ST RST SYS | D180: 9 | E180: 0 | F180: 6.3 | G180: 0 | H180: 0 | I180: 0 | K180: 1992 | L180: 1993
A181: 32 | B181: 3530881 | C181: MAT PKG,FRONT CARPET | D181: 55.71 | E181: 0 | F181: 39 | G181: 0 | H181: 0 | I181: 0 | K181: 1991 | L181: 1993
A182: 32 | B182: 3538939 | C182: TRANSMITTER ASM-GARAGE DR OPENER | D182: 223 | E182: 0 | F182: 133.8 | G182: 0 | H182: 0 | I182: 0 | K182: 1995 | L182: 1996
A183: 32 | B183: 3542476 | C183: HARDWARE PKG,TOP TETHER CHILD ST RST SYS | D183: 9 | E183: 0 | F183: 6.3 | G183: 0 | H183: 0 | I183: 0 | K183: 1994 | L183: 1999
A184: 32 | B184: 3549376 | C184: HOOK-RR TOW | D184: 8.98 | E184: 0 | F184: 5.12 | G184: 0 | H184: 0 | I184: 0 | K184: 1997 | L184: 1999
A185: 32 | B185: 9039829 | C185: MAT PKG,FRONT & REAR CARPET (15.286/16.8*MED CASHMERE | D185: 99 | E185: 0 | F185: 69.3 | G185: 0 | H185: 0 | I185: 0 | K185: 2010 | L185: 2011
A186: 32 | B186: 9039831 | C186: MAT PKG,FRONT & REAR CARPET (15.286/16.8*JET BLACK | D186: 99 | E186: 0 | F186: 69.3 | G186: 0 | H186: 0 | I186: 0 | K186: 2010 | L186: 2011
A187: 32 | B187: 9076212 | C187: MAT PKG,FRONT & REAR CARPET (15.286/16.8*JET BLACK | D187: 100 | E187: 0 | F187: 70 | G187: 0 | H187: 0 | I187: 0 | K187: 2010 | L187: 2011
A188: 32 | B188: 9076213 | C188: MAT PKG,FRONT & REAR CARPET (15.286/16.8*MED CASHMERE | D188: 100 | E188: 0 | F188: 70 | G188: 0 | H188: 0 | I188: 0 | K188: 2010 | L188: 2011
A189: 32 | B189: 9076214 | C189: MAT PKG,FRONT & REAR CARPET (15.286/16.8*DK TITANIUM | D189: 100 | E189: 0 | F189: 70 | G189: 0 | H189: 0 | I189: 0 | K189: 2010 | L189: 2011
A190: 32 | B190: 9162914 | C190: LOCK PKG,WHL | D190: 40 | E190: 0 | F190: 30 | G190: 0 | H190: 0 | I190: 0 | K190: 2008 | L190: 2009
A191: 32 | B191: 9163121 | C191: NET PKG,CONVENIENCE (15.222/16.575) *EBONY)(INSTA | D191: 30 | E191: 0 | F191: 21 | G191: 0 | H191: 0 | I191: 0 | K191: 2008 | L191: 2010
A192: 32 | B192: 9163129 | C192: TRAY PKG,R/CMPT FLR STOR CMPT | D192: 40 | E192: 0 | F192: 28 | G192: 0 | H192: 0 | I192: 0 | K192: 2008 | L192: 2009
A193: 32 | B193: 9163202 | C193: NET PKG,CONVENIENCE (15.222/16.575) *EBONY)(INSTA | D193: 30 | E193: 0 | F193: 21 | G193: 0 | H193: 0 | I193: 0 | K193: 2008 | L193: 2010
A194: 32 | B194: 9593570 | C194: CAP,WHL NUT *BRIGHT)(INST | D194: 7.96 | E194: 0 | F194: 5.57 | G194: 0 | H194: 0 | I194: 0 | K194: 2000 | L194: 2007
A195: 32 | B195: 9599297 | C195: NUT-WHL M12X1.5-6H (W/SS DECORATIVE CAP) | D195: 5 | E195: 0 | F195: 3 | G195: 0 | H195: 0 | I195: 0 | K195: 2015 | L195: 2017
A196: 32 | B196: 10041121 | C196: CARRIER PKG,SKI | D196: 71 | E196: 0 | F196: 49.7 | G196: 0 | H196: 0 | I196: 0 | K196: 1982 | L196: 1995
A197: 32 | B197: 10099301 | C197: BELT KIT,CHILD ST RST SYS | D197: 15 | E197: 0 | F197: 10.5 | G197: 0 | H197: 0 | I197: 0 | K197: 1989 | L197: 1996
A198: 32 | B198: 10126601 | C198: BELT PACKAGE-CHILD SEAT RESTRAINT SYSTEM | D198: 8 | E198: 0 | F198: 5.6 | G198: 0 | H198: 0 | I198: 0 | K198: 1989 | L198: 1991
A199: 32 | B199: 10178967 | C199: BELT PKG-CHILD ST RST SYS | D199: 35 | E199: 0 | F199: 24.5 | G199: 0 | H199: 0 | I199: 0 | K199: 1990 | L199: 1994
A200: 32 | B200: 10197672 | C200: BELT KIT,CHILD ST RST SYS | D200: 9 | E200: 0 | F200: 6.3 | G200: 0 | H200: 0 | I200: 0 | K200: 1993 | L200: 1996
... 4300 more rows

Sheet RVD (hidden)
A1: Region | B1: Region Description | C1: Zone | D1: Zone Description | E1: Zone Manager | F1: Area | G1: Area Description | H1: Area Manager | I1: BAC | J1: Dealer Name | K1: City | L1: State | M1: Model | N1: Monthly Obj | O1: MTD $ | P1: % Attain | Q1: $PNUR Obj | R1: $PNUR Track | S1: CYTD Obj | T1: CYTD $ | U1: % Attain | V1: CYTD $PNUR Obj | W1: CYTD $PNUR Track | X1: Zone | Y1: CYTD Est Veh Sales | AA1: CYTD EST. RVD's through August 2016
A2: 20 | B2: South Central Region | C2: 2113 | D2: CHV OKC/LUBB | E2: Mark Gilbert | F2: 21131131 | G2: CHV OKC SOUTH | H2: Steve Walenczak | I2: 112355 | J2: MID-AMERICA AUTO GROUP | K2: ADA | L2: OK | M2: Camaro | N2: 0 | S2: 109.76 | V2: 109.76 | X2: =CONCATENATE(C2," - ",D2) -> 2113 - CHV OKC/LUBB | Y2: =IFERROR((IF($S2=0,0,$T2/$W2)),0) -> 0
A3: 20 | B3: South Central Region | C3: 2113 | D3: CHV OKC/LUBB | E3: Mark Gilbert | F3: 21131131 | G3: CHV OKC SOUTH | H3: Steve Walenczak | I3: 112355 | J3: MID-AMERICA AUTO GROUP | K3: ADA | L3: OK | M3: Camaro A1BC | N3: 384.62 | Q3: 384.62 | S3: 1875.42 | T3: 240 | U3: 0.128 | V3: 312.57 | W3: 60 | X3: =CONCATENATE(C3," - ",D3) -> 2113 - CHV OKC/LUBB | Y3: =IFERROR((IF($S3=0,0,$T3/$W3)),0) -> 4
A4: 20 | B4: South Central Region | C4: 2113 | D4: CHV OKC/LUBB | E4: Mark Gilbert | F4: 21131131 | G4: CHV OKC SOUTH | H4: Steve Walenczak | I4: 112355 | J4: MID-AMERICA AUTO GROUP | K4: ADA | L4: OK | M4: Corvette | N4: 465.12 | Q4: 465.12 | S4: 1621.49 | T4: 318.75 | U4: 0.1966 | V4: 405.37 | W4: 159.375 | X4: 2113 - CHV OKC/LUBB | Y4: 2
A5: 20 | B5: South Central Region | C5: 2113 | D5: CHV OKC/LUBB | E5: Mark Gilbert | F5: 21131131 | G5: CHV OKC SOUTH | H5: Steve Walenczak | I5: 112355 | J5: MID-AMERICA AUTO GROUP | K5: ADA | L5: OK | M5: Cruze | N5: 0 | S5: 47.34 | T5: 75 | U5: 1.5843 | V5: 11.84 | W5: 18.75 | X5: 2113 - CHV OKC/LUBB | Y5: 4
A6: 20 | B6: South Central Region | C6: 2113 | D6: CHV OKC/LUBB | E6: Mark Gilbert | F6: 21131131 | G6: CHV OKC SOUTH | H6: Steve Walenczak | I6: 112355 | J6: MID-AMERICA AUTO GROUP | K6: ADA | L6: OK | M6: Cruze NA D2 | N6: 100 | O6: 75 | P6: 0.75 | Q6: 25 | R6: 25 | S6: 320.56 | T6: 75 | U6: 0.234 | V6: 24.66 | W6: 4.166666667 | X6: 2113 - CHV OKC/LUBB | Y6: 18
A7: 20 | B7: South Central Region | C7: 2113 | D7: CHV OKC/LUBB | E7: Mark Gilbert | F7: 21131131 | G7: CHV OKC SOUTH | H7: Steve Walenczak | I7: 112355 | J7: MID-AMERICA AUTO GROUP | K7: ADA | L7: OK | M7: Impala | N7: 63.33 | Q7: 63.33 | S7: 1081.39 | T7: 242.5 | U7: 0.2242 | V7: 135.17 | W7: 40.41666667 | X7: 2113 - CHV OKC/LUBB | Y7: 6
A8: 20 | B8: South Central Region | C8: 2113 | D8: CHV OKC/LUBB | E8: Mark Gilbert | F8: 21131131 | G8: CHV OKC SOUTH | H8: Steve Walenczak | I8: 112355 | J8: MID-AMERICA AUTO GROUP | K8: ADA | L8: OK | M8: Malibu | S8: 45.98 | V8: 22.99 | X8: 2113 - CHV OKC/LUBB | Y8: 0
A9: 20 | B9: South Central Region | C9: 2113 | D9: CHV OKC/LUBB | E9: Mark Gilbert | F9: 21131131 | G9: CHV OKC SOUTH | H9: Steve Walenczak | I9: 112355 | J9: MID-AMERICA AUTO GROUP | K9: ADA | L9: OK | M9: Malibu E2SC | N9: 173.92 | Q9: 86.96 | S9: 1768.94 | V9: 84.24 | X9: 2113 - CHV OKC/LUBB | Y9: 0
A10: 20 | B10: South Central Region | C10: 2113 | D10: CHV OKC/LUBB | E10: Mark Gilbert | F10: 21131131 | G10: CHV OKC SOUTH | H10: Steve Walenczak | I10: 112355 | J10: MID-AMERICA AUTO GROUP | K10: ADA | L10: OK | M10: Sonic | N10: 56.82 | Q10: 56.82 | S10: 671.44 | V10: 47.96 | X10: 2113 - CHV OKC/LUBB | Y10: 0
A11: 20 | B11: South Central Region | C11: 2113 | D11: CHV OKC/LUBB | E11: Mark Gilbert | F11: 21131131 | G11: CHV OKC SOUTH | H11: Steve Walenczak | I11: 112355 | J11: MID-AMERICA AUTO GROUP | K11: ADA | L11: OK | M11: Spark M2 | N11: 25.27 | Q11: 25.27 | S11: 102.35 | T11: 93.75 | U11: 0.916 | V11: 25.59 | W11: 15.625 | X11: 2113 - CHV OKC/LUBB | Y11: 6
A12: 20 | B12: South Central Region | C12: 2113 | D12: CHV OKC/LUBB | E12: Mark Gilbert | F12: 21131131 | G12: CHV OKC SOUTH | H12: Steve Walenczak | I12: 112355 | J12: MID-AMERICA AUTO GROUP | K12: ADA | L12: OK | M12: Colorado | N12: 689.66 | Q12: 689.66 | S12: 6271.09 | T12: 1684.65 | U12: 0.2686 | V12: 696.79 | W12: 210.58125 | X12: 2113 - CHV OKC/LUBB | Y12: 8
A13: 20 | B13: South Central Region | C13: 2113 | D13: CHV OKC/LUBB | E13: Mark Gilbert | F13: 21131131 | G13: CHV OKC SOUTH | H13: Steve Walenczak | I13: 112355 | J13: MID-AMERICA AUTO GROUP | K13: ADA | L13: OK | M13: Equinox | N13: 355.56 | Q13: 177.78 | S13: 3505.18 | T13: 551.18 | U13: 0.1572 | V13: 159.33 | W13: 61.24222222 | X13: 2113 - CHV OKC/LUBB | Y13: 9
A14: 20 | B14: South Central Region | C14: 2113 | D14: CHV OKC/LUBB | E14: Mark Gilbert | F14: 21131131 | G14: CHV OKC SOUTH | H14: Steve Walenczak | I14: 112355 | J14: MID-AMERICA AUTO GROUP | K14: ADA | L14: OK | M14: Express | N14: 0 | O14: 78.75 | R14: 78.75 | S14: 61.8 | T14: 78.75 | U14: 1.2743 | V14: 61.8 | W14: 78.75 | X14: 2113 - CHV OKC/LUBB | Y14: 1
A15: 20 | B15: South Central Region | C15: 2113 | D15: CHV OKC/LUBB | E15: Mark Gilbert | F15: 21131131 | G15: CHV OKC SOUTH | H15: Steve Walenczak | I15: 112355 | J15: MID-AMERICA AUTO GROUP | K15: ADA | L15: OK | M15: Silverado K2XX HD | N15: 4235.28 | O15: 311.24 | P15: 0.0735 | Q15: 705.88 | R15: 38.905 | S15: 28995.8 | T15: 16444.72 | U15: 0.5671 | V15: 674.32 | W15: 483.6682353 | X15: 2113 - CHV OKC/LUBB | Y15: 34
A16: 20 | B16: South Central Region | C16: 2113 | D16: CHV OKC/LUBB | E16: Mark Gilbert | F16: 21131131 | G16: CHV OKC SOUTH | H16: Steve Walenczak | I16: 112355 | J16: MID-AMERICA AUTO GROUP | K16: ADA | L16: OK | M16: Silverado K2XX LD | N16: 5609.8 | O16: 84.01 | P16: 0.015 | Q16: 560.98 | R16: 10.50125 | S16: 50584.74 | T16: 10600.55 | U16: 0.2096 | V16: 543.92 | W16: 200.0103774 | X16: 2113 - CHV OKC/LUBB | Y16: 53
A17: 20 | B17: South Central Region | C17: 2113 | D17: CHV OKC/LUBB | E17: Mark Gilbert | F17: 21131131 | G17: CHV OKC SOUTH | H17: Steve Walenczak | I17: 112355 | J17: MID-AMERICA AUTO GROUP | K17: ADA | L17: OK | M17: Suburban K2XX | N17: 453.33 | Q17: 453.33 | S17: 3403.55 | T17: 493.56 | U17: 0.145 | V17: 425.44 | W17: 98.712 | X17: 2113 - CHV OKC/LUBB | Y17: 5
A18: 20 | B18: South Central Region | C18: 2113 | D18: CHV OKC/LUBB | E18: Mark Gilbert | F18: 21131131 | G18: CHV OKC SOUTH | H18: Steve Walenczak | I18: 112355 | J18: MID-AMERICA AUTO GROUP | K18: ADA | L18: OK | M18: Tahoe K2XX | N18: 846.66 | O18: 109 | P18: 0.1287 | Q18: 423.33 | R18: 18.16666667 | S18: 6712.68 | T18: 1139.03 | U18: 0.1697 | V18: 394.86 | W18: 59.94894737 | X18: 2113 - CHV OKC/LUBB | Y18: 19
A19: 20 | B19: South Central Region | C19: 2113 | D19: CHV OKC/LUBB | E19: Mark Gilbert | F19: 21131131 | G19: CHV OKC SOUTH | H19: Steve Walenczak | I19: 112355 | J19: MID-AMERICA AUTO GROUP | K19: ADA | L19: OK | M19: Traverse | N19: 321.84 | Q19: 321.84 | S19: 1818.43 | V19: 227.3 | X19: 2113 - CHV OKC/LUBB | Y19: 0
A20: 20 | B20: South Central Region | C20: 2113 | D20: CHV OKC/LUBB | E20: Mark Gilbert | F20: 21131131 | G20: CHV OKC SOUTH | H20: Steve Walenczak | I20: 112355 | J20: MID-AMERICA AUTO GROUP | K20: ADA | L20: OK | M20: Trax | N20: 73.12 | Q20: 73.12 | S20: 453.39 | V20: 75.57 | X20: 2113 - CHV OKC/LUBB | Y20: 0
A21: 20 | B21: South Central Region | C21: 2113 | D21: CHV OKC/LUBB | E21: Mark Gilbert | F21: 21131131 | G21: CHV OKC SOUTH | H21: Steve Walenczak | I21: 112355 | J21: MID-AMERICA AUTO GROUP | K21: ADA | L21: OK | M21: LaCrosse | N21: 28.05 | Q21: 28.05 | S21: 768.79 | T21: 120 | U21: 0.1561 | V21: 96.1 | W21: 40 | X21: 2113 - CHV OKC/LUBB | Y21: 3
A22: 20 | B22: South Central Region | C22: 2113 | D22: CHV OKC/LUBB | E22: Mark Gilbert | F22: 21131131 | G22: CHV OKC SOUTH | H22: Steve Walenczak | I22: 112355 | J22: MID-AMERICA AUTO GROUP | K22: ADA | L22: OK | M22: Enclave | N22: 247.13 | Q22: 247.13 | S22: 1920.14 | T22: 70 | U22: 0.0365 | V22: 240.02 | W22: 14 | X22: 2113 - CHV OKC/LUBB | Y22: 5
A23: 20 | B23: South Central Region | C23: 2113 | D23: CHV OKC/LUBB | E23: Mark Gilbert | F23: 21131131 | G23: CHV OKC SOUTH | H23: Steve Walenczak | I23: 112355 | J23: MID-AMERICA AUTO GROUP | K23: ADA | L23: OK | M23: Encore | N23: 55.56 | Q23: 55.56 | S23: 590.04 | V23: 73.76 | X23: 2113 - CHV OKC/LUBB | Y23: 0
A24: 20 | B24: South Central Region | C24: 2113 | D24: CHV OKC/LUBB | E24: Mark Gilbert | F24: 21131131 | G24: CHV OKC SOUTH | H24: Steve Walenczak | I24: 112355 | J24: MID-AMERICA AUTO GROUP | K24: ADA | L24: OK | M24: Envision | N24: 0 | S24: 56.96 | V24: 56.96 | X24: 2113 - CHV OKC/LUBB | Y24: 0
A25: 20 | B25: South Central Region | C25: 2113 | D25: CHV OKC/LUBB | E25: Mark Gilbert | F25: 21131131 | G25: CHV OKC SOUTH | H25: Steve Walenczak | I25: 116606 | J25: BRAD FENTON MOTORS OF ARDMORE, | K25: ARDMORE | L25: OK | M25: Camaro | N25: 0 | S25: 590.71 | T25: 320.4 | U25: 0.5424 | V25: 147.68 | W25: 320.4 | X25: 2113 - CHV OKC/LUBB | Y25: 1
A26: 20 | B26: South Central Region | C26: 2113 | D26: CHV OKC/LUBB | E26: Mark Gilbert | F26: 21131131 | G26: CHV OKC SOUTH | H26: Steve Walenczak | I26: 116606 | J26: BRAD FENTON MOTORS OF ARDMORE, | K26: ARDMORE | L26: OK | M26: Camaro A1BC | N26: 1153.86 | O26: 266.03 | P26: 0.2306 | Q26: 384.62 | R26: 266.03 | S26: 4459.44 | T26: 772.28 | U26: 0.1732 | V26: 343.03 | W26: 96.535 | X26: 2113 - CHV OKC/LUBB | Y26: 8
A27: 20 | B27: South Central Region | C27: 2113 | D27: CHV OKC/LUBB | E27: Mark Gilbert | F27: 21131131 | G27: CHV OKC SOUTH | H27: Steve Walenczak | I27: 116606 | J27: BRAD FENTON MOTORS OF ARDMORE, | K27: ARDMORE | L27: OK | M27: Corvette | N27: 465.12 | Q27: 465.12 | S27: 2378.39 | V27: 396.4 | X27: 2113 - CHV OKC/LUBB | Y27: 0
A28: 20 | B28: South Central Region | C28: 2113 | D28: CHV OKC/LUBB | E28: Mark Gilbert | F28: 21131131 | G28: CHV OKC SOUTH | H28: Steve Walenczak | I28: 116606 | J28: BRAD FENTON MOTORS OF ARDMORE, | K28: ARDMORE | L28: OK | M28: Cruze | N28: 0 | S28: 344.7 | V28: 22.98 | X28: 2113 - CHV OKC/LUBB | Y28: 0
A29: 20 | B29: South Central Region | C29: 2113 | D29: CHV OKC/LUBB | E29: Mark Gilbert | F29: 21131131 | G29: CHV OKC SOUTH | H29: Steve Walenczak | I29: 116606 | J29: BRAD FENTON MOTORS OF ARDMORE, | K29: ARDMORE | L29: OK | M29: Cruze NA D2 | N29: 100 | O29: 35.63 | P29: 0.3563 | Q29: 25 | R29: 8.9075 | S29: 629.47 | T29: 35.63 | U29: 0.0566 | V29: 37.03 | W29: 2.969166667 | X29: 2113 - CHV OKC/LUBB | Y29: 12
A30: 20 | B30: South Central Region | C30: 2113 | D30: CHV OKC/LUBB | E30: Mark Gilbert | F30: 21131131 | G30: CHV OKC SOUTH | H30: Steve Walenczak | I30: 116606 | J30: BRAD FENTON MOTORS OF ARDMORE, | K30: ARDMORE | L30: OK | M30: Impala | N30: 63.33 | Q30: 63.33 | S30: 1211.82 | T30: 331.11 | U30: 0.2732 | V30: 134.65 | W30: 41.38875 | X30: 2113 - CHV OKC/LUBB | Y30: 8
A31: 20 | B31: South Central Region | C31: 2113 | D31: CHV OKC/LUBB | E31: Mark Gilbert | F31: 21131131 | G31: CHV OKC SOUTH | H31: Steve Walenczak | I31: 116606 | J31: BRAD FENTON MOTORS OF ARDMORE, | K31: ARDMORE | L31: OK | M31: Malibu | S31: 57.47 | T31: 28.84 | U31: 0.5018 | V31: 28.74 | W31: 14.42 | X31: 2113 - CHV OKC/LUBB | Y31: 2
A32: 20 | B32: South Central Region | C32: 2113 | D32: CHV OKC/LUBB | E32: Mark Gilbert | F32: 21131131 | G32: CHV OKC SOUTH | H32: Steve Walenczak | I32: 116606 | J32: BRAD FENTON MOTORS OF ARDMORE, | K32: ARDMORE | L32: OK | M32: Malibu E2SC | N32: 260.88 | O32: 17.24 | P32: 0.0661 | Q32: 86.96 | R32: 17.24 | S32: 1927.77 | T32: 108.24 | U32: 0.0561 | V32: 91.8 | W32: 9.84 | X32: 2113 - CHV OKC/LUBB | Y32: 11
A33: 20 | B33: South Central Region | C33: 2113 | D33: CHV OKC/LUBB | E33: Mark Gilbert | F33: 21131131 | G33: CHV OKC SOUTH | H33: Steve Walenczak | I33: 116606 | J33: BRAD FENTON MOTORS OF ARDMORE, | K33: ARDMORE | L33: OK | M33: Sonic | N33: 170.46 | O33: 3.64 | P33: 0.0214 | Q33: 56.82 | R33: 3.64 | S33: 1141.41 | T33: 71.14 | U33: 0.0623 | V33: 49.63 | W33: 3.557 | X33: 2113 - CHV OKC/LUBB | Y33: 20
A34: 20 | B34: South Central Region | C34: 2113 | D34: CHV OKC/LUBB | E34: Mark Gilbert | F34: 21131131 | G34: CHV OKC SOUTH | H34: Steve Walenczak | I34: 116606 | J34: BRAD FENTON MOTORS OF ARDMORE, | K34: ARDMORE | L34: OK | M34: Spark | N34: 0 | S34: 161.74 | T34: 15.27 | U34: 0.0944 | V34: 80.87 | W34: 3.8175 | X34: 2113 - CHV OKC/LUBB | Y34: 4
A35: 20 | B35: South Central Region | C35: 2113 | D35: CHV OKC/LUBB | E35: Mark Gilbert | F35: 21131131 | G35: CHV OKC SOUTH | H35: Steve Walenczak | I35: 116606 | J35: BRAD FENTON MOTORS OF ARDMORE, | K35: ARDMORE | L35: OK | M35: Spark M2 | N35: 50.54 | O35: 191.25 | P35: 3.7841 | Q35: 25.27 | R35: 191.25 | S35: 531.01 | T35: 191.25 | U35: 0.3602 | V35: 35.4 | W35: 38.25 | X35: 2113 - CHV OKC/LUBB | Y35: 5
A36: 20 | B36: South Central Region | C36: 2113 | D36: CHV OKC/LUBB | E36: Mark Gilbert | F36: 21131131 | G36: CHV OKC SOUTH | H36: Steve Walenczak | I36: 116606 | J36: BRAD FENTON MOTORS OF ARDMORE, | K36: ARDMORE | L36: OK | M36: Colorado | N36: 1379.32 | Q36: 689.66 | S36: 9859.27 | T36: 2140.5 | U36: 0.2171 | V36: 704.23 | W36: 214.05 | X36: 2113 - CHV OKC/LUBB | Y36: 10
A37: 20 | B37: South Central Region | C37: 2113 | D37: CHV OKC/LUBB | E37: Mark Gilbert | F37: 21131131 | G37: CHV OKC SOUTH | H37: Steve Walenczak | I37: 116606 | J37: BRAD FENTON MOTORS OF ARDMORE, | K37: ARDMORE | L37: OK | M37: Equinox | N37: 355.56 | O37: 1170 | P37: 3.2906 | Q37: 177.78 | S37: 3106.86 | T37: 1448.59 | U37: 0.4663 | V37: 155.34 | W37: 103.4707143 | X37: 2113 - CHV OKC/LUBB | Y37: 14
A38: 20 | B38: South Central Region | C38: 2113 | D38: CHV OKC/LUBB | E38: Mark Gilbert | F38: 21131131 | G38: CHV OKC SOUTH | H38: Steve Walenczak | I38: 116606 | J38: BRAD FENTON MOTORS OF ARDMORE, | K38: ARDMORE | L38: OK | M38: Express | N38: 0 | S38: 113.64 | V38: 113.64 | X38: 2113 - CHV OKC/LUBB | Y38: 0
A39: 20 | B39: South Central Region | C39: 2113 | D39: CHV OKC/LUBB | E39: Mark Gilbert | F39: 21131131 | G39: CHV OKC SOUTH | H39: Steve Walenczak | I39: 116606 | J39: BRAD FENTON MOTORS OF ARDMORE, | K39: ARDMORE | L39: OK | M39: Silverado K2XX HD | N39: 2823.52 | O39: 2164.5 | P39: 0.7666 | Q39: 705.88 | R39: 360.75 | S39: 29558.58 | T39: 4721.81 | U39: 0.1597 | V39: 671.79 | W39: 363.2161538 | X39: 2113 - CHV OKC/LUBB | Y39: 13
A40: 20 | B40: South Central Region | C40: 2113 | D40: CHV OKC/LUBB | E40: Mark Gilbert | F40: 21131131 | G40: CHV OKC SOUTH | H40: Steve Walenczak | I40: 116606 | J40: BRAD FENTON MOTORS OF ARDMORE, | K40: ARDMORE | L40: OK | M40: Silverado K2XX LD | N40: 6170.78 | O40: 6299.15 | P40: 1.0208 | Q40: 560.98 | R40: 1049.858333 | S40: 57668.3 | T40: 23428.91 | U40: 0.4063 | V40: 544.04 | W40: 442.0549057 | X40: 2113 - CHV OKC/LUBB | Y40: 53
A41: 20 | B41: South Central Region | C41: 2113 | D41: CHV OKC/LUBB | E41: Mark Gilbert | F41: 21131131 | G41: CHV OKC SOUTH | H41: Steve Walenczak | I41: 116606 | J41: BRAD FENTON MOTORS OF ARDMORE, | K41: ARDMORE | L41: OK | M41: Suburban K2XX | N41: 453.33 | O41: 318.66 | P41: 0.7029 | Q41: 453.33 | R41: 318.66 | S41: 3403.55 | T41: 3494.47 | U41: 1.0267 | V41: 425.44 | W41: 499.21 | X41: 2113 - CHV OKC/LUBB | Y41: 7
A42: 20 | B42: South Central Region | C42: 2113 | D42: CHV OKC/LUBB | E42: Mark Gilbert | F42: 21131131 | G42: CHV OKC SOUTH | H42: Steve Walenczak | I42: 116606 | J42: BRAD FENTON MOTORS OF ARDMORE, | K42: ARDMORE | L42: OK | M42: Tahoe K2XX | N42: 1269.99 | O42: 1908.58 | P42: 1.5028 | Q42: 423.33 | R42: 1908.58 | S42: 7465.24 | T42: 5374.52 | U42: 0.7199 | V42: 392.91 | W42: 383.8942857 | X42: 2113 - CHV OKC/LUBB | Y42: 14
A43: 20 | B43: South Central Region | C43: 2113 | D43: CHV OKC/LUBB | E43: Mark Gilbert | F43: 21131131 | G43: CHV OKC SOUTH | H43: Steve Walenczak | I43: 116606 | J43: BRAD FENTON MOTORS OF ARDMORE, | K43: ARDMORE | L43: OK | M43: Traverse | N43: 321.84 | O43: 221.89 | P43: 0.6894 | Q43: 321.84 | R43: 221.89 | S43: 3120.17 | T43: 4753.55 | U43: 1.5235 | V43: 222.87 | W43: 528.1722222 | X43: 2113 - CHV OKC/LUBB | Y43: 9
A44: 20 | B44: South Central Region | C44: 2113 | D44: CHV OKC/LUBB | E44: Mark Gilbert | F44: 21131131 | G44: CHV OKC SOUTH | H44: Steve Walenczak | I44: 116606 | J44: BRAD FENTON MOTORS OF ARDMORE, | K44: ARDMORE | L44: OK | M44: Trax | N44: 73.12 | O44: 5.09 | P44: 0.0696 | Q44: 73.12 | R44: 5.09 | S44: 1106.34 | T44: 98.84 | U44: 0.0893 | V44: 85.1 | W44: 12.355 | X44: 2113 - CHV OKC/LUBB | Y44: 8
A45: 20 | B45: South Central Region | C45: 2113 | D45: CHV OKC/LUBB | E45: Mark Gilbert | F45: 21131131 | G45: CHV OKC SOUTH | H45: Steve Walenczak | I45: 116606 | J45: BRAD FENTON MOTORS OF ARDMORE, | K45: ARDMORE | L45: OK | M45: ATS | N45: 159.34 | O45: 42.67 | P45: 0.2678 | Q45: 159.34 | R45: 21.335 | S45: 1139.6 | T45: 42.67 | U45: 0.0374 | V45: 189.93 | W45: 10.6675 | X45: 2113 - CHV OKC/LUBB | Y45: 4
A46: 20 | B46: South Central Region | C46: 2113 | D46: CHV OKC/LUBB | E46: Mark Gilbert | F46: 21131131 | G46: CHV OKC SOUTH | H46: Steve Walenczak | I46: 116606 | J46: BRAD FENTON MOTORS OF ARDMORE, | K46: ARDMORE | L46: OK | M46: CT6 | N46: 241.94 | Q46: 241.94 | S46: 518.54 | V46: 259.27 | X46: 2113 - CHV OKC/LUBB | Y46: 0
A47: 20 | B47: South Central Region | C47: 2113 | D47: CHV OKC/LUBB | E47: Mark Gilbert | F47: 21131131 | G47: CHV OKC SOUTH | H47: Steve Walenczak | I47: 116606 | J47: BRAD FENTON MOTORS OF ARDMORE, | K47: ARDMORE | L47: OK | M47: CTS A1LL | N47: 0 | S47: 997.41 | T47: 145.22 | U47: 0.1456 | V47: 166.24 | W47: 48.40666667 | X47: 2113 - CHV OKC/LUBB | Y47: 3
A48: 20 | B48: South Central Region | C48: 2113 | D48: CHV OKC/LUBB | E48: Mark Gilbert | F48: 21131131 | G48: CHV OKC SOUTH | H48: Steve Walenczak | I48: 116606 | J48: BRAD FENTON MOTORS OF ARDMORE, | K48: ARDMORE | L48: OK | M48: XT5 | N48: 241.94 | O48: 1993.37 | P48: 8.2391 | Q48: 241.94 | R48: 996.685 | S48: 842.64 | T48: 4088.05 | U48: 4.8515 | V48: 210.66 | W48: 454.2277778 | X48: 2113 - CHV OKC/LUBB | Y48: 9
A49: 20 | B49: South Central Region | C49: 2113 | D49: CHV OKC/LUBB | E49: Mark Gilbert | F49: 21131131 | G49: CHV OKC SOUTH | H49: Steve Walenczak | I49: 116606 | J49: BRAD FENTON MOTORS OF ARDMORE, | K49: ARDMORE | L49: OK | M49: Escalade ESV K2XX | N49: 422.83 | O49: 236.68 | P49: 0.5598 | Q49: 422.83 | S49: 422.83 | T49: 536.78 | U49: 1.2695 | V49: 422.83 | W49: 178.9266667 | X49: 2113 - CHV OKC/LUBB | Y49: 3
A50: 20 | B50: South Central Region | C50: 2113 | D50: CHV OKC/LUBB | E50: Mark Gilbert | F50: 21131131 | G50: CHV OKC SOUTH | H50: Steve Walenczak | I50: 116606 | J50: BRAD FENTON MOTORS OF ARDMORE, | K50: ARDMORE | L50: OK | M50: Escalade K2XX | N50: 0 | O50: 566.68 | R50: 566.68 | S50: 1309.78 | T50: 1269.57 | U50: 0.9693 | V50: 436.59 | W50: 253.914 | X50: 2113 - CHV OKC/LUBB | Y50: 5
A51: 20 | B51: South Central Region | C51: 2113 | D51: CHV OKC/LUBB | E51: Mark Gilbert | F51: 21131131 | G51: CHV OKC SOUTH | H51: Steve Walenczak | I51: 116606 | J51: BRAD FENTON MOTORS OF ARDMORE, | K51: ARDMORE | L51: OK | M51: SRX | N51: 0 | S51: 641.3 | T51: 212.8 | U51: 0.3318 | V51: 160.33 | W51: 70.93333333 | X51: 2113 - CHV OKC/LUBB | Y51: 3
A52: 20 | B52: South Central Region | C52: 2113 | D52: CHV OKC/LUBB | E52: Mark Gilbert | F52: 21131135 | G52: CHVSA OKC | H52: Brian Burnette | I52: 112428 | J52: TISHOMINGO CHEVROLET, INC. | K52: TISHOMINGO | L52: OK | M52: Camaro A1BC | N52: 0 | S52: 208.79 | V52: 208.79 | X52: 2113 - CHV OKC/LUBB | Y52: 0
A53: 20 | B53: South Central Region | C53: 2113 | D53: CHV OKC/LUBB | E53: Mark Gilbert | F53: 21131135 | G53: CHVSA OKC | H53: Brian Burnette | I53: 112428 | J53: TISHOMINGO CHEVROLET, INC. | K53: TISHOMINGO | L53: OK | M53: Malibu E2SC | N53: 0 | S53: 224.4 | V53: 74.8 | X53: 2113 - CHV OKC/LUBB | Y53: 0
A54: 20 | B54: South Central Region | C54: 2113 | D54: CHV OKC/LUBB | E54: Mark Gilbert | F54: 21131135 | G54: CHVSA OKC | H54: Brian Burnette | I54: 112428 | J54: TISHOMINGO CHEVROLET, INC. | K54: TISHOMINGO | L54: OK | M54: Sonic | N54: 0 | S54: 108.28 | V54: 54.14 | X54: 2113 - CHV OKC/LUBB | Y54: 0
A55: 20 | B55: South Central Region | C55: 2113 | D55: CHV OKC/LUBB | E55: Mark Gilbert | F55: 21131135 | G55: CHVSA OKC | H55: Brian Burnette | I55: 112428 | J55: TISHOMINGO CHEVROLET, INC. | K55: TISHOMINGO | L55: OK | M55: Colorado | N55: 689.66 | Q55: 689.66 | S55: 5501.86 | T55: 981.58 | U55: 0.1784 | V55: 687.73 | W55: 245.395 | X55: 2113 - CHV OKC/LUBB | Y55: 4
A56: 20 | B56: South Central Region | C56: 2113 | D56: CHV OKC/LUBB | E56: Mark Gilbert | F56: 21131135 | G56: CHVSA OKC | H56: Brian Burnette | I56: 112428 | J56: TISHOMINGO CHEVROLET, INC. | K56: TISHOMINGO | L56: OK | M56: Equinox | N56: 177.78 | Q56: 177.78 | S56: 467.62 | T56: 101.25 | U56: 0.2165 | V56: 155.87 | W56: 20.25 | X56: 2113 - CHV OKC/LUBB | Y56: 5
A57: 20 | B57: South Central Region | C57: 2113 | D57: CHV OKC/LUBB | E57: Mark Gilbert | F57: 21131135 | G57: CHVSA OKC | H57: Brian Burnette | I57: 112428 | J57: TISHOMINGO CHEVROLET, INC. | K57: TISHOMINGO | L57: OK | M57: Silverado K2XX HD | N57: 705.88 | Q57: 705.88 | S57: 6086.1 | T57: 1458.13 | U57: 0.2396 | V57: 676.23 | W57: 243.0216667 | X57: 2113 - CHV OKC/LUBB | Y57: 6
A58: 20 | B58: South Central Region | C58: 2113 | D58: CHV OKC/LUBB | E58: Mark Gilbert | F58: 21131135 | G58: CHVSA OKC | H58: Brian Burnette | I58: 112428 | J58: TISHOMINGO CHEVROLET, INC. | K58: TISHOMINGO | L58: OK | M58: Silverado K2XX LD | N58: 1682.94 | O58: 74.03 | P58: 0.044 | Q58: 560.98 | R58: 10.57571429 | S58: 8846.51 | T58: 4829.39 | U58: 0.5459 | V58: 552.91 | W58: 268.2994444 | X58: 2113 - CHV OKC/LUBB | Y58: 18
A59: 20 | B59: South Central Region | C59: 2113 | D59: CHV OKC/LUBB | E59: Mark Gilbert | F59: 21131135 | G59: CHVSA OKC | H59: Brian Burnette | I59: 112428 | J59: TISHOMINGO CHEVROLET, INC. | K59: TISHOMINGO | L59: OK | M59: Tahoe K2XX | N59: 423.33 | O59: 10.58 | P59: 0.025 | Q59: 423.33 | R59: 10.58 | S59: 1636.56 | T59: 484.59 | U59: 0.2961 | V59: 409.14 | W59: 121.1475 | X59: 2113 - CHV OKC/LUBB | Y59: 4
A60: 20 | B60: South Central Region | C60: 2113 | D60: CHV OKC/LUBB | E60: Mark Gilbert | F60: 21131135 | G60: CHVSA OKC | H60: Brian Burnette | I60: 112428 | J60: TISHOMINGO CHEVROLET, INC. | K60: TISHOMINGO | L60: OK | M60: Traverse | N60: 0 | S60: 629.8 | V60: 209.93 | X60: 2113 - CHV OKC/LUBB | Y60: 0
A61: 20 | B61: South Central Region | C61: 2113 | D61: CHV OKC/LUBB | E61: Mark Gilbert | F61: 21131135 | G61: CHVSA OKC | H61: Brian Burnette | I61: 173040 | J61: MADILL CHEVROLET-BUICK, INC. | K61: MADILL | L61: OK | M61: Camaro A1BC | N61: 384.62 | Q61: 384.62 | S61: 593.41 | V61: 296.71 | X61: 2113 - CHV OKC/LUBB | Y61: 0
A62: 20 | B62: South Central Region | C62: 2113 | D62: CHV OKC/LUBB | E62: Mark Gilbert | F62: 21131135 | G62: CHVSA OKC | H62: Brian Burnette | I62: 173040 | J62: MADILL CHEVROLET-BUICK, INC. | K62: MADILL | L62: OK | M62: Cruze | N62: 0 | S62: 46.5 | V62: 15.5 | X62: 2113 - CHV OKC/LUBB | Y62: 0
A63: 20 | B63: South Central Region | C63: 2113 | D63: CHV OKC/LUBB | E63: Mark Gilbert | F63: 21131135 | G63: CHVSA OKC | H63: Brian Burnette | I63: 173040 | J63: MADILL CHEVROLET-BUICK, INC. | K63: MADILL | L63: OK | M63: Cruze NA D2 | N63: 25 | Q63: 25 | S63: 121.39 | V63: 24.28 | X63: 2113 - CHV OKC/LUBB | Y63: 0
A64: 20 | B64: South Central Region | C64: 2113 | D64: CHV OKC/LUBB | E64: Mark Gilbert | F64: 21131135 | G64: CHVSA OKC | H64: Brian Burnette | I64: 173040 | J64: MADILL CHEVROLET-BUICK, INC. | K64: MADILL | L64: OK | M64: Impala | N64: 0 | S64: 538.75 | T64: 469.86 | U64: 0.8721 | V64: 179.58 | W64: 117.465 | X64: 2113 - CHV OKC/LUBB | Y64: 4
A65: 20 | B65: South Central Region | C65: 2113 | D65: CHV OKC/LUBB | E65: Mark Gilbert | F65: 21131135 | G65: CHVSA OKC | H65: Brian Burnette | I65: 173040 | J65: MADILL CHEVROLET-BUICK, INC. | K65: MADILL | L65: OK | M65: Malibu | S65: 22.99 | T65: 145.46 | U65: 6.3271 | V65: 22.99 | W65: 72.73 | X65: 2113 - CHV OKC/LUBB | Y65: 2
A66: 20 | B66: South Central Region | C66: 2113 | D66: CHV OKC/LUBB | E66: Mark Gilbert | F66: 21131135 | G66: CHVSA OKC | H66: Brian Burnette | I66: 173040 | J66: MADILL CHEVROLET-BUICK, INC. | K66: MADILL | L66: OK | M66: Malibu E2SC | N66: 86.96 | Q66: 86.96 | S66: 409.19 | V66: 81.84 | X66: 2113 - CHV OKC/LUBB | Y66: 0
A67: 20 | B67: South Central Region | C67: 2113 | D67: CHV OKC/LUBB | E67: Mark Gilbert | F67: 21131135 | G67: CHVSA OKC | H67: Brian Burnette | I67: 173040 | J67: MADILL CHEVROLET-BUICK, INC. | K67: MADILL | L67: OK | M67: Sonic | N67: 56.82 | Q67: 56.82 | S67: 392.22 | V67: 49.03 | X67: =CONCATENATE(C67," - ",D67) -> 2113 - CHV OKC/LUBB | Y67: =IFERROR((IF($S67=0,0,$T67/$W67)),0) -> 0
A68: 20 | B68: South Central Region | C68: 2113 | D68: CHV OKC/LUBB | E68: Mark Gilbert | F68: 21131135 | G68: CHVSA OKC | H68: Brian Burnette | I68: 173040 | J68: MADILL CHEVROLET-BUICK, INC. | K68: MADILL | L68: OK | M68: Colorado | N68: 0 | S68: 4223.31 | T68: 1458.75 | U68: 0.3454 | V68: 703.89 | W68: 291.75 | X68: 2113 - CHV OKC/LUBB | Y68: 5
A69: 20 | B69: South Central Region | C69: 2113 | D69: CHV OKC/LUBB | E69: Mark Gilbert | F69: 21131135 | G69: CHVSA OKC | H69: Brian Burnette | I69: 173040 | J69: MADILL CHEVROLET-BUICK, INC. | K69: MADILL | L69: OK | M69: Equinox | N69: 177.78 | Q69: 177.78 | S69: 1421.04 | T69: 338.47 | U69: 0.2382 | V69: 157.89 | W69: 56.41166667 | X69: 2113 - CHV OKC/LUBB | Y69: 6
A70: 20 | B70: South Central Region | C70: 2113 | D70: CHV OKC/LUBB | E70: Mark Gilbert | F70: 21131135 | G70: CHVSA OKC | H70: Brian Burnette | I70: 173040 | J70: MADILL CHEVROLET-BUICK, INC. | K70: MADILL | L70: OK | M70: Silverado K2XX HD | N70: 705.88 | O70: 755.26 | P70: 1.07 | Q70: 705.88 | S70: 5377.41 | T70: 2505.84 | U70: 0.466 | V70: 672.18 | W70: 501.168 | X70: 2113 - CHV OKC/LUBB | Y70: 5
A71: 20 | B71: South Central Region | C71: 2113 | D71: CHV OKC/LUBB | E71: Mark Gilbert | F71: 21131135 | G71: CHVSA OKC | H71: Brian Burnette | I71: 173040 | J71: MADILL CHEVROLET-BUICK, INC. | K71: MADILL | L71: OK | M71: Silverado K2XX LD | N71: 1121.96 | O71: 251.25 | P71: 0.2239 | Q71: 560.98 | R71: 251.25 | S71: 15228.84 | T71: 1855.96 | U71: 0.1219 | V71: 543.89 | W71: 154.6633333 | X71: 2113 - CHV OKC/LUBB | Y71: 12
A72: 20 | B72: South Central Region | C72: 2113 | D72: CHV OKC/LUBB | E72: Mark Gilbert | F72: 21131135 | G72: CHVSA OKC | H72: Brian Burnette | I72: 173040 | J72: MADILL CHEVROLET-BUICK, INC. | K72: MADILL | L72: OK | M72: Tahoe K2XX | N72: 423.33 | Q72: 423.33 | S72: 3136.56 | T72: 339.86 | U72: 0.1084 | V72: 392.07 | W72: 169.93 | X72: 2113 - CHV OKC/LUBB | Y72: 2
A73: 20 | B73: South Central Region | C73: 2113 | D73: CHV OKC/LUBB | E73: Mark Gilbert | F73: 21131135 | G73: CHVSA OKC | H73: Brian Burnette | I73: 173040 | J73: MADILL CHEVROLET-BUICK, INC. | K73: MADILL | L73: OK | M73: Trax | N73: 0 | S73: 355.4 | V73: 88.85 | X73: 2113 - CHV OKC/LUBB | Y73: 0
A74: 20 | B74: South Central Region | C74: 2113 | D74: CHV OKC/LUBB | E74: Mark Gilbert | F74: 21131135 | G74: CHVSA OKC | H74: Brian Burnette | I74: 173040 | J74: MADILL CHEVROLET-BUICK, INC. | K74: MADILL | L74: OK | M74: LaCrosse | N74: 28.05 | Q74: 28.05 | S74: 768.79 | T74: 21.88 | U74: 0.0285 | V74: 96.1 | W74: 10.94 | X74: 2113 - CHV OKC/LUBB | Y74: 2
A75: 20 | B75: South Central Region | C75: 2113 | D75: CHV OKC/LUBB | E75: Mark Gilbert | F75: 21131135 | G75: CHVSA OKC | H75: Brian Burnette | I75: 173040 | J75: MADILL CHEVROLET-BUICK, INC. | K75: MADILL | L75: OK | M75: Enclave | N75: 247.13 | Q75: 247.13 | S75: 1920.14 | T75: 2691.95 | U75: 1.402 | V75: 240.02 | W75: 2691.95 | X75: 2113 - CHV OKC/LUBB | Y75: 1
A76: 20 | B76: South Central Region | C76: 2113 | D76: CHV OKC/LUBB | E76: Mark Gilbert | F76: 21131135 | G76: CHVSA OKC | H76: Brian Burnette | I76: 173040 | J76: MADILL CHEVROLET-BUICK, INC. | K76: MADILL | L76: OK | M76: Encore | N76: 55.56 | Q76: 55.56 | S76: 590.04 | V76: 73.76 | X76: 2113 - CHV OKC/LUBB | Y76: 0
A77: 20 | B77: South Central Region | C77: 2114 | D77: CHV MEMPHIS | E77: Cliff Forsythe | F77: 21141144 | G77: CHV LITTLE ROCK | H77: Herman Smith, Jr. | I77: 114147 | J77: YORK GARY AUTOPLEX, INC. | K77: NASHVILLE | L77: AR | M77: Cruze | N77: 0 | S77: 22.83 | V77: 22.83 | X77: 2114 - CHV MEMPHIS | Y77: 0
A78: 20 | B78: South Central Region | C78: 2114 | D78: CHV MEMPHIS | E78: Cliff Forsythe | F78: 21141144 | G78: CHV LITTLE ROCK | H78: Herman Smith, Jr. | I78: 114147 | J78: YORK GARY AUTOPLEX, INC. | K78: NASHVILLE | L78: AR | M78: Impala | N78: 0 | S78: 177.78 | T78: 39.41 | U78: 0.2217 | V78: 177.78 | W78: 39.41 | X78: 2114 - CHV MEMPHIS | Y78: 1
A79: 20 | B79: South Central Region | C79: 2114 | D79: CHV MEMPHIS | E79: Cliff Forsythe | F79: 21141144 | G79: CHV LITTLE ROCK | H79: Herman Smith, Jr. | I79: 114147 | J79: YORK GARY AUTOPLEX, INC. | K79: NASHVILLE | L79: AR | M79: Malibu E2SC | N79: 86.96 | Q79: 86.96 | S79: 483.57 | V79: 80.6 | X79: 2114 - CHV MEMPHIS | Y79: 0
A80: 20 | B80: South Central Region | C80: 2114 | D80: CHV MEMPHIS | E80: Cliff Forsythe | F80: 21141144 | G80: CHV LITTLE ROCK | H80: Herman Smith, Jr. | I80: 114147 | J80: YORK GARY AUTOPLEX, INC. | K80: NASHVILLE | L80: AR | M80: Spark M2 | N80: 25.27 | Q80: 25.27 | S80: 117.22 | V80: 58.61 | X80: 2114 - CHV MEMPHIS | Y80: 0
A81: 20 | B81: South Central Region | C81: 2114 | D81: CHV MEMPHIS | E81: Cliff Forsythe | F81: 21141144 | G81: CHV LITTLE ROCK | H81: Herman Smith, Jr. | I81: 114147 | J81: YORK GARY AUTOPLEX, INC. | K81: NASHVILLE | L81: AR | M81: Colorado | N81: 0 | S81: 3454.08 | T81: 1602.28 | U81: 0.4639 | V81: 690.82 | W81: 400.57 | X81: 2114 - CHV MEMPHIS | Y81: 4
A82: 20 | B82: South Central Region | C82: 2114 | D82: CHV MEMPHIS | E82: Cliff Forsythe | F82: 21141144 | G82: CHV LITTLE ROCK | H82: Herman Smith, Jr. | I82: 114147 | J82: YORK GARY AUTOPLEX, INC. | K82: NASHVILLE | L82: AR | M82: Equinox | N82: 177.78 | Q82: 177.78 | S82: 1420.88 | T82: 75 | U82: 0.0528 | V82: 157.88 | W82: 7.5 | X82: 2114 - CHV MEMPHIS | Y82: 10
A83: 20 | B83: South Central Region | C83: 2114 | D83: CHV MEMPHIS | E83: Cliff Forsythe | F83: 21141144 | G83: CHV LITTLE ROCK | H83: Herman Smith, Jr. | I83: 114147 | J83: YORK GARY AUTOPLEX, INC. | K83: NASHVILLE | L83: AR | M83: Silverado K2XX HD | N83: 2117.64 | O83: 3314.29 | P83: 1.5651 | Q83: 705.88 | R83: 331.429 | S83: 18460.63 | T83: 12758.67 | U83: 0.6911 | V83: 683.73 | W83: 411.57 | X83: 2114 - CHV MEMPHIS | Y83: 31
A84: 20 | B84: South Central Region | C84: 2114 | D84: CHV MEMPHIS | E84: Cliff Forsythe | F84: 21141144 | G84: CHV LITTLE ROCK | H84: Herman Smith, Jr. | I84: 114147 | J84: YORK GARY AUTOPLEX, INC. | K84: NASHVILLE | L84: AR | M84: Silverado K2XX LD | N84: 3365.88 | O84: 4981.53 | P84: 1.48 | Q84: 560.98 | R84: 553.5033333 | S84: 27302.31 | T84: 26708.78 | U84: 0.9783 | V84: 546.05 | W84: 556.4329167 | X84: 2114 - CHV MEMPHIS | Y84: 48
A85: 20 | B85: South Central Region | C85: 2114 | D85: CHV MEMPHIS | E85: Cliff Forsythe | F85: 21141144 | G85: CHV LITTLE ROCK | H85: Herman Smith, Jr. | I85: 114147 | J85: YORK GARY AUTOPLEX, INC. | K85: NASHVILLE | L85: AR | M85: Suburban K2XX | N85: 453.33 | O85: -4.3 | P85: -0.0095 | Q85: 453.33 | R85: -4.3 | S85: 2992.44 | T85: 7.61 | U85: 0.0025 | V85: 427.49 | W85: 1.522 | X85: 2114 - CHV MEMPHIS | Y85: 5
A86: 20 | B86: South Central Region | C86: 2114 | D86: CHV MEMPHIS | E86: Cliff Forsythe | F86: 21141144 | G86: CHV LITTLE ROCK | H86: Herman Smith, Jr. | I86: 114147 | J86: YORK GARY AUTOPLEX, INC. | K86: NASHVILLE | L86: AR | M86: Tahoe K2XX | N86: 846.66 | O86: 137.65 | P86: 0.1626 | Q86: 423.33 | R86: 68.825 | S86: 3187.67 | T86: 282.12 | U86: 0.0885 | V86: 398.46 | W86: 35.265 | X86: 2114 - CHV MEMPHIS | Y86: 8
A87: 20 | B87: South Central Region | C87: 2114 | D87: CHV MEMPHIS | E87: Cliff Forsythe | F87: 21141144 | G87: CHV LITTLE ROCK | H87: Herman Smith, Jr. | I87: 114147 | J87: YORK GARY AUTOPLEX, INC. | K87: NASHVILLE | L87: AR | M87: Traverse | N87: 0 | O87: -24.32 | R87: -12.16 | S87: 111.11 | T87: 224.73 | U87: 2.0226 | V87: 111.11 | W87: 74.91 | X87: 2114 - CHV MEMPHIS | Y87: 3
A88: 20 | B88: South Central Region | C88: 2114 | D88: CHV MEMPHIS | E88: Cliff Forsythe | F88: 21141144 | G88: CHV LITTLE ROCK | H88: Herman Smith, Jr. | I88: 114147 | J88: YORK GARY AUTOPLEX, INC. | K88: NASHVILLE | L88: AR | M88: Trax | N88: 73.12 | Q88: 73.12 | S88: 428.52 | V88: 85.7 | X88: 2114 - CHV MEMPHIS | Y88: 0
A89: 20 | B89: South Central Region | C89: 2114 | D89: CHV MEMPHIS | E89: Cliff Forsythe | F89: 21141144 | G89: CHV LITTLE ROCK | H89: Herman Smith, Jr. | I89: 114147 | J89: YORK GARY AUTOPLEX, INC. | K89: NASHVILLE | L89: AR | M89: LaCrosse | N89: 0 | S89: 690.19 | T89: 236.25 | U89: 0.3423 | V89: 115.03 | X89: 2114 - CHV MEMPHIS | Y89: 0
A90: 20 | B90: South Central Region | C90: 2114 | D90: CHV MEMPHIS | E90: Cliff Forsythe | F90: 21141144 | G90: CHV LITTLE ROCK | H90: Herman Smith, Jr. | I90: 114147 | J90: YORK GARY AUTOPLEX, INC. | K90: NASHVILLE | L90: AR | M90: Enclave | N90: 247.13 | O90: -24.32 | P90: -0.0984 | Q90: 247.13 | R90: -24.32 | S90: 1920.14 | T90: 4410.82 | U90: 2.2971 | V90: 240.02 | W90: 735.1366667 | X90: 2114 - CHV MEMPHIS | Y90: 6
A91: 20 | B91: South Central Region | C91: 2114 | D91: CHV MEMPHIS | E91: Cliff Forsythe | F91: 21141144 | G91: CHV LITTLE ROCK | H91: Herman Smith, Jr. | I91: 114147 | J91: YORK GARY AUTOPLEX, INC. | K91: NASHVILLE | L91: AR | M91: Encore | N91: 111.12 | Q91: 55.56 | S91: 713.73 | V91: 71.37 | X91: 2114 - CHV MEMPHIS | Y91: 0
A92: 20 | B92: South Central Region | C92: 2114 | D92: CHV MEMPHIS | E92: Cliff Forsythe | F92: 21141144 | G92: CHV LITTLE ROCK | H92: Herman Smith, Jr. | I92: 114147 | J92: YORK GARY AUTOPLEX, INC. | K92: NASHVILLE | L92: AR | M92: Acadia | N92: 148.81 | Q92: 148.81 | S92: 2103.43 | T92: 339.53 | U92: 0.1614 | V92: 131.46 | W92: 84.8825 | X92: 2114 - CHV MEMPHIS | Y92: 4
A93: 20 | B93: South Central Region | C93: 2114 | D93: CHV MEMPHIS | E93: Cliff Forsythe | F93: 21141144 | G93: CHV LITTLE ROCK | H93: Herman Smith, Jr. | I93: 114147 | J93: YORK GARY AUTOPLEX, INC. | K93: NASHVILLE | L93: AR | M93: Canyon | N93: 952.94 | Q93: 476.47 | S93: 3396.3 | T93: 713.29 | U93: 0.21 | V93: 485.19 | W93: 356.645 | X93: 2114 - CHV MEMPHIS | Y93: 2
A94: 20 | B94: South Central Region | C94: 2114 | D94: CHV MEMPHIS | E94: Cliff Forsythe | F94: 21141144 | G94: CHV LITTLE ROCK | H94: Herman Smith, Jr. | I94: 114147 | J94: YORK GARY AUTOPLEX, INC. | K94: NASHVILLE | L94: AR | M94: Sierra K2XX HD | N94: 1454.54 | O94: 252.08 | P94: 0.1733 | Q94: 727.27 | R94: 252.08 | S94: 15795.09 | T94: 2939.73 | U94: 0.1861 | V94: 717.96 | W94: 734.9325 | X94: 2114 - CHV MEMPHIS | Y94: 4
A95: 20 | B95: South Central Region | C95: 2114 | D95: CHV MEMPHIS | E95: Cliff Forsythe | F95: 21141144 | G95: CHV LITTLE ROCK | H95: Herman Smith, Jr. | I95: 114147 | J95: YORK GARY AUTOPLEX, INC. | K95: NASHVILLE | L95: AR | M95: Sierra K2XX LD | N95: 3686.76 | O95: 990.82 | P95: 0.2688 | Q95: 614.46 | R95: 330.2733333 | S95: 50858.42 | T95: 5316.69 | U95: 0.1045 | V95: 535.35 | W95: 312.7464706 | X95: 2114 - CHV MEMPHIS | Y95: 17
A96: 20 | B96: South Central Region | C96: 2114 | D96: CHV MEMPHIS | E96: Cliff Forsythe | F96: 21141144 | G96: CHV LITTLE ROCK | H96: Herman Smith, Jr. | I96: 114147 | J96: YORK GARY AUTOPLEX, INC. | K96: NASHVILLE | L96: AR | M96: Terrain | N96: 0 | S96: 1855.11 | V96: 142.7 | X96: 2114 - CHV MEMPHIS | Y96: 0
A97: 20 | B97: South Central Region | C97: 2114 | D97: CHV MEMPHIS | E97: Cliff Forsythe | F97: 21141144 | G97: CHV LITTLE ROCK | H97: Herman Smith, Jr. | I97: 114147 | J97: YORK GARY AUTOPLEX, INC. | K97: NASHVILLE | L97: AR | M97: Yukon K2XX | N97: 1410 | O97: 56.25 | P97: 0.0399 | Q97: 470 | S97: 7700.98 | T97: 450 | U97: 0.0584 | V97: 427.83 | W97: 90 | X97: 2114 - CHV MEMPHIS | Y97: 5
A98: 20 | B98: South Central Region | C98: 2114 | D98: CHV MEMPHIS | E98: Cliff Forsythe | F98: 21141144 | G98: CHV LITTLE ROCK | H98: Herman Smith, Jr. | I98: 114147 | J98: YORK GARY AUTOPLEX, INC. | K98: NASHVILLE | L98: AR | M98: Yukon XL K2XX | N98: 560.44 | O98: -4.3 | P98: -0.0077 | Q98: 560.44 | R98: -4.3 | S98: 3950.32 | T98: 385.03 | U98: 0.0975 | V98: 493.79 | W98: 96.2575 | X98: 2114 - CHV MEMPHIS | Y98: 4
A99: 20 | B99: South Central Region | C99: 2114 | D99: CHV MEMPHIS | E99: Cliff Forsythe | F99: 21141144 | G99: CHV LITTLE ROCK | H99: Herman Smith, Jr. | I99: 216129 | J99: HOPE AUTO COMPANY CHEVROLET | K99: HOPE | L99: AR | M99: Camaro A1BC | N99: 384.62 | O99: 71.25 | P99: 0.1852 | Q99: 384.62 | S99: 593.41 | T99: 108.98 | U99: 0.1837 | V99: 296.71 | W99: 54.49 | X99: 2114 - CHV MEMPHIS | Y99: 2
A100: 20 | B100: South Central Region | C100: 2114 | D100: CHV MEMPHIS | E100: Cliff Forsythe | F100: 21141144 | G100: CHV LITTLE ROCK | H100: Herman Smith, Jr. | I100: 216129 | J100: HOPE AUTO COMPANY CHEVROLET | K100: HOPE | L100: AR | M100: Corvette | N100: 465.12 | Q100: 465.12 | S100: 465.12 | V100: 465.12 | X100: 2114 - CHV MEMPHIS | Y100: 0
A101: 20 | B101: South Central Region | C101: 2114 | D101: CHV MEMPHIS | E101: Cliff Forsythe | F101: 21141144 | G101: CHV LITTLE ROCK | H101: Herman Smith, Jr. | I101: 216129 | J101: HOPE AUTO COMPANY CHEVROLET | K101: HOPE | L101: AR | M101: Cruze | N101: 0 | S101: 124.7 | V101: 24.94 | X101: 2114 - CHV MEMPHIS | Y101: 0
A102: 20 | B102: South Central Region | C102: 2114 | D102: CHV MEMPHIS | E102: Cliff Forsythe | F102: 21141144 | G102: CHV LITTLE ROCK | H102: Herman Smith, Jr. | I102: 216129 | J102: HOPE AUTO COMPANY CHEVROLET | K102: HOPE | L102: AR | M102: Cruze NA D2 | N102: 25 | O102: 97.5 | P102: 3.9 | Q102: 25 | S102: 89.13 | T102: 97.5 | U102: 1.0939 | V102: 22.28 | X102: 2114 - CHV MEMPHIS | Y102: 0
A103: 20 | B103: South Central Region | C103: 2114 | D103: CHV MEMPHIS | E103: Cliff Forsythe | F103: 21141144 | G103: CHV LITTLE ROCK | H103: Herman Smith, Jr. | I103: 216129 | J103: HOPE AUTO COMPANY CHEVROLET | K103: HOPE | L103: AR | M103: Malibu | S103: 22.99 | V103: 22.99 | X103: 2114 - CHV MEMPHIS | Y103: 0
A104: 20 | B104: South Central Region | C104: 2114 | D104: CHV MEMPHIS | E104: Cliff Forsythe | F104: 21141144 | G104: CHV LITTLE ROCK | H104: Herman Smith, Jr. | I104: 216129 | J104: HOPE AUTO COMPANY CHEVROLET | K104: HOPE | L104: AR | M104: Malibu E2SC | N104: 86.96 | Q104: 86.96 | S104: 271.75 | T104: 90 | U104: 0.3312 | V104: 90.58 | W104: 90 | X104: 2114 - CHV MEMPHIS | Y104: 1
A105: 20 | B105: South Central Region | C105: 2114 | D105: CHV MEMPHIS | E105: Cliff Forsythe | F105: 21141144 | G105: CHV LITTLE ROCK | H105: Herman Smith, Jr. | I105: 216129 | J105: HOPE AUTO COMPANY CHEVROLET | K105: HOPE | L105: AR | M105: Sonic | N105: 0 | S105: 135.69 | V105: 45.23 | X105: 2114 - CHV MEMPHIS | Y105: 0
A106: 20 | B106: South Central Region | C106: 2114 | D106: CHV MEMPHIS | E106: Cliff Forsythe | F106: 21141144 | G106: CHV LITTLE ROCK | H106: Herman Smith, Jr. | I106: 216129 | J106: HOPE AUTO COMPANY CHEVROLET | K106: HOPE | L106: AR | M106: Spark M2 | N106: 25.27 | Q106: 25.27 | S106: 164.19 | T106: 37.5 | U106: 0.2284 | V106: 32.84 | X106: 2114 - CHV MEMPHIS | Y106: 0
A107: 20 | B107: South Central Region | C107: 2114 | D107: CHV MEMPHIS | E107: Cliff Forsythe | F107: 21141144 | G107: CHV LITTLE ROCK | H107: Herman Smith, Jr. | I107: 216129 | J107: HOPE AUTO COMPANY CHEVROLET | K107: HOPE | L107: AR | M107: Colorado | N107: 0 | S107: 2805.56 | T107: 105 | U107: 0.0374 | V107: 701.39 | W107: 105 | X107: 2114 - CHV MEMPHIS | Y107: 1
A108: 20 | B108: South Central Region | C108: 2114 | D108: CHV MEMPHIS | E108: Cliff Forsythe | F108: 21141144 | G108: CHV LITTLE ROCK | H108: Herman Smith, Jr. | I108: 216129 | J108: HOPE AUTO COMPANY CHEVROLET | K108: HOPE | L108: AR | M108: Equinox | N108: 177.78 | Q108: 177.78 | S108: 931.8 | T108: 866.75 | U108: 0.9302 | V108: 155.3 | W108: 144.4583333 | X108: 2114 - CHV MEMPHIS | Y108: 6
A109: 20 | B109: South Central Region | C109: 2114 | D109: CHV MEMPHIS | E109: Cliff Forsythe | F109: 21141144 | G109: CHV LITTLE ROCK | H109: Herman Smith, Jr. | I109: 216129 | J109: HOPE AUTO COMPANY CHEVROLET | K109: HOPE | L109: AR | M109: Silverado K2XX HD | N109: 705.88 | O109: 243.75 | P109: 0.3453 | Q109: 705.88 | R109: 121.875 | S109: 5377.41 | T109: 1600.59 | U109: 0.2977 | V109: 672.18 | W109: 400.1475 | X109: 2114 - CHV MEMPHIS | Y109: 4
A110: 20 | B110: South Central Region | C110: 2114 | D110: CHV MEMPHIS | E110: Cliff Forsythe | F110: 21141144 | G110: CHV LITTLE ROCK | H110: Herman Smith, Jr. | I110: 216129 | J110: HOPE AUTO COMPANY CHEVROLET | K110: HOPE | L110: AR | M110: Silverado K2XX LD | N110: 1682.94 | O110: 117.86 | P110: 0.07 | Q110: 560.98 | R110: 23.572 | S110: 16320.68 | T110: -147.41 | U110: -0.009 | V110: 544.02 | W110: -8.671176471 | X110: 2114 - CHV MEMPHIS | Y110: 17
A111: 20 | B111: South Central Region | C111: 2114 | D111: CHV MEMPHIS | E111: Cliff Forsythe | F111: 21141144 | G111: CHV LITTLE ROCK | H111: Herman Smith, Jr. | I111: 216129 | J111: HOPE AUTO COMPANY CHEVROLET | K111: HOPE | L111: AR | M111: Tahoe K2XX | N111: 423.33 | O111: 159.64 | P111: 0.3771 | Q111: 423.33 | R111: 79.82 | S111: 3136.56 | T111: 1411.64 | U111: 0.4501 | V111: 392.07 | W111: 235.2733333 | X111: 2114 - CHV MEMPHIS | Y111: 6
A112: 20 | B112: South Central Region | C112: 2114 | D112: CHV MEMPHIS | E112: Cliff Forsythe | F112: 21141144 | G112: CHV LITTLE ROCK | H112: Herman Smith, Jr. | I112: 216129 | J112: HOPE AUTO COMPANY CHEVROLET | K112: HOPE | L112: AR | M112: Traverse | N112: 0 | S112: 1301.74 | T112: 105 | U112: 0.0807 | V112: 216.96 | W112: 105 | X112: 2114 - CHV MEMPHIS | Y112: 1
A113: 20 | B113: South Central Region | C113: 2114 | D113: CHV MEMPHIS | E113: Cliff Forsythe | F113: 21141144 | G113: CHV LITTLE ROCK | H113: Herman Smith, Jr. | I113: 216129 | J113: HOPE AUTO COMPANY CHEVROLET | K113: HOPE | L113: AR | M113: LaCrosse | N113: 0 | S113: 403.8 | V113: 100.95 | X113: 2114 - CHV MEMPHIS | Y113: 0
A114: 20 | B114: South Central Region | C114: 2114 | D114: CHV MEMPHIS | E114: Cliff Forsythe | F114: 21141144 | G114: CHV LITTLE ROCK | H114: Herman Smith, Jr. | I114: 216129 | J114: HOPE AUTO COMPANY CHEVROLET | K114: HOPE | L114: AR | M114: Enclave | N114: 247.13 | Q114: 247.13 | S114: 1639.24 | T114: 57.18 | U114: 0.0349 | V114: 234.18 | W114: 14.295 | X114: 2114 - CHV MEMPHIS | Y114: 4
A115: 20 | B115: South Central Region | C115: 2114 | D115: CHV MEMPHIS | E115: Cliff Forsythe | F115: 21141144 | G115: CHV LITTLE ROCK | H115: Herman Smith, Jr. | I115: 216129 | J115: HOPE AUTO COMPANY CHEVROLET | K115: HOPE | L115: AR | M115: Encore | N115: 55.56 | Q115: 55.56 | S115: 590.04 | T115: 112.5 | U115: 0.1907 | V115: 73.76 | W115: 37.5 | X115: 2114 - CHV MEMPHIS | Y115: 3
A116: 20 | B116: South Central Region | C116: 2114 | D116: CHV MEMPHIS | E116: Cliff Forsythe | F116: 21141144 | G116: CHV LITTLE ROCK | H116: Herman Smith, Jr. | I116: 216129 | J116: HOPE AUTO COMPANY CHEVROLET | K116: HOPE | L116: AR | M116: Acadia | N116: 0 | S116: 880.53 | T116: 140.5 | U116: 0.1596 | V116: 125.79 | W116: 35.125 | X116: 2114 - CHV MEMPHIS | Y116: 4
A117: 20 | B117: South Central Region | C117: 2114 | D117: CHV MEMPHIS | E117: Cliff Forsythe | F117: 21141144 | G117: CHV LITTLE ROCK | H117: Herman Smith, Jr. | I117: 216129 | J117: HOPE AUTO COMPANY CHEVROLET | K117: HOPE | L117: AR | M117: Canyon | N117: 0 | S117: 1571.26 | T117: 135 | U117: 0.0859 | V117: 523.75 | X117: 2114 - CHV MEMPHIS | Y117: 0
A118: 20 | B118: South Central Region | C118: 2114 | D118: CHV MEMPHIS | E118: Cliff Forsythe | F118: 21141144 | G118: CHV LITTLE ROCK | H118: Herman Smith, Jr. | I118: 216129 | J118: HOPE AUTO COMPANY CHEVROLET | K118: HOPE | L118: AR | M118: Sierra K2XX HD | N118: 727.27 | O118: 243.75 | P118: 0.3352 | Q118: 727.27 | R118: 121.875 | S118: 5744.49 | T118: 1852.18 | U118: 0.3224 | V118: 718.06 | W118: 308.6966667 | X118: 2114 - CHV MEMPHIS | Y118: 6
A119: 20 | B119: South Central Region | C119: 2114 | D119: CHV MEMPHIS | E119: Cliff Forsythe | F119: 21141144 | G119: CHV LITTLE ROCK | H119: Herman Smith, Jr. | I119: 216129 | J119: HOPE AUTO COMPANY CHEVROLET | K119: HOPE | L119: AR | M119: Sierra K2XX LD | N119: 614.46 | Q119: 614.46 | S119: 15462.46 | T119: 3514.81 | U119: 0.2273 | V119: 533.19 | W119: 292.9008333 | X119: 2114 - CHV MEMPHIS | Y119: 12
A120: 20 | B120: South Central Region | C120: 2114 | D120: CHV MEMPHIS | E120: Cliff Forsythe | F120: 21141144 | G120: CHV LITTLE ROCK | H120: Herman Smith, Jr. | I120: 216129 | J120: HOPE AUTO COMPANY CHEVROLET | K120: HOPE | L120: AR | M120: Terrain | N120: 0 | S120: 717.23 | T120: 304.25 | U120: 0.4242 | V120: 143.45 | W120: 101.4166667 | X120: 2114 - CHV MEMPHIS | Y120: 3
A121: 20 | B121: South Central Region | C121: 2114 | D121: CHV MEMPHIS | E121: Cliff Forsythe | F121: 21141144 | G121: CHV LITTLE ROCK | H121: Herman Smith, Jr. | I121: 216129 | J121: HOPE AUTO COMPANY CHEVROLET | K121: HOPE | L121: AR | M121: Yukon K2XX | N121: 470 | O121: 52.5 | P121: 0.1117 | Q121: 470 | R121: 26.25 | S121: 3390.49 | T121: 553.37 | U121: 0.1632 | V121: 423.81 | W121: 110.674 | X121: 2114 - CHV MEMPHIS | Y121: 5
A122: 20 | B122: South Central Region | C122: 2114 | D122: CHV MEMPHIS | E122: Cliff Forsythe | F122: 21141144 | G122: CHV LITTLE ROCK | H122: Herman Smith, Jr. | I122: 216129 | J122: HOPE AUTO COMPANY CHEVROLET | K122: HOPE | L122: AR | M122: Yukon XL K2XX | N122: 560.44 | Q122: 560.44 | S122: 1121.98 | T122: 69.15 | U122: 0.0616 | V122: 560.99 | W122: 69.15 | X122: 2114 - CHV MEMPHIS | Y122: 1
A123: 20 | B123: South Central Region | C123: 2114 | D123: CHV MEMPHIS | E123: Cliff Forsythe | F123: 21141144 | G123: CHV LITTLE ROCK | H123: Herman Smith, Jr. | I123: 255786 | J123: GENTRY CHEVROLET INC | K123: DE QUEEN | L123: AR | M123: Camaro A1BC | N123: 0 | S123: 1374.87 | T123: 397.5 | U123: 0.2891 | V123: 458.29 | X123: 2114 - CHV MEMPHIS | Y123: 0
A124: 20 | B124: South Central Region | C124: 2114 | D124: CHV MEMPHIS | E124: Cliff Forsythe | F124: 21141144 | G124: CHV LITTLE ROCK | H124: Herman Smith, Jr. | I124: 255786 | J124: GENTRY CHEVROLET INC | K124: DE QUEEN | L124: AR | M124: Cruze | N124: 0 | S124: 46.5 | T124: 255 | U124: 5.4839 | V124: 15.5 | W124: 63.75 | X124: 2114 - CHV MEMPHIS | Y124: 4
A125: 20 | B125: South Central Region | C125: 2114 | D125: CHV MEMPHIS | E125: Cliff Forsythe | F125: 21141144 | G125: CHV LITTLE ROCK | H125: Herman Smith, Jr. | I125: 255786 | J125: GENTRY CHEVROLET INC | K125: DE QUEEN | L125: AR | M125: Cruze NA D2 | N125: 25 | O125: 97.5 | P125: 3.9 | Q125: 25 | R125: 97.5 | S125: 121.39 | T125: 97.5 | U125: 0.8032 | V125: 24.28 | W125: 24.375 | X125: 2114 - CHV MEMPHIS | Y125: 4
A126: 20 | B126: South Central Region | C126: 2114 | D126: CHV MEMPHIS | E126: Cliff Forsythe | F126: 21141144 | G126: CHV LITTLE ROCK | H126: Herman Smith, Jr. | I126: 255786 | J126: GENTRY CHEVROLET INC | K126: DE QUEEN | L126: AR | M126: Impala | N126: 0 | O126: 150 | S126: 186.81 | T126: 484.25 | U126: 2.5922 | V126: 186.81 | W126: 242.125 | X126: 2114 - CHV MEMPHIS | Y126: 2
A127: 20 | B127: South Central Region | C127: 2114 | D127: CHV MEMPHIS | E127: Cliff Forsythe | F127: 21141144 | G127: CHV LITTLE ROCK | H127: Herman Smith, Jr. | I127: 255786 | J127: GENTRY CHEVROLET INC | K127: DE QUEEN | L127: AR | M127: Malibu | S127: 22.99 | T127: 655.11 | U127: 28.4954 | V127: 22.99 | W127: 655.11 | X127: 2114 - CHV MEMPHIS | Y127: 1
A128: 20 | B128: South Central Region | C128: 2114 | D128: CHV MEMPHIS | E128: Cliff Forsythe | F128: 21141144 | G128: CHV LITTLE ROCK | H128: Herman Smith, Jr. | I128: 255786 | J128: GENTRY CHEVROLET INC | K128: DE QUEEN | L128: AR | M128: Malibu E2SC | N128: 86.96 | O128: 206.25 | P128: 2.3718 | Q128: 86.96 | R128: 206.25 | S128: 586.03 | T128: 412.5 | U128: 0.7039 | V128: 83.72 | W128: 51.5625 | X128: 2114 - CHV MEMPHIS | Y128: 8
A129: 20 | B129: South Central Region | C129: 2114 | D129: CHV MEMPHIS | E129: Cliff Forsythe | F129: 21141144 | G129: CHV LITTLE ROCK | H129: Herman Smith, Jr. | I129: 255786 | J129: GENTRY CHEVROLET INC | K129: DE QUEEN | L129: AR | M129: Sonic | N129: 56.82 | Q129: 56.82 | S129: 317.38 | T129: 255.86 | U129: 0.8062 | V129: 52.9 | W129: 36.55142857 | X129: 2114 - CHV MEMPHIS | Y129: 7
A130: 20 | B130: South Central Region | C130: 2114 | D130: CHV MEMPHIS | E130: Cliff Forsythe | F130: 21141144 | G130: CHV LITTLE ROCK | H130: Herman Smith, Jr. | I130: 255786 | J130: GENTRY CHEVROLET INC | K130: DE QUEEN | L130: AR | M130: Spark M2 | N130: 75.81 | Q130: 25.27 | S130: 439.67 | T130: 97.5 | U130: 0.2218 | V130: 36.64 | W130: 8.863636364 | X130: 2114 - CHV MEMPHIS | Y130: 11
A131: 20 | B131: South Central Region | C131: 2114 | D131: CHV MEMPHIS | E131: Cliff Forsythe | F131: 21141144 | G131: CHV LITTLE ROCK | H131: Herman Smith, Jr. | I131: 255786 | J131: GENTRY CHEVROLET INC | K131: DE QUEEN | L131: AR | M131: Colorado | N131: 689.66 | Q131: 689.66 | S131: 2880.14 | T131: 5408.11 | U131: 1.8777 | V131: 720.04 | W131: 772.5871429 | X131: =CONCATENATE(C131," - ",D131) -> 2114 - CHV MEMPHIS | Y131: =IFERROR((IF($S131=0,0,$T131/$W131)),0) -> 7
A132: 20 | B132: South Central Region | C132: 2114 | D132: CHV MEMPHIS | E132: Cliff Forsythe | F132: 21141144 | G132: CHV LITTLE ROCK | H132: Herman Smith, Jr. | I132: 255786 | J132: GENTRY CHEVROLET INC | K132: DE QUEEN | L132: AR | M132: Equinox | N132: 355.56 | O132: 630 | P132: 1.7719 | Q132: 177.78 | R132: 315 | S132: 1928.28 | T132: 2769.39 | U132: 1.4362 | V132: 160.69 | W132: 251.7627273 | X132: 2114 - CHV MEMPHIS | Y132: 11
A133: 20 | B133: South Central Region | C133: 2114 | D133: CHV MEMPHIS | E133: Cliff Forsythe | F133: 21141144 | G133: CHV LITTLE ROCK | H133: Herman Smith, Jr. | I133: 255786 | J133: GENTRY CHEVROLET INC | K133: DE QUEEN | L133: AR | M133: Silverado K2XX HD | N133: 4941.16 | O133: 7949.28 | P133: 1.6088 | Q133: 705.88 | R133: 794.928 | S133: 30898.04 | T133: 41873.23 | U133: 1.3552 | V133: 686.62 | W133: 821.0437255 | X133: 2114 - CHV MEMPHIS | Y133: 51
A134: 20 | B134: South Central Region | C134: 2114 | D134: CHV MEMPHIS | E134: Cliff Forsythe | F134: 21141144 | G134: CHV LITTLE ROCK | H134: Herman Smith, Jr. | I134: 255786 | J134: GENTRY CHEVROLET INC | K134: DE QUEEN | L134: AR | M134: Silverado K2XX LD | N134: 5609.8 | O134: 8379.46 | P134: 1.4937 | Q134: 560.98 | R134: 837.946 | S134: 40964.91 | T134: 107182.33 | U134: 2.6164 | V134: 546.2 | W134: 1429.097733 | X134: 2114 - CHV MEMPHIS | Y134: 75
A135: 20 | B135: South Central Region | C135: 2114 | D135: CHV MEMPHIS | E135: Cliff Forsythe | F135: 21141144 | G135: CHV LITTLE ROCK | H135: Herman Smith, Jr. | I135: 255786 | J135: GENTRY CHEVROLET INC | K135: DE QUEEN | L135: AR | M135: Suburban K2XX | N135: 0 | O135: 82.05 | R135: 41.025 | S135: 834.19 | T135: 2398.73 | U135: 2.8755 | V135: 417.1 | W135: 399.7883333 | X135: 2114 - CHV MEMPHIS | Y135: 6
A136: 20 | B136: South Central Region | C136: 2114 | D136: CHV MEMPHIS | E136: Cliff Forsythe | F136: 21141144 | G136: CHV LITTLE ROCK | H136: Herman Smith, Jr. | I136: 255786 | J136: GENTRY CHEVROLET INC | K136: DE QUEEN | L136: AR | M136: Tahoe K2XX | N136: 423.33 | O136: 123.06 | P136: 0.2907 | Q136: 423.33 | R136: 41.02 | S136: 3136.56 | T136: 8472.32 | U136: 2.7012 | V136: 392.07 | W136: 770.2109091 | X136: 2114 - CHV MEMPHIS | Y136: 11
A137: 20 | B137: South Central Region | C137: 2114 | D137: CHV MEMPHIS | E137: Cliff Forsythe | F137: 21141144 | G137: CHV LITTLE ROCK | H137: Herman Smith, Jr. | I137: 255786 | J137: GENTRY CHEVROLET INC | K137: DE QUEEN | L137: AR | M137: Traverse | N137: 321.84 | O137: 1507.5 | P137: 4.684 | Q137: 321.84 | R137: 1507.5 | S137: 2013.28 | T137: 4738.48 | U137: 2.3536 | V137: 223.7 | W137: 394.8733333 | X137: 2114 - CHV MEMPHIS | Y137: 12
A138: 20 | B138: South Central Region | C138: 2114 | D138: CHV MEMPHIS | E138: Cliff Forsythe | F138: 21141144 | G138: CHV LITTLE ROCK | H138: Herman Smith, Jr. | I138: 255786 | J138: GENTRY CHEVROLET INC | K138: DE QUEEN | L138: AR | M138: Trax | N138: 73.12 | Q138: 73.12 | S138: 798.98 | T138: 3.44 | U138: 0.0043 | V138: 79.9 | W138: 0.2646153846 | X138: 2114 - CHV MEMPHIS | Y138: 13
A139: 20 | B139: South Central Region | C139: 2114 | D139: CHV MEMPHIS | E139: Cliff Forsythe | F139: 21141146 | G139: CHVSA MEMPHIS | H139: Tina Marie Carter | I139: 114145 | J139: ARNOLD-BAKER CHEVROLET CO. | K139: MAGNOLIA | L139: AR | M139: Camaro | N139: 0 | S139: 109.76 | V139: 109.76 | X139: 2114 - CHV MEMPHIS | Y139: 0
A140: 20 | B140: South Central Region | C140: 2114 | D140: CHV MEMPHIS | E140: Cliff Forsythe | F140: 21141146 | G140: CHVSA MEMPHIS | H140: Tina Marie Carter | I140: 114145 | J140: ARNOLD-BAKER CHEVROLET CO. | K140: MAGNOLIA | L140: AR | M140: Camaro A1BC | N140: 0 | S140: 860.96 | T140: 262.5 | U140: 0.3049 | V140: 286.99 | W140: 262.5 | X140: 2114 - CHV MEMPHIS | Y140: 1
A141: 20 | B141: South Central Region | C141: 2114 | D141: CHV MEMPHIS | E141: Cliff Forsythe | F141: 21141146 | G141: CHVSA MEMPHIS | H141: Tina Marie Carter | I141: 114145 | J141: ARNOLD-BAKER CHEVROLET CO. | K141: MAGNOLIA | L141: AR | M141: Cruze | N141: 0 | S141: 46.5 | V141: 15.5 | X141: 2114 - CHV MEMPHIS | Y141: 0
A142: 20 | B142: South Central Region | C142: 2114 | D142: CHV MEMPHIS | E142: Cliff Forsythe | F142: 21141146 | G142: CHVSA MEMPHIS | H142: Tina Marie Carter | I142: 114145 | J142: ARNOLD-BAKER CHEVROLET CO. | K142: MAGNOLIA | L142: AR | M142: Cruze NA D2 | N142: 0 | S142: 68.61 | V142: 22.87 | X142: 2114 - CHV MEMPHIS | Y142: 0
A143: 20 | B143: South Central Region | C143: 2114 | D143: CHV MEMPHIS | E143: Cliff Forsythe | F143: 21141146 | G143: CHVSA MEMPHIS | H143: Tina Marie Carter | I143: 114145 | J143: ARNOLD-BAKER CHEVROLET CO. | K143: MAGNOLIA | L143: AR | M143: Malibu | S143: 22.99 | T143: 75 | U143: 3.2623 | V143: 22.99 | X143: 2114 - CHV MEMPHIS | Y143: 0
A144: 20 | B144: South Central Region | C144: 2114 | D144: CHV MEMPHIS | E144: Cliff Forsythe | F144: 21141146 | G144: CHVSA MEMPHIS | H144: Tina Marie Carter | I144: 114145 | J144: ARNOLD-BAKER CHEVROLET CO. | K144: MAGNOLIA | L144: AR | M144: Malibu E2SC | N144: 86.96 | Q144: 86.96 | S144: 570.53 | T144: 105 | U144: 0.184 | V144: 81.5 | W144: 35 | X144: 2114 - CHV MEMPHIS | Y144: 3
A145: 20 | B145: South Central Region | C145: 2114 | D145: CHV MEMPHIS | E145: Cliff Forsythe | F145: 21141146 | G145: CHVSA MEMPHIS | H145: Tina Marie Carter | I145: 114145 | J145: ARNOLD-BAKER CHEVROLET CO. | K145: MAGNOLIA | L145: AR | M145: Sonic | N145: 0 | S145: 143.53 | T145: 75 | U145: 0.5225 | V145: 47.84 | X145: 2114 - CHV MEMPHIS | Y145: 0
A146: 20 | B146: South Central Region | C146: 2114 | D146: CHV MEMPHIS | E146: Cliff Forsythe | F146: 21141146 | G146: CHVSA MEMPHIS | H146: Tina Marie Carter | I146: 114145 | J146: ARNOLD-BAKER CHEVROLET CO. | K146: MAGNOLIA | L146: AR | M146: Spark M2 | N146: 0 | S146: 230.87 | V146: 46.17 | X146: 2114 - CHV MEMPHIS | Y146: 0
A147: 20 | B147: South Central Region | C147: 2114 | D147: CHV MEMPHIS | E147: Cliff Forsythe | F147: 21141146 | G147: CHVSA MEMPHIS | H147: Tina Marie Carter | I147: 114145 | J147: ARNOLD-BAKER CHEVROLET CO. | K147: MAGNOLIA | L147: AR | M147: Colorado | N147: 0 | S147: 5488.47 | V147: 686.06 | X147: 2114 - CHV MEMPHIS | Y147: 0
A148: 20 | B148: South Central Region | C148: 2114 | D148: CHV MEMPHIS | E148: Cliff Forsythe | F148: 21141146 | G148: CHVSA MEMPHIS | H148: Tina Marie Carter | I148: 114145 | J148: ARNOLD-BAKER CHEVROLET CO. | K148: MAGNOLIA | L148: AR | M148: Equinox | N148: 177.78 | O148: 307.5 | P148: 1.7297 | Q148: 177.78 | R148: 307.5 | S148: 1421.04 | T148: 1129.66 | U148: 0.795 | V148: 157.89 | W148: 161.38 | X148: 2114 - CHV MEMPHIS | Y148: 7
A149: 20 | B149: South Central Region | C149: 2114 | D149: CHV MEMPHIS | E149: Cliff Forsythe | F149: 21141146 | G149: CHVSA MEMPHIS | H149: Tina Marie Carter | I149: 114145 | J149: ARNOLD-BAKER CHEVROLET CO. | K149: MAGNOLIA | L149: AR | M149: Express | N149: 0 | O149: 7.5 | R149: 7.5 | S149: 190.48 | T149: 7.5 | U149: 0.0394 | V149: 95.24 | W149: 7.5 | X149: 2114 - CHV MEMPHIS | Y149: 1
A150: 20 | B150: South Central Region | C150: 2114 | D150: CHV MEMPHIS | E150: Cliff Forsythe | F150: 21141146 | G150: CHVSA MEMPHIS | H150: Tina Marie Carter | I150: 114145 | J150: ARNOLD-BAKER CHEVROLET CO. | K150: MAGNOLIA | L150: AR | M150: Silverado K2XX HD | N150: 705.88 | Q150: 705.88 | S150: 5377.41 | T150: 7253.89 | U150: 1.349 | V150: 672.18 | W150: 725.389 | X150: 2114 - CHV MEMPHIS | Y150: 10
A151: 20 | B151: South Central Region | C151: 2114 | D151: CHV MEMPHIS | E151: Cliff Forsythe | F151: 21141146 | G151: CHVSA MEMPHIS | H151: Tina Marie Carter | I151: 114145 | J151: ARNOLD-BAKER CHEVROLET CO. | K151: MAGNOLIA | L151: AR | M151: Silverado K2XX LD | N151: 1682.94 | O151: 671.25 | P151: 0.3989 | Q151: 560.98 | R151: 671.25 | S151: 16320.68 | T151: 8052.11 | U151: 0.4934 | V151: 544.02 | W151: 732.01 | X151: 2114 - CHV MEMPHIS | Y151: 11
A152: 20 | B152: South Central Region | C152: 2114 | D152: CHV MEMPHIS | E152: Cliff Forsythe | F152: 21141146 | G152: CHVSA MEMPHIS | H152: Tina Marie Carter | I152: 114145 | J152: ARNOLD-BAKER CHEVROLET CO. | K152: MAGNOLIA | L152: AR | M152: Suburban K2XX | N152: 0 | O152: 15 | R152: 7.5 | S152: 407.61 | T152: 474.83 | U152: 1.1649 | V152: 407.61 | W152: 158.2766667 | X152: 2114 - CHV MEMPHIS | Y152: 3
A153: 20 | B153: South Central Region | C153: 2114 | D153: CHV MEMPHIS | E153: Cliff Forsythe | F153: 21141146 | G153: CHVSA MEMPHIS | H153: Tina Marie Carter | I153: 114145 | J153: ARNOLD-BAKER CHEVROLET CO. | K153: MAGNOLIA | L153: AR | M153: Tahoe K2XX | N153: 423.33 | Q153: 423.33 | S153: 3136.56 | T153: 78.75 | U153: 0.0251 | V153: 392.07 | W153: 78.75 | X153: 2114 - CHV MEMPHIS | Y153: 1
A154: 20 | B154: South Central Region | C154: 2114 | D154: CHV MEMPHIS | E154: Cliff Forsythe | F154: 21141146 | G154: CHVSA MEMPHIS | H154: Tina Marie Carter | I154: 114145 | J154: ARNOLD-BAKER CHEVROLET CO. | K154: MAGNOLIA | L154: AR | M154: Traverse | N154: 0 | O154: 52.5 | S154: 1301.74 | T154: 182.63 | U154: 0.1403 | V154: 216.96 | W154: 182.63 | X154: 2114 - CHV MEMPHIS | Y154: 1
A155: 20 | B155: South Central Region | C155: 2114 | D155: CHV MEMPHIS | E155: Cliff Forsythe | F155: 21141146 | G155: CHVSA MEMPHIS | H155: Tina Marie Carter | I155: 114145 | J155: ARNOLD-BAKER CHEVROLET CO. | K155: MAGNOLIA | L155: AR | M155: Trax | N155: 0 | S155: 284.93 | V155: 94.98 | X155: 2114 - CHV MEMPHIS | Y155: 0
A156: 20 | B156: South Central Region | C156: 2115 | D156: CHV NEW ORLEANS | E156: N/A | F156: 21151153 | G156: CHV SHREVEPORT | H156: Steven Kotfer | I156: 114271 | J156: ORR, INC. | K156: TEXARKANA | L156: TX | M156: Camaro | N156: 0 | O156: 738.75 | S156: 1050.49 | T156: 1117.5 | U156: 1.0638 | V156: 175.08 | W156: 223.5 | X156: 2115 - CHV NEW ORLEANS | Y156: 5
A157: 20 | B157: South Central Region | C157: 2115 | D157: CHV NEW ORLEANS | E157: N/A | F157: 21151153 | G157: CHV SHREVEPORT | H157: Steven Kotfer | I157: 114271 | J157: ORR, INC. | K157: TEXARKANA | L157: TX | M157: Camaro A1BC | N157: 1923.1 | O157: 1488.75 | P157: 0.7741 | Q157: 384.62 | R157: 744.375 | S157: 10010.64 | T157: 7271.59 | U157: 0.7264 | V157: 357.52 | W157: 302.9829167 | X157: 2115 - CHV NEW ORLEANS | Y157: 24
A158: 20 | B158: South Central Region | C158: 2115 | D158: CHV NEW ORLEANS | E158: N/A | F158: 21151153 | G158: CHV SHREVEPORT | H158: Steven Kotfer | I158: 114271 | J158: ORR, INC. | K158: TEXARKANA | L158: TX | M158: Corvette | N158: 465.12 | O158: 112.5 | P158: 0.2419 | Q158: 465.12 | R158: 56.25 | S158: 2846.09 | T158: 231.48 | U158: 0.0813 | V158: 406.58 | W158: 28.935 | X158: 2115 - CHV NEW ORLEANS | Y158: 8
A159: 20 | B159: South Central Region | C159: 2115 | D159: CHV NEW ORLEANS | E159: N/A | F159: 21151153 | G159: CHV SHREVEPORT | H159: Steven Kotfer | I159: 114271 | J159: ORR, INC. | K159: TEXARKANA | L159: TX | M159: Cruze | N159: 0 | S159: 122.05 | T159: 255 | U159: 2.0893 | V159: 13.56 | W159: 31.875 | X159: 2115 - CHV NEW ORLEANS | Y159: 8
A160: 20 | B160: South Central Region | C160: 2115 | D160: CHV NEW ORLEANS | E160: N/A | F160: 21151153 | G160: CHV SHREVEPORT | H160: Steven Kotfer | I160: 114271 | J160: ORR, INC. | K160: TEXARKANA | L160: TX | M160: Cruze NA D2 | N160: 125 | Q160: 25 | S160: 584.56 | V160: 29.23 | X160: 2115 - CHV NEW ORLEANS | Y160: 0
A161: 20 | B161: South Central Region | C161: 2115 | D161: CHV NEW ORLEANS | E161: N/A | F161: 21151153 | G161: CHV SHREVEPORT | H161: Steven Kotfer | I161: 114271 | J161: ORR, INC. | K161: TEXARKANA | L161: TX | M161: Impala | N161: 126.66 | O161: 292.7 | P161: 2.3109 | Q161: 63.33 | R161: 292.7 | S161: 2210.13 | T161: 2855.49 | U161: 1.292 | V161: 138.13 | W161: 285.549 | X161: 2115 - CHV NEW ORLEANS | Y161: 10
A162: 20 | B162: South Central Region | C162: 2115 | D162: CHV NEW ORLEANS | E162: N/A | F162: 21151153 | G162: CHV SHREVEPORT | H162: Steven Kotfer | I162: 114271 | J162: ORR, INC. | K162: TEXARKANA | L162: TX | M162: Malibu | S162: 271.49 | T162: 328.48 | U162: 1.2099 | V162: 30.17 | W162: 82.12 | X162: 2115 - CHV NEW ORLEANS | Y162: 4
A163: 20 | B163: South Central Region | C163: 2115 | D163: CHV NEW ORLEANS | E163: N/A | F163: 21151153 | G163: CHV SHREVEPORT | H163: Steven Kotfer | I163: 114271 | J163: ORR, INC. | K163: TEXARKANA | L163: TX | M163: Malibu E2SC | N163: 869.6 | O163: 1515 | P163: 1.7422 | Q163: 86.96 | R163: 168.3333333 | S163: 6918 | T163: 3636.48 | U163: 0.5257 | V163: 89.84 | W163: 77.37191489 | X163: 2115 - CHV NEW ORLEANS | Y163: 47
A164: 20 | B164: South Central Region | C164: 2115 | D164: CHV NEW ORLEANS | E164: N/A | F164: 21151153 | G164: CHV SHREVEPORT | H164: Steven Kotfer | I164: 114271 | J164: ORR, INC. | K164: TEXARKANA | L164: TX | M164: Sonic | N164: 56.82 | Q164: 56.82 | S164: 772.82 | T164: 1980 | U164: 2.562 | V164: 48.3 | W164: 220 | X164: 2115 - CHV NEW ORLEANS | Y164: 9
A165: 20 | B165: South Central Region | C165: 2115 | D165: CHV NEW ORLEANS | E165: N/A | F165: 21151153 | G165: CHV SHREVEPORT | H165: Steven Kotfer | I165: 114271 | J165: ORR, INC. | K165: TEXARKANA | L165: TX | M165: Spark | N165: 0 | S165: 319.27 | T165: 104.73 | U165: 0.328 | V165: 45.61 | W165: 34.91 | X165: 2115 - CHV NEW ORLEANS | Y165: 3
A166: 20 | B166: South Central Region | C166: 2115 | D166: CHV NEW ORLEANS | E166: N/A | F166: 21151153 | G166: CHV SHREVEPORT | H166: Steven Kotfer | I166: 114271 | J166: ORR, INC. | K166: TEXARKANA | L166: TX | M166: Spark M2 | N166: 126.35 | O166: 731.25 | P166: 5.7875 | Q166: 25.27 | R166: 365.625 | S166: 1134.79 | T166: 877.5 | U166: 0.7733 | V166: 49.34 | W166: 27.421875 | X166: 2115 - CHV NEW ORLEANS | Y166: 32
A167: 20 | B167: South Central Region | C167: 2115 | D167: CHV NEW ORLEANS | E167: N/A | F167: 21151153 | G167: CHV SHREVEPORT | H167: Steven Kotfer | I167: 114271 | J167: ORR, INC. | K167: TEXARKANA | L167: TX | M167: Colorado | N167: 1379.32 | O167: 259.91 | P167: 0.1884 | Q167: 689.66 | R167: 259.91 | S167: 6840.04 | T167: 16710.19 | U167: 2.443 | V167: 684 | W167: 2387.17 | X167: 2115 - CHV NEW ORLEANS | Y167: 7
A168: 20 | B168: South Central Region | C168: 2115 | D168: CHV NEW ORLEANS | E168: N/A | F168: 21151153 | G168: CHV SHREVEPORT | H168: Steven Kotfer | I168: 114271 | J168: ORR, INC. | K168: TEXARKANA | L168: TX | M168: Equinox | N168: 888.9 | O168: 1404.28 | P168: 1.5798 | Q168: 177.78 | R168: 351.07 | S168: 10820.56 | T168: 5558.83 | U168: 0.5137 | V168: 159.13 | W168: 138.97075 | X168: 2115 - CHV NEW ORLEANS | Y168: 40
A169: 20 | B169: South Central Region | C169: 2115 | D169: CHV NEW ORLEANS | E169: N/A | F169: 21151153 | G169: CHV SHREVEPORT | H169: Steven Kotfer | I169: 114271 | J169: ORR, INC. | K169: TEXARKANA | L169: TX | M169: Silverado K2XX HD | N169: 3529.4 | O169: 1729.82 | P169: 0.4901 | Q169: 705.88 | R169: 1729.82 | S169: 22993.31 | T169: 14494.4 | U169: 0.6304 | V169: 676.27 | W169: 762.8631579 | X169: 2115 - CHV NEW ORLEANS | Y169: 19
A170: 20 | B170: South Central Region | C170: 2115 | D170: CHV NEW ORLEANS | E170: N/A | F170: 21151153 | G170: CHV SHREVEPORT | H170: Steven Kotfer | I170: 114271 | J170: ORR, INC. | K170: TEXARKANA | L170: TX | M170: Silverado K2XX LD | N170: 11219.6 | O170: 7805.36 | P170: 0.6957 | Q170: 560.98 | R170: 354.7890909 | S170: 80825.04 | T170: 119780.62 | U170: 1.482 | V170: 546.12 | W170: 826.0732414 | X170: 2115 - CHV NEW ORLEANS | Y170: 145
A171: 20 | B171: South Central Region | C171: 2115 | D171: CHV NEW ORLEANS | E171: N/A | F171: 21151153 | G171: CHV SHREVEPORT | H171: Steven Kotfer | I171: 114271 | J171: ORR, INC. | K171: TEXARKANA | L171: TX | M171: Suburban K2XX | N171: 906.66 | O171: 2856.44 | P171: 3.1505 | Q171: 453.33 | R171: 1428.22 | S171: 6527.99 | T171: 15650.92 | U171: 2.3975 | V171: 435.2 | W171: 1203.916923 | X171: 2115 - CHV NEW ORLEANS | Y171: 13
A172: 20 | B172: South Central Region | C172: 2115 | D172: CHV NEW ORLEANS | E172: N/A | F172: 21151153 | G172: CHV SHREVEPORT | H172: Steven Kotfer | I172: 114271 | J172: ORR, INC. | K172: TEXARKANA | L172: TX | M172: Tahoe K2XX | N172: 2116.65 | O172: 3830.49 | P172: 1.8097 | Q172: 423.33 | R172: 638.415 | S172: 13341.79 | T172: 14932.1 | U172: 1.1192 | V172: 392.41 | W172: 533.2892857 | X172: 2115 - CHV NEW ORLEANS | Y172: 28
A173: 20 | B173: South Central Region | C173: 2115 | D173: CHV NEW ORLEANS | E173: N/A | F173: 21151153 | G173: CHV SHREVEPORT | H173: Steven Kotfer | I173: 114271 | J173: ORR, INC. | K173: TEXARKANA | L173: TX | M173: Traverse | N173: 965.52 | O173: 210.26 | P173: 0.2178 | Q173: 321.84 | R173: 105.13 | S173: 5905.09 | T173: 5816.31 | U173: 0.985 | V173: 227.12 | W173: 215.4188889 | X173: 2115 - CHV NEW ORLEANS | Y173: 27
A174: 20 | B174: South Central Region | C174: 2115 | D174: CHV NEW ORLEANS | E174: N/A | F174: 21151153 | G174: CHV SHREVEPORT | H174: Steven Kotfer | I174: 114271 | J174: ORR, INC. | K174: TEXARKANA | L174: TX | M174: Trax | N174: 292.48 | O174: 172.5 | P174: 0.5898 | Q174: 73.12 | R174: 34.5 | S174: 1537.23 | T174: 2245 | U174: 1.4604 | V174: 85.4 | W174: 97.60869565 | X174: 2115 - CHV NEW ORLEANS | Y174: 23
A175: 20 | B175: South Central Region | C175: 2115 | D175: CHV NEW ORLEANS | E175: N/A | F175: 21151153 | G175: CHV SHREVEPORT | H175: Steven Kotfer | I175: 158540 | J175: COLEMAN MOTORS, INC. | K175: NEW BOSTON | L175: TX | M175: Camaro | N175: 0 | S175: 448.64 | T175: 439 | U175: 0.9785 | V175: 224.32 | W175: 87.8 | X175: 2115 - CHV NEW ORLEANS | Y175: 5
A176: 20 | B176: South Central Region | C176: 2115 | D176: CHV NEW ORLEANS | E176: N/A | F176: 21151153 | G176: CHV SHREVEPORT | H176: Steven Kotfer | I176: 158540 | J176: COLEMAN MOTORS, INC. | K176: NEW BOSTON | L176: TX | M176: Camaro A1BC | N176: 384.62 | Q176: 384.62 | S176: 865.15 | T176: 465 | U176: 0.5375 | V176: 288.38 | W176: 232.5 | X176: 2115 - CHV NEW ORLEANS | Y176: 2
A177: 20 | B177: South Central Region | C177: 2115 | D177: CHV NEW ORLEANS | E177: N/A | F177: 21151153 | G177: CHV SHREVEPORT | H177: Steven Kotfer | I177: 158540 | J177: COLEMAN MOTORS, INC. | K177: NEW BOSTON | L177: TX | M177: Corvette | N177: 465.12 | O177: 371.25 | P177: 0.7982 | Q177: 465.12 | S177: 1601.37 | T177: 1593.75 | U177: 0.9952 | V177: 400.34 | W177: 531.25 | X177: 2115 - CHV NEW ORLEANS | Y177: 3
A178: 20 | B178: South Central Region | C178: 2115 | D178: CHV NEW ORLEANS | E178: N/A | F178: 21151153 | G178: CHV SHREVEPORT | H178: Steven Kotfer | I178: 158540 | J178: COLEMAN MOTORS, INC. | K178: NEW BOSTON | L178: TX | M178: Cruze | N178: 0 | S178: 96.25 | V178: 19.25 | X178: 2115 - CHV NEW ORLEANS | Y178: 0
A179: 20 | B179: South Central Region | C179: 2115 | D179: CHV NEW ORLEANS | E179: N/A | F179: 21151153 | G179: CHV SHREVEPORT | H179: Steven Kotfer | I179: 158540 | J179: COLEMAN MOTORS, INC. | K179: NEW BOSTON | L179: TX | M179: Cruze NA D2 | N179: 25 | Q179: 25 | S179: 102.04 | V179: 25.51 | X179: 2115 - CHV NEW ORLEANS | Y179: 0
A180: 20 | B180: South Central Region | C180: 2115 | D180: CHV NEW ORLEANS | E180: N/A | F180: 21151153 | G180: CHV SHREVEPORT | H180: Steven Kotfer | I180: 158540 | J180: COLEMAN MOTORS, INC. | K180: NEW BOSTON | L180: TX | M180: Impala | N180: 63.33 | Q180: 63.33 | S180: 836.95 | T180: 307.5 | U180: 0.3674 | V180: 139.49 | W180: 43.92857143 | X180: 2115 - CHV NEW ORLEANS | Y180: 7
A181: 20 | B181: South Central Region | C181: 2115 | D181: CHV NEW ORLEANS | E181: N/A | F181: 21151153 | G181: CHV SHREVEPORT | H181: Steven Kotfer | I181: 158540 | J181: COLEMAN MOTORS, INC. | K181: NEW BOSTON | L181: TX | M181: Malibu | S181: 57.47 | T181: 75 | U181: 1.305 | V181: 28.74 | W181: 37.5 | X181: 2115 - CHV NEW ORLEANS | Y181: 2
A182: 20 | B182: South Central Region | C182: 2115 | D182: CHV NEW ORLEANS | E182: N/A | F182: 21151153 | G182: CHV SHREVEPORT | H182: Steven Kotfer | I182: 158540 | J182: COLEMAN MOTORS, INC. | K182: NEW BOSTON | L182: TX | M182: Malibu E2SC | N182: 86.96 | Q182: 86.96 | S182: 586.03 | V182: 83.72 | X182: 2115 - CHV NEW ORLEANS | Y182: 0
A183: 20 | B183: South Central Region | C183: 2115 | D183: CHV NEW ORLEANS | E183: N/A | F183: 21151153 | G183: CHV SHREVEPORT | H183: Steven Kotfer | I183: 158540 | J183: COLEMAN MOTORS, INC. | K183: NEW BOSTON | L183: TX | M183: Sonic | N183: 0 | S183: 336.36 | V183: 48.05 | X183: 2115 - CHV NEW ORLEANS | Y183: 0
A184: 20 | B184: South Central Region | C184: 2115 | D184: CHV NEW ORLEANS | E184: N/A | F184: 21151153 | G184: CHV SHREVEPORT | H184: Steven Kotfer | I184: 158540 | J184: COLEMAN MOTORS, INC. | K184: NEW BOSTON | L184: TX | M184: Spark | N184: 0 | S184: 111.11 | T184: 97.5 | U184: 0.8775 | V184: 111.11 | W184: 32.5 | X184: 2115 - CHV NEW ORLEANS | Y184: 3
A185: 20 | B185: South Central Region | C185: 2115 | D185: CHV NEW ORLEANS | E185: N/A | F185: 21151153 | G185: CHV SHREVEPORT | H185: Steven Kotfer | I185: 158540 | J185: COLEMAN MOTORS, INC. | K185: NEW BOSTON | L185: TX | M185: Spark M2 | N185: 0 | S185: 56.9 | V185: 28.45 | X185: 2115 - CHV NEW ORLEANS | Y185: 0
A186: 20 | B186: South Central Region | C186: 2115 | D186: CHV NEW ORLEANS | E186: N/A | F186: 21151153 | G186: CHV SHREVEPORT | H186: Steven Kotfer | I186: 158540 | J186: COLEMAN MOTORS, INC. | K186: NEW BOSTON | L186: TX | M186: Colorado | N186: 689.66 | O186: 367.2 | P186: 0.5324 | Q186: 689.66 | R186: 367.2 | S186: 5126.64 | T186: 632.97 | U186: 0.1235 | V186: 732.38 | W186: 210.99 | X186: 2115 - CHV NEW ORLEANS | Y186: 3
A187: 20 | B187: South Central Region | C187: 2115 | D187: CHV NEW ORLEANS | E187: N/A | F187: 21151153 | G187: CHV SHREVEPORT | H187: Steven Kotfer | I187: 158540 | J187: COLEMAN MOTORS, INC. | K187: NEW BOSTON | L187: TX | M187: Equinox | N187: 355.56 | Q187: 177.78 | S187: 3121.48 | T187: 697.4 | U187: 0.2234 | V187: 156.07 | W187: 38.74444444 | X187: 2115 - CHV NEW ORLEANS | Y187: 18
A188: 20 | B188: South Central Region | C188: 2115 | D188: CHV NEW ORLEANS | E188: N/A | F188: 21151153 | G188: CHV SHREVEPORT | H188: Steven Kotfer | I188: 158540 | J188: COLEMAN MOTORS, INC. | K188: NEW BOSTON | L188: TX | M188: Express | N188: 0 | S188: 175.44 | T188: 221.25 | U188: 1.2611 | V188: 87.72 | W188: 221.25 | X188: 2115 - CHV NEW ORLEANS | Y188: 1
A189: 20 | B189: South Central Region | C189: 2115 | D189: CHV NEW ORLEANS | E189: N/A | F189: 21151153 | G189: CHV SHREVEPORT | H189: Steven Kotfer | I189: 158540 | J189: COLEMAN MOTORS, INC. | K189: NEW BOSTON | L189: TX | M189: Silverado K2XX HD | N189: 2117.64 | O189: 3153.5 | P189: 1.4892 | Q189: 705.88 | R189: 1051.166667 | S189: 17573.51 | T189: 28983.75 | U189: 1.6493 | V189: 675.9 | W189: 1073.472222 | X189: 2115 - CHV NEW ORLEANS | Y189: 27
A190: 20 | B190: South Central Region | C190: 2115 | D190: CHV NEW ORLEANS | E190: N/A | F190: 21151153 | G190: CHV SHREVEPORT | H190: Steven Kotfer | I190: 158540 | J190: COLEMAN MOTORS, INC. | K190: NEW BOSTON | L190: TX | M190: Silverado K2XX LD | N190: 4487.84 | O190: 5439.45 | P190: 1.212 | Q190: 560.98 | R190: 1359.8625 | S190: 33696.39 | T190: 65807.62 | U190: 1.953 | V190: 543.49 | W190: 1044.565397 | X190: 2115 - CHV NEW ORLEANS | Y190: 63
A191: 20 | B191: South Central Region | C191: 2115 | D191: CHV NEW ORLEANS | E191: N/A | F191: 21151153 | G191: CHV SHREVEPORT | H191: Steven Kotfer | I191: 158540 | J191: COLEMAN MOTORS, INC. | K191: NEW BOSTON | L191: TX | M191: Suburban K2XX | N191: 453.33 | O191: 15.16 | P191: 0.0334 | Q191: 453.33 | R191: 5.053333333 | S191: 3403.55 | T191: 115.46 | U191: 0.0339 | V191: 425.44 | W191: 16.49428571 | X191: 2115 - CHV NEW ORLEANS | Y191: 7
A192: 20 | B192: South Central Region | C192: 2115 | D192: CHV NEW ORLEANS | E192: N/A | F192: 21151153 | G192: CHV SHREVEPORT | H192: Steven Kotfer | I192: 158540 | J192: COLEMAN MOTORS, INC. | K192: NEW BOSTON | L192: TX | M192: Tahoe K2XX | N192: 1269.99 | O192: 187 | P192: 0.1472 | Q192: 423.33 | S192: 7917.2 | T192: 1706.41 | U192: 0.2155 | V192: 395.86 | W192: 106.650625 | X192: 2115 - CHV NEW ORLEANS | Y192: 16
A193: 20 | B193: South Central Region | C193: 2115 | D193: CHV NEW ORLEANS | E193: N/A | F193: 21151153 | G193: CHV SHREVEPORT | H193: Steven Kotfer | I193: 158540 | J193: COLEMAN MOTORS, INC. | K193: NEW BOSTON | L193: TX | M193: Traverse | N193: 321.84 | Q193: 321.84 | S193: 1601.04 | T193: 1260.25 | U193: 0.7871 | V193: 228.72 | W193: 126.025 | X193: 2115 - CHV NEW ORLEANS | Y193: 10
A194: 20 | B194: South Central Region | C194: 2115 | D194: CHV NEW ORLEANS | E194: N/A | F194: 21151153 | G194: CHV SHREVEPORT | H194: Steven Kotfer | I194: 158540 | J194: COLEMAN MOTORS, INC. | K194: NEW BOSTON | L194: TX | M194: Trax | N194: 73.12 | Q194: 73.12 | S194: 137.64 | V194: 68.82 | X194: 2115 - CHV NEW ORLEANS | Y194: 0
A195: 20 | B195: South Central Region | C195: 2115 | D195: CHV NEW ORLEANS | E195: N/A | F195: 21151153 | G195: CHV SHREVEPORT | H195: Steven Kotfer | I195: 230489 | J195: EXCEL CHEVROLET | K195: JEFFERSON | L195: TX | M195: Camaro | N195: 0 | S195: 109.76 | T195: 247.5 | U195: 2.2549 | V195: 109.76 | X195: =CONCATENATE(C195," - ",D195) -> 2115 - CHV NEW ORLEANS | Y195: =IFERROR((IF($S195=0,0,$T195/$W195)),0) -> 0
A196: 20 | B196: South Central Region | C196: 2115 | D196: CHV NEW ORLEANS | E196: N/A | F196: 21151153 | G196: CHV SHREVEPORT | H196: Steven Kotfer | I196: 230489 | J196: EXCEL CHEVROLET | K196: JEFFERSON | L196: TX | M196: Camaro A1BC | N196: 384.62 | Q196: 384.62 | S196: 2408.19 | T196: 1028.25 | U196: 0.427 | V196: 344.03 | W196: 205.65 | X196: 2115 - CHV NEW ORLEANS | Y196: 5
A197: 20 | B197: South Central Region | C197: 2115 | D197: CHV NEW ORLEANS | E197: N/A | F197: 21151153 | G197: CHV SHREVEPORT | H197: Steven Kotfer | I197: 230489 | J197: EXCEL CHEVROLET | K197: JEFFERSON | L197: TX | M197: Cruze | N197: 0 | S197: 46.5 | V197: 15.5 | W197: 0 | X197: 2115 - CHV NEW ORLEANS | Y197: 0
A198: 20 | B198: South Central Region | C198: 2115 | D198: CHV NEW ORLEANS | E198: N/A | F198: 21151153 | G198: CHV SHREVEPORT | H198: Steven Kotfer | I198: 230489 | J198: EXCEL CHEVROLET | K198: JEFFERSON | L198: TX | M198: Cruze NA D2 | N198: 50 | O198: 37.5 | P198: 0.75 | Q198: 25 | R198: 7.5 | S198: 329.69 | T198: 37.5 | U198: 0.1137 | V198: 36.63 | W198: 3.409090909 | X198: 2115 - CHV NEW ORLEANS | Y198: 11
A199: 20 | B199: South Central Region | C199: 2115 | D199: CHV NEW ORLEANS | E199: N/A | F199: 21151153 | G199: CHV SHREVEPORT | H199: Steven Kotfer | I199: 230489 | J199: EXCEL CHEVROLET | K199: JEFFERSON | L199: TX | M199: Impala | N199: 0 | S199: 463.05 | T199: 836.25 | U199: 1.806 | V199: 154.35 | W199: 836.25 | X199: 2115 - CHV NEW ORLEANS | Y199: 1
A200: 20 | B200: South Central Region | C200: 2115 | D200: CHV NEW ORLEANS | E200: N/A | F200: 21151153 | G200: CHV SHREVEPORT | H200: Steven Kotfer | I200: 230489 | J200: EXCEL CHEVROLET | K200: JEFFERSON | L200: TX | M200: Malibu | S200: 80.46 | V200: 26.82 | X200: 2115 - CHV NEW ORLEANS | Y200: 0
... 2050 more rows

Sheet Sheet6 (hidden)
A1: Model | B1: =Worksheet!F1 -> 223149
A2: Acadia | B2: =SUMIFS(RVD!$Y:$Y,RVD!$M:$M,Sheet6!A2,RVD!$I:$I,Sheet6!$B$1) -> 83
A3: Canyon | B3: =SUMIFS(RVD!$Y:$Y,RVD!$M:$M,Sheet6!A3,RVD!$I:$I,Sheet6!$B$1) -> 81
A4: Sierra K2XX HD | B4: =SUMIFS(RVD!$Y:$Y,RVD!$M:$M,Sheet6!A4,RVD!$I:$I,Sheet6!$B$1) -> 70
A5: Sierra K2XX LD | B5: =SUMIFS(RVD!$Y:$Y,RVD!$M:$M,Sheet6!A5,RVD!$I:$I,Sheet6!$B$1) -> 138
A6: Terrain | B6: =SUMIFS(RVD!$Y:$Y,RVD!$M:$M,Sheet6!A6,RVD!$I:$I,Sheet6!$B$1) -> 78
A7: Yukon K2XX | B7: =SUMIFS(RVD!$Y:$Y,RVD!$M:$M,Sheet6!A7,RVD!$I:$I,Sheet6!$B$1) -> 92
A8: Yukon XL K2XX | B8: =SUMIFS(RVD!$Y:$Y,RVD!$M:$M,Sheet6!A8,RVD!$I:$I,Sheet6!$B$1) -> 47
I37: Acadia
I38: Canyon
I39: Sierra K2XX HD
I40: Sierra K2XX LD
I41: Terrain
I42: Yukon K2XX
I43: Yukon XL K2XX
I44: Escalade ESV K2XX
I45: Cascada
I46: Verano
I47: XTS
I48: Acadia C1
I49: Savana
I50: ELR

Sheet Labor (hidden)
A1: PN | B1: Install Time
A2: 12498078 | B2: 0.1
A3: 12663899 | B3: 0.2
A4: 13493940 | B4: 0
A5: 19119231 | B5: 1
A6: 19155496 | B6: 0.1
A7: 19158474 | B7: 0.4
A8: 19170499 | B8: 0
A9: 19202488 | B9: 0.25
A10: 19202575 | B10: 0.1
A11: 19212052 | B11: 0.4
A12: 19212762 | B12: 0.1
A13: 19212927 | B13: 0.4
A14: 19244268 | B14: 0.7
A15: 19260729 | B15: 0.3
A16: 19301291 | B16: 0.75
A17: 19301466 | B17: 2.5
A18: 19303115 | B18: 1.5
A19: 19303454 | B19: 0.3
A20: 19329340 | B20: 0.3
A21: 19330066 | B21: 0.3
A22: 19330154 | B22: 0.5
A23: 19331060 | B23: 0.3
A24: 19331070 | B24: 0.3
A25: 19333082 | B25: 0.5
A26: 19333191 | B26: 0.3
A27: 19333507 | B27: 1.5
A28: 19353369 | B28: 2
A29: 19353370 | B29: 2
A30: 19353504 | B30: 2.5
A31: 19353984 | B31: 2.5
A32: 22759780 | B32: 0
A33: 22772361 | B33: 0.4
A34: 22775458 | B34: 0.8
A35: 22805436 | B35: 0.5
A36: 22805437 | B36: 0.5
A37: 22817343 | B37: 0.1
A38: 22823333 | B38: 0
A39: 22832327 | B39: 0
A40: 22872957 | B40: 0.5
A41: 22890016 | B41: 0
A42: 22890532 | B42: 0
A43: 22894857 | B43: 0.9
A44: 22905647 | B44: 0.5
A45: 22913965 | B45: 0.5
A46: 22922780 | B46: 0.5
A47: 22929606 | B47: 0.5
A48: 22935639 | B48: 0.7
A49: 22940647 | B49: 0.4
A50: 22952948 | B50: 0.1
A51: 22956689 | B51: 0.7
A52: 22956876 | B52: 0.1
A53: 22964401 | B53: 0.1
A54: 22965102 | B54: 0.2
A55: 22967771 | B55: 1.6
A56: 22969090 | B56: 0
A57: 22985029 | B57: 1.4
A58: 22988756 | B58: 0.8
A59: 22995319 | B59: 0
A60: 22997089 | B60: 1.5
A61: 23112197 | B61: 0
A62: 23114552 | B62: 0.5
A63: 23138326 | B63: 0.1
A64: 23139997 | B64: 2
A65: 23181319 | B65: 1.5
A66: 23183670 | B66: 0.3
A67: 23194635 | B67: 0.5
A68: 23196401 | B68: 0.5
A69: 23207684 | B69: 1
A70: 23213446 | B70: 1.1
A71: 23219389 | B71: 0.6
A72: 23221574 | B72: 0.5
A73: 23221725 | B73: 0.2
A74: 23231320 | B74: 0.5
A75: 23236698 | B75: 1.4
A76: 23248208 | B76: 1.5
A77: 23251583 | B77: 0.4
A78: 23256564 | B78: 0.4
A79: 23257092 | B79: 0.6
A80: 23271403 | B80: 0
A81: 23287538 | B81: 1.1
A82: 23294258 | B82: 0.5
A83: 23303572 | B83: 0.5
A84: 23309578 | B84: 1.3
A85: 23320672 | B85: 0.7
A86: 23325905 | B86: 1.5
A87: 23342235 | B87: 0.2
A88: 23345958 | B88: 1
A89: 23353688 | B89: 1
A90: 23358104 | B90: 0.5
A91: 23372181 | B91: 4.7
A92: 23372182 | B92: 4.7
A93: 23380121 | B93: 0.75
A94: 23380481 | B94: 0.5
A95: 23381376 | B95: 0
A96: 23387353 | B96: 0.4
A97: 23412245 | B97: 0
A98: 23414471 | B98: 1
A99: 23423583 | B99: 0.5
A100: 23426655 | B100: 0.1
A101: 23426665 | B101: 0
A102: 23432014 | B102: 0.2
A103: 23435023 | B103: 0.3
A104: 23436531 | B104: 0.5
A105: 23443874 | B105: 0.2
A106: 23443968 | B106: 0.2
A107: 23450619 | B107: 0
A108: 23460296 | B108: 0.5
A109: 23462059 | B109: 0.5
A110: 23463800 | B110: 0.7
A111: 23465587 | B111: 1
A112: 23477164 | B112: 0
A113: 23480401 | B113: 0.9
A114: 23487379 | B114: 1
A115: 23487387 | B115: 0.2
A116: 23487420 | B116: 0.5
A117: 23489883 | B117: 0.2
A118: 23494006 | B118: 1
A119: 23495172 | B119: 3
A120: 23509376 | B120: 1
A121: 39029374 | B121: 0
A122: 39052638 | B122: 0
A123: 39066871 | B123: 0.2
A124: 42348899 | B124: 1
A125: 42354588 | B125: 2
A126: 42364954 | B126: 0
A127: 42371915 | B127: 0.1
A128: 42392363 | B128: 0
A129: 42417262 | B129: 0.2
A130: 84016422 | B130: 2
A131: 84024122 | B131: 0.5
A132: 84034179 | B132: 0
A133: 84037063 | B133: 1.5
A134: 84038940 | B134: 0
A135: 84042540 | B135: 1.2
A136: 84042894 | B136: 0.4
A137: 84043875 | B137: 1.5
A138: 84044637 | B138: 1
A139: 84056631 | B139: 0
A140: 84066053 | B140: 0.7
A141: 84068520 | B141: 1
A142: 84073612 | B142: 0.3
A143: 84075521 | B143: 0.8
A144: 84096102 | B144: 0.9
A145: 84106505 | B145: 0.5
A146: 84106506 | B146: 0.5
A147: 84115258 | B147: 2
A148: 84140223 | B148: 2.8
A149: 84154470 | B149: 0.5
A150: 94517506 | B150: 0.2
A151: 94523283 | B151: 0.5
A152: 95057350 | B152: 0.5
A153: 95075440 | B153: 0.1
A154: 95130364 | B154: 0.3
A155: 95182455 | B155: 0
A156: 95264903 | B156: 0.5
A157: 95281673 | B157: 0.1
A158: 95319699 | B158: 1.5
A159: 95328351 | B159: 0.7
A160: 95331964 | B160: 0
A161: 95332035 | B161: 0
A162: 95333634 | B162: 0.4
A163: 95351687 | B163: 0.5
A164: 95352480 | B164: 0
A165: 95369089 | B165: 0.5
A166: 95417407 | B166: 0.2
A167: 95476873 | B167: 0.8
A168: 95483420 | B168: 0
A169: 95918834 | B169: 0.7
A170: 95950429 | B170: 2.5
A171: 95954000 | B171: 0.1
A172: 95990000 | B172: 0.5
A173: 12662767 | B173: 0.2
A174: 19244271 | B174: 0.1
A175: 19259109 | B175: 0.2
A176: 19302763 | B176: 0.5
A177: 19303333 | B177: 0.5
A178: 19303348 | B178: 0.1
A179: 19329324 | B179: 0.8
A180: 19329346 | B180: 0.3
A181: 19329976 | B181: 0.5
A182: 19352692 | B182: 0.5
A183: 19352753 | B183: 0.3
A184: 19353844 | B184: 0.5
A185: 20920006 | B185: 0.6
A186: 20992615 | B186: 0
A187: 22743383 | B187: 0
A188: 22743384 | B188: 0
A189: 22743385 | B189: 0
A190: 22745520 | B190: 0.5
A191: 22757756 | B191: 0
A192: 22757767 | B192: 0.1
A193: 22757770 | B193: 0
A194: 22759925 | B194: 0
A195: 22759927 | B195: 0
A196: 22772364 | B196: 0.4
A197: 22795297 | B197: 0
A198: 22823334 | B198: 0
A199: 22832328 | B199: 0
A200: 22858821 | B200: 0
... 88 more rows
